Organisation Code,Organisation Label,Effective Date,Organisational Unit,Service Division Label,Category Internal Name,Purpose,Detailed Expenditure Code,Payment Date,Transaction Number,Irrecoverable VAT Amount,Amount,Capital Or Revenue,Benificiary Name,Procurement Card
Http://opendatacommunities.org/id/metropolitan-district-council/leeds,Leeds City Council,30/11/2016,Environment & Housing,Parks And Countryside  ,Supplies and Services,Office Consumables,210,04-Oct-2016,1611-00001,0.00,45.00,R,A & E Appliances Ltd,Yes
Http://opendatacommunities.org/id/metropolitan-district-council/leeds,Leeds City Council,30/11/2016,Childrens Services,Learning Skills & Universal,Supplies and Services,Bought In Professional Services,277,25-Nov-2016,1611-00002,0.00,160.00,R,A Ajmal,No
Http://opendatacommunities.org/id/metropolitan-district-council/leeds,Leeds City Council,30/11/2016,Environment & Housing,Leeds Building Services,Supplies and Services,Operational Materials,205,15-Nov-2016,1611-00003,0.00,25.19,R,A Andrews & Sons (Marbles & Tiles),No
Http://opendatacommunities.org/id/metropolitan-district-council/leeds,Leeds City Council,30/11/2016,Environment & Housing,Leeds Building Services,Supplies and Services,Operational Materials,205,21-Nov-2016,1611-00004,0.00,7.78,R,A Andrews & Sons (Marbles & Tiles),No
Http://opendatacommunities.org/id/metropolitan-district-council/leeds,Leeds City Council,30/11/2016,Environment & Housing,Leeds Building Services,Supplies and Services,Operational Materials,205,30-Nov-2016,1611-00005,0.00,2751.80,R,A Andrews & Sons (Marbles & Tiles),No
Http://opendatacommunities.org/id/metropolitan-district-council/leeds,Leeds City Council,30/11/2016,City Development,Libraries  Arts & Heritage,Supplies and Services,Operational Furniture And Equipment,203,04-Nov-2016,1611-00006,0.00,107.50,R,A C Entertainment Technologies Ltd,No
Http://opendatacommunities.org/id/metropolitan-district-council/leeds,Leeds City Council,30/11/2016,City Development,Libraries  Arts & Heritage,Supplies and Services,Office Furniture & Equipment,201,04-Nov-2016,1611-00007,0.00,12.50,R,A C Entertainment Technologies Ltd,No
Http://opendatacommunities.org/id/metropolitan-district-council/leeds,Leeds City Council,30/11/2016,City Development,Libraries  Arts & Heritage,Supplies and Services,Operational Furniture And Equipment,203,04-Nov-2016,1611-00008,0.00,38.00,R,A C Entertainment Technologies Ltd,No
Http://opendatacommunities.org/id/metropolitan-district-council/leeds,Leeds City Council,30/11/2016,City Development,Libraries  Arts & Heritage,Supplies and Services,Operational Materials,205,18-Nov-2016,1611-00009,0.00,98.47,R,A C Entertainment Technologies Ltd,No
Http://opendatacommunities.org/id/metropolitan-district-council/leeds,Leeds City Council,30/11/2016,Environment & Housing,Leeds Building Services,Supplies and Services,Operational Materials,205,04-Nov-2016,1611-00010,0.00,180.00,R,A J H  Pump Supply & Repair Ltd,No
Http://opendatacommunities.org/id/metropolitan-district-council/leeds,Leeds City Council,30/11/2016,Environment & Housing,Leeds Building Services,Supplies and Services,Operational Materials,205,08-Nov-2016,1611-00011,0.00,875.00,R,A J H  Pump Supply & Repair Ltd,No
Http://opendatacommunities.org/id/metropolitan-district-council/leeds,Leeds City Council,30/11/2016,Environment & Housing,Leeds Building Services,Supplies and Services,Operational Materials,205,08-Nov-2016,1611-00012,0.00,146.66,R,A J H  Pump Supply & Repair Ltd,No
Http://opendatacommunities.org/id/metropolitan-district-council/leeds,Leeds City Council,30/11/2016,Environment & Housing,Leeds Building Services,Supplies and Services,Operational Materials,205,08-Nov-2016,1611-00013,0.00,114.00,R,A J H  Pump Supply & Repair Ltd,No
Http://opendatacommunities.org/id/metropolitan-district-council/leeds,Leeds City Council,30/11/2016,Environment & Housing,Leeds Building Services,Supplies and Services,Operational Furniture And Equipment,203,08-Nov-2016,1611-00014,0.00,125.00,R,A J H  Pump Supply & Repair Ltd,No
Http://opendatacommunities.org/id/metropolitan-district-council/leeds,Leeds City Council,30/11/2016,Environment & Housing,Leeds Building Services,Supplies and Services,Operational Furniture And Equipment,203,08-Nov-2016,1611-00015,0.00,125.00,R,A J H  Pump Supply & Repair Ltd,No
Http://opendatacommunities.org/id/metropolitan-district-council/leeds,Leeds City Council,30/11/2016,Environment & Housing,Leeds Building Services,Supplies and Services,Operational Materials,205,08-Nov-2016,1611-00016,0.00,107.08,R,A J H  Pump Supply & Repair Ltd,No
Http://opendatacommunities.org/id/metropolitan-district-council/leeds,Leeds City Council,30/11/2016,Environment & Housing,Leeds Building Services,Supplies and Services,Operational Materials,205,08-Nov-2016,1611-00017,0.00,76.46,R,A J H  Pump Supply & Repair Ltd,No
Http://opendatacommunities.org/id/metropolitan-district-council/leeds,Leeds City Council,30/11/2016,Environment & Housing,Leeds Building Services,Supplies and Services,Operational Materials,205,08-Nov-2016,1611-00018,0.00,105.00,R,A J H  Pump Supply & Repair Ltd,No
Http://opendatacommunities.org/id/metropolitan-district-council/leeds,Leeds City Council,30/11/2016,Environment & Housing,Leeds Building Services,Supplies and Services,Operational Materials,205,08-Nov-2016,1611-00019,0.00,105.00,R,A J H  Pump Supply & Repair Ltd,No
Http://opendatacommunities.org/id/metropolitan-district-council/leeds,Leeds City Council,30/11/2016,Environment & Housing,Leeds Building Services,Supplies and Services,Operational Materials,205,08-Nov-2016,1611-00020,0.00,87.08,R,A J H  Pump Supply & Repair Ltd,No
Http://opendatacommunities.org/id/metropolitan-district-council/leeds,Leeds City Council,30/11/2016,Environment & Housing,Leeds Building Services,Supplies and Services,Operational Materials,205,15-Nov-2016,1611-00021,0.00,698.00,R,A J H  Pump Supply & Repair Ltd,No
Http://opendatacommunities.org/id/metropolitan-district-council/leeds,Leeds City Council,30/11/2016,Environment & Housing,Leeds Building Services,Supplies and Services,Operational Materials,205,15-Nov-2016,1611-00022,0.00,987.00,R,A J H  Pump Supply & Repair Ltd,No
Http://opendatacommunities.org/id/metropolitan-district-council/leeds,Leeds City Council,30/11/2016,Environment & Housing,Leeds Building Services,Supplies and Services,Operational Materials,205,28-Nov-2016,1611-00023,0.00,1190.00,R,A J H  Pump Supply & Repair Ltd,No
Http://opendatacommunities.org/id/metropolitan-district-council/leeds,Leeds City Council,30/11/2016,Environment & Housing,Leeds Building Services,Supplies and Services,Operational Materials,205,28-Nov-2016,1611-00024,0.00,364.00,R,A J H  Pump Supply & Repair Ltd,No
Http://opendatacommunities.org/id/metropolitan-district-council/leeds,Leeds City Council,30/11/2016,Environment & Housing,Leeds Building Services,Supplies and Services,Operational Materials,205,28-Nov-2016,1611-00025,0.00,51.81,R,A J H  Pump Supply & Repair Ltd,No
Http://opendatacommunities.org/id/metropolitan-district-council/leeds,Leeds City Council,30/11/2016,Citizens and Communities,Customer Access,Supplies and Services,Resaleable Materials,204,04-Nov-2016,1611-00026,0.00,407.62,R,A J Promotions,No
Http://opendatacommunities.org/id/metropolitan-district-council/leeds,Leeds City Council,30/11/2016,Environment & Housing,Parks and Countryside,Supplies and Services,Resaleable Materials,204,11-Nov-2016,1611-00027,0.00,460.00,R,A J Promotions,No
Http://opendatacommunities.org/id/metropolitan-district-council/leeds,Leeds City Council,30/11/2016,Environment & Housing,Parks and Countryside,Supplies and Services,Resaleable Materials,204,23-Nov-2016,1611-00028,0.00,160.00,R,A J Promotions,No
Http://opendatacommunities.org/id/metropolitan-district-council/leeds,Leeds City Council,30/11/2016,Environment & Housing,Parks and Countryside,Supplies and Services,Resaleable Materials,204,30-Nov-2016,1611-00029,0.00,690.00,R,A J Promotions,No
Http://opendatacommunities.org/id/metropolitan-district-council/leeds,Leeds City Council,30/11/2016,Citizens and Communities,Customer Access,Supplies and Services,Resaleable Materials,204,30-Nov-2016,1611-00030,0.00,62.40,R,A J Promotions,No
Http://opendatacommunities.org/id/metropolitan-district-council/leeds,Leeds City Council,30/11/2016,Public Health,Public Health,Third Party Payments,Public Health Commissioned Services,526,25-Nov-2016,1611-00031,0.00,481.00,R,A Khan & K Muneer,No
Http://opendatacommunities.org/id/metropolitan-district-council/leeds,Leeds City Council,30/11/2016,Childrens Services,Learning Skills & Universal,Third Party Payments,Services Rendered By Voluntary Sector,505,28-Nov-2016,1611-00032,0.00,660.00,R,A Little Something Extra Ltd,No
Http://opendatacommunities.org/id/metropolitan-district-council/leeds,Leeds City Council,30/11/2016,Childrens Services,Learning Skills & Universal,Third Party Payments,Services Rendered By Voluntary Sector,505,28-Nov-2016,1611-00033,0.00,150.00,R,A Little Something Extra Ltd,No
Http://opendatacommunities.org/id/metropolitan-district-council/leeds,Leeds City Council,30/11/2016,Childrens Services,Learning Skills & Universal,Third Party Payments,Services Rendered By Voluntary Sector,505,28-Nov-2016,1611-00034,0.00,667.50,R,A Little Something Extra Ltd,No
Http://opendatacommunities.org/id/metropolitan-district-council/leeds,Leeds City Council,30/11/2016,Citizens and Communities,Customer Access,Supplies and Services,Other Hired And Contracted Services,265,01-Nov-2016,1611-00035,0.00,709.00,R,A Mohammed,No
Http://opendatacommunities.org/id/metropolitan-district-council/leeds,Leeds City Council,30/11/2016,Citizens and Communities,Customer Access,Supplies and Services,Other Hired And Contracted Services,265,03-Nov-2016,1611-00036,0.00,10.00,R,A Mohammed,No
Http://opendatacommunities.org/id/metropolitan-district-council/leeds,Leeds City Council,30/11/2016,Citizens and Communities,Customer Access,Supplies and Services,Other Hired And Contracted Services,265,03-Nov-2016,1611-00037,0.00,174.74,R,A Musalam,No
Http://opendatacommunities.org/id/metropolitan-district-council/leeds,Leeds City Council,30/11/2016,Citizens and Communities,Customer Access,Supplies and Services,Other Hired And Contracted Services,265,01-Nov-2016,1611-00038,0.00,628.50,R,A Namaki,No
Http://opendatacommunities.org/id/metropolitan-district-council/leeds,Leeds City Council,30/11/2016,Environment & Housing,Parks and Countryside,Supplies and Services,Operational Materials,205,14-Nov-2016,1611-00039,0.00,570.00,R,A Newton,No
Http://opendatacommunities.org/id/metropolitan-district-council/leeds,Leeds City Council,30/11/2016,Environment & Housing,Parks and Countryside,Supplies and Services,Operational Materials,205,14-Nov-2016,1611-00040,0.00,798.00,R,A Newton,No
Http://opendatacommunities.org/id/metropolitan-district-council/leeds,Leeds City Council,30/11/2016,Environment & Housing,Parks and Countryside,Supplies and Services,Other Hired And Contracted Services,265,11-Nov-2016,1611-00041,0.00,1449.60,R,A Nicholls,No
Http://opendatacommunities.org/id/metropolitan-district-council/leeds,Leeds City Council,30/11/2016,City Development,Planning & Sustainable Development,Income,Planning Fees,939,29-Nov-2016,1611-00042,0.00,190.00,R,A Q Limited,No
Http://opendatacommunities.org/id/metropolitan-district-council/leeds,Leeds City Council,30/11/2016,Citizens and Communities,Elections  Licensing and Registration,Income,Admissions  Booking Fees & Ticket Sales,933,03-Nov-2016,1611-00043,0.00,225.00,R,REDACTED PERSONAL DATA,No
Http://opendatacommunities.org/id/metropolitan-district-council/leeds,Leeds City Council,30/11/2016,City Development,Libraries  Arts & Heritage,Supplies and Services,Books & Audio-Visual Materials,206,30-Nov-2016,1611-00044,0.00,11.65,R,A R N Holden,No
Http://opendatacommunities.org/id/metropolitan-district-council/leeds,Leeds City Council,30/11/2016,Civic Enterprise Leeds,Business Support Centre,Supplies and Services,Other Hired And Contracted Services,265,04-Nov-2016,1611-00045,0.00,35.00,R,A Star Couriers Ltd,No
Http://opendatacommunities.org/id/metropolitan-district-council/leeds,Leeds City Council,30/11/2016,Civic Enterprise Leeds,Business Support Centre,Supplies and Services,Other Hired And Contracted Services,265,14-Nov-2016,1611-00046,0.00,46.25,R,A Star Couriers Ltd,No
Http://opendatacommunities.org/id/metropolitan-district-council/leeds,Leeds City Council,30/11/2016,Civic Enterprise Leeds,Business Support Centre,Supplies and Services,Other Hired And Contracted Services,265,18-Nov-2016,1611-00047,0.00,35.00,R,A Star Couriers Ltd,No
Http://opendatacommunities.org/id/metropolitan-district-council/leeds,Leeds City Council,30/11/2016,Environment & Housing,Waste Management,Employees,Training & Development,70,10-Nov-2016,1611-00048,0.00,574.25,R,A T Nerac Ltd,No
Http://opendatacommunities.org/id/metropolitan-district-council/leeds,Leeds City Council,30/11/2016,Environment & Housing,Waste Management,Supplies and Services,Other Hired And Contracted Services,265,24-Nov-2016,1611-00049,0.00,227.60,R,A T Nerac Ltd,No
Http://opendatacommunities.org/id/metropolitan-district-council/leeds,Leeds City Council,30/11/2016,Environment & Housing,Waste Management,Supplies and Services,Other Hired And Contracted Services,265,24-Nov-2016,1611-00050,0.00,560.30,R,A T Nerac Ltd,No
Http://opendatacommunities.org/id/metropolitan-district-council/leeds,Leeds City Council,30/11/2016,Environment & Housing,Waste Management,Supplies and Services,Other Hired And Contracted Services,265,24-Nov-2016,1611-00051,0.00,825.50,R,A T Nerac Ltd,No
Http://opendatacommunities.org/id/metropolitan-district-council/leeds,Leeds City Council,30/11/2016,Environment & Housing,Waste Management,Employees,Training & Development,70,30-Nov-2016,1611-00052,0.00,159.50,R,A T Nerac Ltd,No
Http://opendatacommunities.org/id/metropolitan-district-council/leeds,Leeds City Council,30/11/2016,Childrens Services,Safeguarding Targeted & Specialist  ,Transfer Payments,Leaving Care Allowances,634,24-Oct-2016,1611-00053,0.00,235.00,R,Aa Driving School,Yes
Http://opendatacommunities.org/id/metropolitan-district-council/leeds,Leeds City Council,30/11/2016,Public Health,Public Health,Third Party Payments,Public Health Commissioned Services,526,01-Nov-2016,1611-00054,0.00,72.09,R,Aaa Healthcare Ltd,No
Http://opendatacommunities.org/id/metropolitan-district-council/leeds,Leeds City Council as Accountable Body,30/11/2016,Social Services Pooled Budgets,Leeds Community Equip Store Pooled Budgt,Supplies and Services,Other Equipment,203,11-Nov-2016,1611-00055,0.00,999.00,R,Aat (Gb) Ltd,No
Http://opendatacommunities.org/id/metropolitan-district-council/leeds,Leeds City Council,30/11/2016,Central & Corporate,Finance,Transport,Public Transport Expenses,310,07-Nov-2016,1611-00056,0.00,374.00,R,Ab Cars (Garforth) Ltd,No
Http://opendatacommunities.org/id/metropolitan-district-council/leeds,Leeds City Council,30/11/2016,Central & Corporate,Finance,Transport,Public Transport Expenses,310,23-Nov-2016,1611-00057,0.00,204.00,R,Ab Cars (Garforth) Ltd,No
Http://opendatacommunities.org/id/metropolitan-district-council/leeds,Leeds City Council,30/11/2016,Environment & Housing,Streetscene Environmental Services  ,Supplies and Services,Postages,212,28-Oct-2016,1611-00058,0.00,13.50,R,Abacus Express,Yes
Http://opendatacommunities.org/id/metropolitan-district-council/leeds,Leeds City Council,30/11/2016,Central & Corporate,Legal Services,Support Services,Legal Disbursements,411,03-Nov-2016,1611-00059,0.00,19.89,R,Abacus Express Limited,No
Http://opendatacommunities.org/id/metropolitan-district-council/leeds,Leeds City Council,30/11/2016,Childrens Services,Safeguarding Targeted & Specialist,Support Services,Legal Disbursements,411,09-Nov-2016,1611-00060,0.00,251.50,R,Abacus Express Limited,No
Http://opendatacommunities.org/id/metropolitan-district-council/leeds,Leeds City Council,30/11/2016,Childrens Services,Safeguarding Targeted & Specialist,Support Services,Legal Disbursements,411,09-Nov-2016,1611-00061,0.00,31.02,R,Abacus Express Limited,No
Http://opendatacommunities.org/id/metropolitan-district-council/leeds,Leeds City Council,30/11/2016,Childrens Services,Safeguarding Targeted & Specialist,Support Services,Legal Disbursements,411,09-Nov-2016,1611-00062,0.00,31.02,R,Abacus Express Limited,No
Http://opendatacommunities.org/id/metropolitan-district-council/leeds,Leeds City Council,30/11/2016,Childrens Services,Safeguarding Targeted & Specialist,Support Services,Legal Disbursements,411,09-Nov-2016,1611-00063,0.00,31.02,R,Abacus Express Limited,No
Http://opendatacommunities.org/id/metropolitan-district-council/leeds,Leeds City Council,30/11/2016,Childrens Services,Safeguarding Targeted & Specialist,Support Services,Legal Disbursements,411,09-Nov-2016,1611-00064,0.00,31.02,R,Abacus Express Limited,No
Http://opendatacommunities.org/id/metropolitan-district-council/leeds,Leeds City Council,30/11/2016,Childrens Services,Safeguarding Targeted & Specialist,Support Services,Legal Disbursements,411,09-Nov-2016,1611-00065,0.00,31.02,R,Abacus Express Limited,No
Http://opendatacommunities.org/id/metropolitan-district-council/leeds,Leeds City Council,30/11/2016,Childrens Services,Safeguarding Targeted & Specialist,Support Services,Legal Disbursements,411,09-Nov-2016,1611-00066,0.00,31.02,R,Abacus Express Limited,No
Http://opendatacommunities.org/id/metropolitan-district-council/leeds,Leeds City Council,30/11/2016,City Development,Highways,Supplies and Services,Other Hired And Contracted Services,265,10-Nov-2016,1611-00067,0.00,15.59,R,Abacus Express Limited,No
Http://opendatacommunities.org/id/metropolitan-district-council/leeds,Leeds City Council,30/11/2016,Childrens Services,Safeguarding Targeted & Specialist,Support Services,Legal Disbursements,411,24-Nov-2016,1611-00068,0.00,31.02,R,Abacus Express Limited,No
Http://opendatacommunities.org/id/metropolitan-district-council/leeds,Leeds City Council,30/11/2016,Childrens Services,Safeguarding Targeted & Specialist,Support Services,Legal Disbursements,411,24-Nov-2016,1611-00069,0.00,31.02,R,Abacus Express Limited,No
Http://opendatacommunities.org/id/metropolitan-district-council/leeds,Leeds City Council,30/11/2016,Childrens Services,Safeguarding Targeted & Specialist,Support Services,Legal Disbursements,411,24-Nov-2016,1611-00070,0.00,26.77,R,Abacus Express Limited,No
Http://opendatacommunities.org/id/metropolitan-district-council/leeds,Leeds City Council,30/11/2016,City Development,Highways,Supplies and Services,Postages,212,24-Nov-2016,1611-00071,0.00,14.51,R,Abacus Express Limited,No
Http://opendatacommunities.org/id/metropolitan-district-council/leeds,Leeds City Council,30/11/2016,Adult Social Care,Services For Older People - 65 And Over,Third Party Payments,Nursing Care Dementia,574,16-Nov-2016,1611-00072,0.00,1556.00,R,Abbendon Nursing Home,No
Http://opendatacommunities.org/id/metropolitan-district-council/leeds,Leeds City Council,30/11/2016,Public Health,Public Health,Third Party Payments,Public Health Commissioned Services,526,25-Nov-2016,1611-00073,0.00,2365.14,R,Abbey Grange Medical Practice,No
Http://opendatacommunities.org/id/metropolitan-district-council/leeds,Leeds City Council,30/11/2016,Public Health,Public Health,Third Party Payments,Public Health Commissioned Services,526,25-Nov-2016,1611-00074,0.00,30.00,R,Abbey Grange Medical Practice,No
Http://opendatacommunities.org/id/metropolitan-district-council/leeds,Leeds City Council,30/11/2016,Childrens Services,Safeguarding Targeted & Specialist  ,Third Party Payments,Contact,548,27-Oct-2016,1611-00075,0.00,8.80,R,Abbey House Museum,Yes
Http://opendatacommunities.org/id/metropolitan-district-council/leeds,Leeds City Council,30/11/2016,Adult Social Care,Services For Older People - 65 And Over,Third Party Payments,Home Care,568,04-Nov-2016,1611-00076,0.00,1276.50,R,Abbeyfield The Dales Limited,No
Http://opendatacommunities.org/id/metropolitan-district-council/leeds,Leeds City Council,30/11/2016,Citizens and Communities,Customer Access,Supplies and Services,Other Hired And Contracted Services,265,01-Nov-2016,1611-00077,0.00,22.50,R,Abdur Rahman Khan,No
Http://opendatacommunities.org/id/metropolitan-district-council/leeds,Leeds City Council,30/11/2016,Adult Social Care,Services For Older People - 65 And Over,Third Party Payments,Nursing Home,570,16-Nov-2016,1611-00078,0.00,35670.25,R,Aberford Hall,No
Http://opendatacommunities.org/id/metropolitan-district-council/leeds,Leeds City Council,30/11/2016,Adult Social Care,Services For Older People - 65 And Over,Third Party Payments,Nursing Care Dementia,574,16-Nov-2016,1611-00079,0.00,1501.20,R,Aberford Hall,No
Http://opendatacommunities.org/id/metropolitan-district-council/leeds,Leeds City Council,30/11/2016,Adult Social Care,Services For Older People - 65 And Over,Third Party Payments,Residential,580,16-Nov-2016,1611-00080,0.00,-4758.99,R,Aberford Hall,No
Http://opendatacommunities.org/id/metropolitan-district-council/leeds,Leeds City Council,30/11/2016,Adult Social Care,Services For Older People Under 65 P/Dis,Third Party Payments,Residential,580,03-Nov-2016,1611-00081,0.00,3414.34,R,Able Community Care Ltd,No
Http://opendatacommunities.org/id/metropolitan-district-council/leeds,Leeds City Council,30/11/2016,City Development,Libraries  Arts & Heritage  ,Supplies and Services,Operational Materials,205,20-Oct-2016,1611-00082,0.00,63.66,R,Absoluteproduct.Co,Yes
Http://opendatacommunities.org/id/metropolitan-district-council/leeds,Leeds City Council,30/11/2016,Childrens Services,Safeguarding Targeted & Specialist,Employees,Agency Staff,8,03-Nov-2016,1611-00083,0.00,2031.10,R,Academic Appointments Ltd,No
Http://opendatacommunities.org/id/metropolitan-district-council/leeds,Leeds City Council,30/11/2016,Childrens Services,Safeguarding Targeted & Specialist,Employees,Agency Staff,8,03-Nov-2016,1611-00084,0.00,384.33,R,Academic Appointments Ltd,No
Http://opendatacommunities.org/id/metropolitan-district-council/leeds,Leeds City Council,30/11/2016,Childrens Services,Safeguarding Targeted & Specialist,Employees,Agency Staff,8,10-Nov-2016,1611-00085,0.00,1791.10,R,Academic Appointments Ltd,No
Http://opendatacommunities.org/id/metropolitan-district-council/leeds,Leeds City Council,30/11/2016,Childrens Services,Safeguarding Targeted & Specialist,Employees,Agency Staff,8,24-Nov-2016,1611-00086,0.00,508.74,R,Academic Appointments Ltd,No
Http://opendatacommunities.org/id/metropolitan-district-council/leeds,Leeds City Council,30/11/2016,Childrens Services,Safeguarding Targeted & Specialist,Employees,Agency Staff,8,29-Nov-2016,1611-00087,0.00,1071.10,R,Academic Appointments Ltd,No
Http://opendatacommunities.org/id/metropolitan-district-council/leeds,Leeds City Council,30/11/2016,Environment & Housing,Environmental Health,Capital,Construction,3,17-Nov-2016,1611-00088,0.00,2052.00,C,Accent Homes Ltd,No
Http://opendatacommunities.org/id/metropolitan-district-council/leeds,Leeds City Council,30/11/2016,Environment & Housing,Community Safety,Transport,Hire Of Movable Plant & Machinery,315,30-Nov-2016,1611-00089,0.00,1350.71,R,Access Hire Nationwide Ltd,No
Http://opendatacommunities.org/id/metropolitan-district-council/leeds,Leeds City Council,30/11/2016,Environment & Housing,Parks And Countryside  ,Supplies and Services,Operational Materials,205,27-Oct-2016,1611-00090,0.00,52.83,R,Access Locksmiths,Yes
Http://opendatacommunities.org/id/metropolitan-district-council/leeds,Leeds City Council,30/11/2016,Strategic Landlord,Property and Contracts,Premises,General Maintenance,104,02-Nov-2016,1611-00091,0.00,110.90,R,Access Locksmiths (Leeds) Limited,No
Http://opendatacommunities.org/id/metropolitan-district-council/leeds,Leeds City Council,30/11/2016,Strategic Landlord,Property and Contracts,Premises,General Maintenance,104,02-Nov-2016,1611-00092,0.00,76.70,R,Access Locksmiths (Leeds) Limited,No
Http://opendatacommunities.org/id/metropolitan-district-council/leeds,Leeds City Council,30/11/2016,Strategic Landlord,Property and Contracts,Premises,General Maintenance,104,02-Nov-2016,1611-00093,0.00,162.68,R,Access Locksmiths (Leeds) Limited,No
Http://opendatacommunities.org/id/metropolitan-district-council/leeds,Leeds City Council,30/11/2016,Strategic Landlord,Housing Management,Supplies and Services,Other Hired And Contracted Services,265,04-Nov-2016,1611-00094,0.00,7.50,R,Access Locksmiths (Leeds) Limited,No
Http://opendatacommunities.org/id/metropolitan-district-council/leeds,Leeds City Council,30/11/2016,Strategic Landlord,Housing Management,Supplies and Services,Grants To Voluntary Organisations,293,11-Nov-2016,1611-00095,0.00,55.62,R,Access Locksmiths (Leeds) Limited,No
Http://opendatacommunities.org/id/metropolitan-district-council/leeds,Leeds City Council,30/11/2016,Environment & Housing,Leeds Building Services,Supplies and Services,Other Hired And Contracted Services,265,11-Nov-2016,1611-00096,0.00,10.00,R,Access Locksmiths (Leeds) Limited,No
Http://opendatacommunities.org/id/metropolitan-district-council/leeds,Leeds City Council,30/11/2016,Strategic Landlord,Housing Management,Premises,General Maintenance,104,11-Nov-2016,1611-00097,0.00,228.00,R,Access Locksmiths (Leeds) Limited,No
Http://opendatacommunities.org/id/metropolitan-district-council/leeds,Leeds City Council,30/11/2016,Strategic Landlord,Housing Management,Premises,General Maintenance,104,11-Nov-2016,1611-00098,0.00,45.13,R,Access Locksmiths (Leeds) Limited,No
Http://opendatacommunities.org/id/metropolitan-district-council/leeds,Leeds City Council,30/11/2016,Environment & Housing,Waste Management,Supplies and Services,Operational Furniture And Equipment,203,17-Nov-2016,1611-00099,0.00,92.75,R,Access Locksmiths (Leeds) Limited,No
Http://opendatacommunities.org/id/metropolitan-district-council/leeds,Leeds City Council,30/11/2016,Strategic Landlord,Property and Contracts,Premises,General Maintenance,104,18-Nov-2016,1611-00100,0.00,194.30,R,Access Locksmiths (Leeds) Limited,No
Http://opendatacommunities.org/id/metropolitan-district-council/leeds,Leeds City Council,30/11/2016,Strategic Landlord,Property and Contracts,Premises,General Maintenance,104,18-Nov-2016,1611-00101,0.00,225.20,R,Access Locksmiths (Leeds) Limited,No
Http://opendatacommunities.org/id/metropolitan-district-council/leeds,Leeds City Council,30/11/2016,Environment & Housing,Housing Leeds Service,Capital,Construction,3,18-Nov-2016,1611-00102,0.00,79.70,C,Access Locksmiths (Leeds) Limited,No
Http://opendatacommunities.org/id/metropolitan-district-council/leeds,Leeds City Council,30/11/2016,Strategic Landlord,Property and Contracts,Premises,General Maintenance,104,18-Nov-2016,1611-00103,0.00,110.44,R,Access Locksmiths (Leeds) Limited,No
Http://opendatacommunities.org/id/metropolitan-district-council/leeds,Leeds City Council,30/11/2016,Environment & Housing,Leeds Building Services,Supplies and Services,Operational Materials,205,21-Nov-2016,1611-00104,0.00,36.00,R,Access Locksmiths (Leeds) Limited,No
Http://opendatacommunities.org/id/metropolitan-district-council/leeds,Leeds City Council,30/11/2016,Environment & Housing,Leeds Building Services,Supplies and Services,Operational Materials,205,21-Nov-2016,1611-00105,0.00,20.79,R,Access Locksmiths (Leeds) Limited,No
Http://opendatacommunities.org/id/metropolitan-district-council/leeds,Leeds City Council,30/11/2016,Environment & Housing,Leeds Building Services,Supplies and Services,Operational Materials,205,21-Nov-2016,1611-00106,0.00,32.58,R,Access Locksmiths (Leeds) Limited,No
Http://opendatacommunities.org/id/metropolitan-district-council/leeds,Leeds City Council,30/11/2016,Environment & Housing,Leeds Building Services,Supplies and Services,Operational Materials,205,21-Nov-2016,1611-00107,0.00,6.35,R,Access Locksmiths (Leeds) Limited,No
Http://opendatacommunities.org/id/metropolitan-district-council/leeds,Leeds City Council,30/11/2016,Strategic Landlord,Housing Management,Premises,HRA Responsive Repairs,106,25-Nov-2016,1611-00108,0.00,15.00,R,Access Locksmiths (Leeds) Limited,No
Http://opendatacommunities.org/id/metropolitan-district-council/leeds,Leeds City Council,30/11/2016,Strategic Landlord,Housing Management,Premises,General Maintenance,104,25-Nov-2016,1611-00109,0.00,114.00,R,Access Locksmiths (Leeds) Limited,No
Http://opendatacommunities.org/id/metropolitan-district-council/leeds,Leeds City Council,30/11/2016,Environment & Housing,Leeds Building Services,Supplies and Services,Other Hired And Contracted Services,265,01-Nov-2016,1611-00110,0.00,450.00,R,Access Opening Systems Limited,No
Http://opendatacommunities.org/id/metropolitan-district-council/leeds,Leeds City Council,30/11/2016,Environment & Housing,Leeds Building Services,Supplies and Services,Other Hired And Contracted Services,265,01-Nov-2016,1611-00111,0.00,565.00,R,Access Opening Systems Limited,No
Http://opendatacommunities.org/id/metropolitan-district-council/leeds,Leeds City Council,30/11/2016,Environment & Housing,Leeds Building Services,Supplies and Services,Other Hired And Contracted Services,265,04-Nov-2016,1611-00112,0.00,170.00,R,Access Opening Systems Limited,No
Http://opendatacommunities.org/id/metropolitan-district-council/leeds,Leeds City Council,30/11/2016,Environment & Housing,Leeds Building Services,Supplies and Services,Other Hired And Contracted Services,265,08-Nov-2016,1611-00113,0.00,85.00,R,Access Opening Systems Limited,No
Http://opendatacommunities.org/id/metropolitan-district-council/leeds,Leeds City Council,30/11/2016,Environment & Housing,Leeds Building Services,Supplies and Services,Other Hired And Contracted Services,265,08-Nov-2016,1611-00114,0.00,85.00,R,Access Opening Systems Limited,No
Http://opendatacommunities.org/id/metropolitan-district-council/leeds,Leeds City Council,30/11/2016,Environment & Housing,Leeds Building Services,Supplies and Services,Other Hired And Contracted Services,265,08-Nov-2016,1611-00115,0.00,1203.00,R,Access Opening Systems Limited,No
Http://opendatacommunities.org/id/metropolitan-district-council/leeds,Leeds City Council,30/11/2016,Environment & Housing,Leeds Building Services,Supplies and Services,Other Hired And Contracted Services,265,08-Nov-2016,1611-00116,0.00,85.00,R,Access Opening Systems Limited,No
Http://opendatacommunities.org/id/metropolitan-district-council/leeds,Leeds City Council,30/11/2016,Environment & Housing,Leeds Building Services,Supplies and Services,Other Hired And Contracted Services,265,11-Nov-2016,1611-00117,0.00,85.00,R,Access Opening Systems Limited,No
Http://opendatacommunities.org/id/metropolitan-district-council/leeds,Leeds City Council,30/11/2016,Environment & Housing,Leeds Building Services,Supplies and Services,Other Hired And Contracted Services,265,11-Nov-2016,1611-00118,0.00,85.00,R,Access Opening Systems Limited,No
Http://opendatacommunities.org/id/metropolitan-district-council/leeds,Leeds City Council,30/11/2016,Environment & Housing,Leeds Building Services,Supplies and Services,Other Hired And Contracted Services,265,11-Nov-2016,1611-00119,0.00,130.00,R,Access Opening Systems Limited,No
Http://opendatacommunities.org/id/metropolitan-district-council/leeds,Leeds City Council,30/11/2016,Environment & Housing,Leeds Building Services,Supplies and Services,Other Hired And Contracted Services,265,11-Nov-2016,1611-00120,0.00,85.00,R,Access Opening Systems Limited,No
Http://opendatacommunities.org/id/metropolitan-district-council/leeds,Leeds City Council,30/11/2016,Environment & Housing,Leeds Building Services,Supplies and Services,Other Hired And Contracted Services,265,11-Nov-2016,1611-00121,0.00,85.00,R,Access Opening Systems Limited,No
Http://opendatacommunities.org/id/metropolitan-district-council/leeds,Leeds City Council,30/11/2016,Environment & Housing,Leeds Building Services,Supplies and Services,Other Hired And Contracted Services,265,11-Nov-2016,1611-00122,0.00,85.00,R,Access Opening Systems Limited,No
Http://opendatacommunities.org/id/metropolitan-district-council/leeds,Leeds City Council,30/11/2016,Environment & Housing,Leeds Building Services,Supplies and Services,Other Hired And Contracted Services,265,18-Nov-2016,1611-00123,0.00,3422.24,R,Access Opening Systems Limited,No
Http://opendatacommunities.org/id/metropolitan-district-council/leeds,Leeds City Council,30/11/2016,Environment & Housing,Leeds Building Services,Supplies and Services,Other Hired And Contracted Services,265,18-Nov-2016,1611-00124,0.00,97.50,R,Access Opening Systems Limited,No
Http://opendatacommunities.org/id/metropolitan-district-council/leeds,Leeds City Council,30/11/2016,Environment & Housing,Leeds Building Services,Supplies and Services,Other Hired And Contracted Services,265,18-Nov-2016,1611-00125,0.00,85.00,R,Access Opening Systems Limited,No
Http://opendatacommunities.org/id/metropolitan-district-council/leeds,Leeds City Council,30/11/2016,Environment & Housing,Leeds Building Services,Supplies and Services,Other Hired And Contracted Services,265,18-Nov-2016,1611-00126,0.00,85.00,R,Access Opening Systems Limited,No
Http://opendatacommunities.org/id/metropolitan-district-council/leeds,Leeds City Council,30/11/2016,Environment & Housing,Leeds Building Services,Supplies and Services,Other Hired And Contracted Services,265,18-Nov-2016,1611-00127,0.00,391.00,R,Access Opening Systems Limited,No
Http://opendatacommunities.org/id/metropolitan-district-council/leeds,Leeds City Council,30/11/2016,Environment & Housing,Leeds Building Services,Supplies and Services,Other Hired And Contracted Services,265,22-Nov-2016,1611-00128,0.00,170.00,R,Access Opening Systems Limited,No
Http://opendatacommunities.org/id/metropolitan-district-council/leeds,Leeds City Council,30/11/2016,Environment & Housing,Leeds Building Services,Supplies and Services,Other Hired And Contracted Services,265,22-Nov-2016,1611-00129,0.00,97.50,R,Access Opening Systems Limited,No
Http://opendatacommunities.org/id/metropolitan-district-council/leeds,Leeds City Council,30/11/2016,Environment & Housing,Leeds Building Services,Supplies and Services,Other Hired And Contracted Services,265,22-Nov-2016,1611-00130,0.00,85.00,R,Access Opening Systems Limited,No
Http://opendatacommunities.org/id/metropolitan-district-council/leeds,Leeds City Council,30/11/2016,Environment & Housing,Leeds Building Services,Supplies and Services,Other Hired And Contracted Services,265,25-Nov-2016,1611-00131,0.00,85.00,R,Access Opening Systems Limited,No
Http://opendatacommunities.org/id/metropolitan-district-council/leeds,Leeds City Council,30/11/2016,Environment & Housing,Leeds Building Services,Supplies and Services,Other Hired And Contracted Services,265,25-Nov-2016,1611-00132,0.00,85.00,R,Access Opening Systems Limited,No
Http://opendatacommunities.org/id/metropolitan-district-council/leeds,Leeds City Council,30/11/2016,Environment & Housing,Leeds Building Services,Supplies and Services,Other Hired And Contracted Services,265,25-Nov-2016,1611-00133,0.00,465.12,R,Access Opening Systems Limited,No
Http://opendatacommunities.org/id/metropolitan-district-council/leeds,Leeds City Council,30/11/2016,Environment & Housing,Leeds Building Services,Supplies and Services,Other Hired And Contracted Services,265,25-Nov-2016,1611-00134,0.00,85.00,R,Access Opening Systems Limited,No
Http://opendatacommunities.org/id/metropolitan-district-council/leeds,Leeds City Council,30/11/2016,Environment & Housing,Leeds Building Services,Supplies and Services,Other Hired And Contracted Services,265,25-Nov-2016,1611-00135,0.00,85.00,R,Access Opening Systems Limited,No
Http://opendatacommunities.org/id/metropolitan-district-council/leeds,Leeds City Council,30/11/2016,Environment & Housing,Leeds Building Services,Supplies and Services,Other Hired And Contracted Services,265,25-Nov-2016,1611-00136,0.00,620.41,R,Access Opening Systems Limited,No
Http://opendatacommunities.org/id/metropolitan-district-council/leeds,Leeds City Council,30/11/2016,Environment & Housing,Leeds Building Services,Supplies and Services,Other Hired And Contracted Services,265,25-Nov-2016,1611-00137,0.00,1850.00,R,Access Opening Systems Limited,No
Http://opendatacommunities.org/id/metropolitan-district-council/leeds,Leeds City Council,30/11/2016,Environment & Housing,Leeds Building Services,Supplies and Services,Other Hired And Contracted Services,265,25-Nov-2016,1611-00138,0.00,664.00,R,Access Opening Systems Limited,No
Http://opendatacommunities.org/id/metropolitan-district-council/leeds,Leeds City Council,30/11/2016,Environment & Housing,Leeds Building Services,Supplies and Services,Other Hired And Contracted Services,265,25-Nov-2016,1611-00139,0.00,85.00,R,Access Opening Systems Limited,No
Http://opendatacommunities.org/id/metropolitan-district-council/leeds,Leeds City Council,30/11/2016,Environment & Housing,Leeds Building Services,Supplies and Services,Other Hired And Contracted Services,265,25-Nov-2016,1611-00140,0.00,85.00,R,Access Opening Systems Limited,No
Http://opendatacommunities.org/id/metropolitan-district-council/leeds,Leeds City Council,30/11/2016,Environment & Housing,Leeds Building Services,Supplies and Services,Other Hired And Contracted Services,265,25-Nov-2016,1611-00141,0.00,85.00,R,Access Opening Systems Limited,No
Http://opendatacommunities.org/id/metropolitan-district-council/leeds,Leeds City Council,30/11/2016,Environment & Housing,Leeds Building Services,Supplies and Services,Other Hired And Contracted Services,265,28-Nov-2016,1611-00142,0.00,217.59,R,Access Opening Systems Limited,No
Http://opendatacommunities.org/id/metropolitan-district-council/leeds,Leeds City Council,30/11/2016,Environment & Housing,Leeds Building Services,Supplies and Services,Operational Materials,205,30-Nov-2016,1611-00143,0.00,200.00,R,Access Opening Systems Limited,No
Http://opendatacommunities.org/id/metropolitan-district-council/leeds,Leeds City Council,30/11/2016,Insurance,Insurance,Supplies and Services,Insurance Claims,248,17-Nov-2016,1611-00144,0.00,2696.00,R,Accountant General Of The Senior Courts,No
Http://opendatacommunities.org/id/metropolitan-district-council/leeds,Leeds City Council,30/11/2016,City Development,Recreation,Supplies and Services,Other Hired And Contracted Services,265,02-Nov-2016,1611-00145,0.00,139.50,R,Ace Container Services Limited,No
Http://opendatacommunities.org/id/metropolitan-district-council/leeds,Leeds City Council,30/11/2016,City Development,Recreation,Transport,External Hire -Occasional,304,30-Nov-2016,1611-00146,0.00,124.50,R,Ace Container Services Limited,No
Http://opendatacommunities.org/id/metropolitan-district-council/leeds,Leeds City Council,30/11/2016,City Development,Libraries  Arts & Heritage,Transport,Hire Of Movable Plant & Machinery,315,30-Nov-2016,1611-00147,0.00,45.00,R,Ace Container Services Limited,No
Http://opendatacommunities.org/id/metropolitan-district-council/leeds,Leeds City Council,30/11/2016,Childrens Services,Basic Need,Capital,Other Costs,7,30-Nov-2016,1611-00148,0.00,130.00,C,Ace Leaflet Distribution & Print Ltd,No
Http://opendatacommunities.org/id/metropolitan-district-council/leeds,Leeds City Council,30/11/2016,Civic Enterprise Leeds,Commercial Services,Supplies and Services,Operational Materials,205,16-Nov-2016,1611-00149,0.00,1892.00,R,Acme Facilities Group Ltd,No
Http://opendatacommunities.org/id/metropolitan-district-council/leeds,Leeds City Council,30/11/2016,Civic Enterprise Leeds,Commercial Services,Supplies and Services,Operational Materials,205,16-Nov-2016,1611-00150,0.00,1902.00,R,Acme Facilities Group Ltd,No
Http://opendatacommunities.org/id/metropolitan-district-council/leeds,Leeds City Council,30/11/2016,Civic Enterprise Leeds,Commercial Services,Supplies and Services,Operational Furniture And Equipment,203,18-Nov-2016,1611-00151,0.00,1075.00,R,Acme Facilities Group Ltd,No
Http://opendatacommunities.org/id/metropolitan-district-council/leeds,Leeds City Council,30/11/2016,Childrens Services,Safeguarding Targeted & Specialist,Third Party Payments,Independent Fostering Agencies,509,15-Nov-2016,1611-00152,0.00,1371.43,R,Acorn Fostering Services,No
Http://opendatacommunities.org/id/metropolitan-district-council/leeds,Leeds City Council,30/11/2016,Adult Social Care,Services For Older People - 65 And Over,Third Party Payments,Nursing Care Dementia,574,16-Nov-2016,1611-00153,0.00,1480.08,R,Acorn Nursing Home,No
Http://opendatacommunities.org/id/metropolitan-district-council/leeds,Leeds City Council,30/11/2016,City Development,Libraries  Arts & Heritage,Supplies and Services,Other Hired And Contracted Services,265,01-Nov-2016,1611-00154,0.00,2000.00,R,Acorn Scaffolding (Yorkshire) Ltd,No
Http://opendatacommunities.org/id/metropolitan-district-council/leeds,Leeds City Council,30/11/2016,City Development,Libraries  Arts & Heritage,Supplies and Services,Other Hired And Contracted Services,265,10-Nov-2016,1611-00155,0.00,3225.00,R,Acorn Scaffolding (Yorkshire) Ltd,No
Http://opendatacommunities.org/id/metropolitan-district-council/leeds,Leeds City Council,30/11/2016,City Development,Libraries  Arts & Heritage,Supplies and Services,Other Hired And Contracted Services,265,25-Nov-2016,1611-00156,0.00,3590.00,R,Acorn Scaffolding (Yorkshire) Ltd,No
Http://opendatacommunities.org/id/metropolitan-district-council/leeds,Leeds City Council,30/11/2016,Adult Social Care,Other Adult Services,Third Party Payments,Residential - Drugs & Alcohol,583,03-Nov-2016,1611-00157,0.00,-785.71,R,Acorn Treatment & Housing,No
Http://opendatacommunities.org/id/metropolitan-district-council/leeds,Leeds City Council,30/11/2016,Adult Social Care,Other Adult Services,Third Party Payments,Residential - Drugs & Alcohol,583,03-Nov-2016,1611-00158,0.00,2435.71,R,Acorn Treatment & Housing,No
Http://opendatacommunities.org/id/metropolitan-district-council/leeds,Leeds City Council,30/11/2016,Adult Social Care,Other Adult Services,Third Party Payments,Residential - Drugs & Alcohol,583,18-Nov-2016,1611-00159,0.00,2278.57,R,Acorn Treatment & Housing,No
Http://opendatacommunities.org/id/metropolitan-district-council/leeds,Leeds City Council,30/11/2016,Adult Social Care,Other Adult Services,Third Party Payments,Residential - Drugs & Alcohol,583,18-Nov-2016,1611-00160,0.00,78.57,R,Acorn Treatment & Housing,No
Http://opendatacommunities.org/id/metropolitan-district-council/leeds,Leeds City Council,30/11/2016,Adult Social Care,Services For Adults Under 65 Mental/Dis,Third Party Payments,Residential,580,16-Nov-2016,1611-00161,0.00,1459.20,R,Acre Green,No
Http://opendatacommunities.org/id/metropolitan-district-council/leeds,Leeds City Council,30/11/2016,Adult Social Care,Services For Older People - 65 And Over,Third Party Payments,Nursing Home,570,16-Nov-2016,1611-00162,0.00,16922.40,R,Acre Green,No
Http://opendatacommunities.org/id/metropolitan-district-council/leeds,Leeds City Council,30/11/2016,Adult Social Care,Services For Older People - 65 And Over,Third Party Payments,Nursing Care Dementia,574,16-Nov-2016,1611-00163,0.00,49.76,R,Acre Green,No
Http://opendatacommunities.org/id/metropolitan-district-council/leeds,Leeds City Council,30/11/2016,Adult Social Care,Services For Older People - 65 And Over,Third Party Payments,Residential,580,16-Nov-2016,1611-00164,0.00,7897.91,R,Acre Green,No
Http://opendatacommunities.org/id/metropolitan-district-council/leeds,Leeds City Council,30/11/2016,Adult Social Care,Services For Older People Under 65 P/Dis,Third Party Payments,Nursing Home,570,16-Nov-2016,1611-00165,0.00,5159.84,R,Acre Green,No
Http://opendatacommunities.org/id/metropolitan-district-council/leeds,Leeds City Council,30/11/2016,Adult Social Care,Services For Older People Under 65 P/Dis,Third Party Payments,Residential,580,16-Nov-2016,1611-00166,0.00,1678.80,R,Acre Green,No
Http://opendatacommunities.org/id/metropolitan-district-council/leeds,Leeds City Council,30/11/2016,Adult Social Care,Services For Adults Under 65 Mental/Dis,Third Party Payments,Fees - Level 4,520,24-Nov-2016,1611-00167,0.00,350.00,R,Action First Recruitment Ltd,No
Http://opendatacommunities.org/id/metropolitan-district-council/leeds,Leeds City Council,30/11/2016,Adult Social Care,Services For Adults Under 65 Mental/Dis,Third Party Payments,Fees - Level 4,520,24-Nov-2016,1611-00168,0.00,1050.00,R,Action First Recruitment Ltd,No
Http://opendatacommunities.org/id/metropolitan-district-council/leeds,Leeds City Council,30/11/2016,Adult Social Care,Services For Adults Under 65 Mental/Dis,Third Party Payments,Fees - Level 4,520,24-Nov-2016,1611-00169,0.00,350.00,R,Action First Recruitment Ltd,No
Http://opendatacommunities.org/id/metropolitan-district-council/leeds,Leeds City Council,30/11/2016,Adult Social Care,Services For Adults Under 65 Mental/Dis,Third Party Payments,Fees - Level 4,520,24-Nov-2016,1611-00170,0.00,700.00,R,Action First Recruitment Ltd,No
Http://opendatacommunities.org/id/metropolitan-district-council/leeds,Leeds City Council,30/11/2016,Adult Social Care,Services For Adults Under 65 Mental/Dis,Third Party Payments,Fees - Level 4,520,24-Nov-2016,1611-00171,0.00,2450.00,R,Action First Recruitment Ltd,No
Http://opendatacommunities.org/id/metropolitan-district-council/leeds,Leeds City Council,30/11/2016,Adult Social Care,Services For Adults Under 65 Mental/Dis,Third Party Payments,Fees - Level 4,520,24-Nov-2016,1611-00172,0.00,350.00,R,Action First Recruitment Ltd,No
Http://opendatacommunities.org/id/metropolitan-district-council/leeds,Leeds City Council,30/11/2016,Adult Social Care,Services For Adults Under 65 Mental/Dis,Third Party Payments,Fees - Level 4,520,24-Nov-2016,1611-00173,0.00,700.00,R,Action First Recruitment Ltd,No
Http://opendatacommunities.org/id/metropolitan-district-council/leeds,Leeds City Council,30/11/2016,Adult Social Care,Services For Adults Under 65 Mental/Dis,Third Party Payments,Fees - Level 4,520,24-Nov-2016,1611-00174,0.00,700.00,R,Action First Recruitment Ltd,No
Http://opendatacommunities.org/id/metropolitan-district-council/leeds,Leeds City Council,30/11/2016,Adult Social Care,Services For Adults Under 65 Mental/Dis,Third Party Payments,Fees - Level 4,520,24-Nov-2016,1611-00175,0.00,1400.00,R,Action First Recruitment Ltd,No
Http://opendatacommunities.org/id/metropolitan-district-council/leeds,Leeds City Council,30/11/2016,Adult Social Care,Services For Adults Under 65 Mental/Dis,Third Party Payments,Fees - Level 4,520,24-Nov-2016,1611-00176,0.00,350.00,R,Action First Recruitment Ltd,No
Http://opendatacommunities.org/id/metropolitan-district-council/leeds,Leeds City Council,30/11/2016,Adult Social Care,Services For Adults Under 65 Mental/Dis,Third Party Payments,Fees - Level 4,520,24-Nov-2016,1611-00177,0.00,350.00,R,Action First Recruitment Ltd,No
Http://opendatacommunities.org/id/metropolitan-district-council/leeds,Leeds City Council,30/11/2016,Adult Social Care,Services For Adults Under 65 Mental/Dis,Third Party Payments,Fees - Level 4,520,24-Nov-2016,1611-00178,0.00,1400.00,R,Action First Recruitment Ltd,No
Http://opendatacommunities.org/id/metropolitan-district-council/leeds,Leeds City Council,30/11/2016,Adult Social Care,Services For Adults Under 65 Mental/Dis,Third Party Payments,Fees - Level 4,520,24-Nov-2016,1611-00179,0.00,350.00,R,Action First Recruitment Ltd,No
Http://opendatacommunities.org/id/metropolitan-district-council/leeds,Leeds City Council,30/11/2016,Adult Social Care,Services For Adults Under 65 Mental/Dis,Third Party Payments,Fees - Level 4,520,24-Nov-2016,1611-00180,0.00,700.00,R,Action First Recruitment Ltd,No
Http://opendatacommunities.org/id/metropolitan-district-council/leeds,Leeds City Council,30/11/2016,Adult Social Care,Services For Adults Under 65 Mental/Dis,Third Party Payments,Fees - Level 4,520,24-Nov-2016,1611-00181,0.00,1400.00,R,Action First Recruitment Ltd,No
Http://opendatacommunities.org/id/metropolitan-district-council/leeds,Leeds City Council,30/11/2016,Adult Social Care,Services For Adults Under 65 Mental/Dis,Third Party Payments,Fees - Level 4,520,24-Nov-2016,1611-00182,0.00,350.00,R,Action First Recruitment Ltd,No
Http://opendatacommunities.org/id/metropolitan-district-council/leeds,Leeds City Council,30/11/2016,Adult Social Care,Services For Adults Under 65 Mental/Dis,Third Party Payments,Fees - Level 4,520,24-Nov-2016,1611-00183,0.00,350.00,R,Action First Recruitment Ltd,No
Http://opendatacommunities.org/id/metropolitan-district-council/leeds,Leeds City Council,30/11/2016,Adult Social Care,Services For Adults Under 65 Mental/Dis,Third Party Payments,Fees - Level 4,520,24-Nov-2016,1611-00184,0.00,350.00,R,Action First Recruitment Ltd,No
Http://opendatacommunities.org/id/metropolitan-district-council/leeds,Leeds City Council,30/11/2016,Adult Social Care,Services For Adults Under 65 Mental/Dis,Third Party Payments,Fees - Level 4,520,24-Nov-2016,1611-00185,0.00,350.00,R,Action First Recruitment Ltd,No
Http://opendatacommunities.org/id/metropolitan-district-council/leeds,Leeds City Council,30/11/2016,Adult Social Care,Services For Adults Under 65 Mental/Dis,Third Party Payments,Fees - Level 4,520,25-Nov-2016,1611-00186,0.00,1750.00,R,Action First Recruitment Ltd,No
Http://opendatacommunities.org/id/metropolitan-district-council/leeds,Leeds City Council,30/11/2016,Adult Social Care,Services For Adults Under 65 Mental/Dis,Third Party Payments,Fees - Level 4,520,25-Nov-2016,1611-00187,0.00,350.00,R,Action First Recruitment Ltd,No
Http://opendatacommunities.org/id/metropolitan-district-council/leeds,Leeds City Council,30/11/2016,Adult Social Care,Services For Adults Under 65 Mental/Dis,Third Party Payments,Fees - Level 4,520,25-Nov-2016,1611-00188,0.00,700.00,R,Action First Recruitment Ltd,No
Http://opendatacommunities.org/id/metropolitan-district-council/leeds,Leeds City Council,30/11/2016,Adult Social Care,Services For Adults Under 65 Mental/Dis,Third Party Payments,Fees - Level 4,520,25-Nov-2016,1611-00189,0.00,350.00,R,Action First Recruitment Ltd,No
Http://opendatacommunities.org/id/metropolitan-district-council/leeds,Leeds City Council,30/11/2016,Adult Social Care,Services For Adults Under 65 Mental/Dis,Third Party Payments,Fees - Level 4,520,25-Nov-2016,1611-00190,0.00,700.00,R,Action First Recruitment Ltd,No
Http://opendatacommunities.org/id/metropolitan-district-council/leeds,Leeds City Council,30/11/2016,Adult Social Care,Services For Adults Under 65 Mental/Dis,Third Party Payments,Fees - Level 4,520,25-Nov-2016,1611-00191,0.00,350.00,R,Action First Recruitment Ltd,No
Http://opendatacommunities.org/id/metropolitan-district-council/leeds,Leeds City Council,30/11/2016,Adult Social Care,Services For Adults Under 65 Mental/Dis,Third Party Payments,Fees - Level 4,520,25-Nov-2016,1611-00192,0.00,350.00,R,Action First Recruitment Ltd,No
Http://opendatacommunities.org/id/metropolitan-district-council/leeds,Leeds City Council,30/11/2016,Adult Social Care,Services For Adults Under 65 Mental/Dis,Third Party Payments,Fees - Level 4,520,25-Nov-2016,1611-00193,0.00,700.00,R,Action First Recruitment Ltd,No
Http://opendatacommunities.org/id/metropolitan-district-council/leeds,Leeds City Council,30/11/2016,Adult Social Care,Services For Adults Under 65 Mental/Dis,Third Party Payments,Fees - Level 4,520,25-Nov-2016,1611-00194,0.00,1400.00,R,Action First Recruitment Ltd,No
Http://opendatacommunities.org/id/metropolitan-district-council/leeds,Leeds City Council,30/11/2016,Adult Social Care,Services For Adults Under 65 Mental/Dis,Third Party Payments,Fees - Level 4,520,25-Nov-2016,1611-00195,0.00,350.00,R,Action First Recruitment Ltd,No
Http://opendatacommunities.org/id/metropolitan-district-council/leeds,Leeds City Council,30/11/2016,Adult Social Care,Services For Older People Under 65 P/Dis,Third Party Payments,Payments To Voluntary Organisations,561,18-Nov-2016,1611-00196,0.00,116838.00,R,Action For Blind People,No
Http://opendatacommunities.org/id/metropolitan-district-council/leeds,Leeds City Council,30/11/2016,Childrens Services,Safeguarding Targeted & Specialist,Third Party Payments,Independent Fostering Agencies,509,10-Nov-2016,1611-00197,0.00,4776.48,R,Action For Children,No
Http://opendatacommunities.org/id/metropolitan-district-council/leeds,Leeds City Council,30/11/2016,Childrens Services,Safeguarding Targeted & Specialist,Third Party Payments,Independent Fostering Agencies,509,10-Nov-2016,1611-00198,0.00,4776.48,R,Action For Children,No
Http://opendatacommunities.org/id/metropolitan-district-council/leeds,Leeds City Council,30/11/2016,Childrens Services,Safeguarding Targeted & Specialist,Third Party Payments,Independent Fostering Agencies,509,10-Nov-2016,1611-00199,0.00,4776.48,R,Action For Children,No
Http://opendatacommunities.org/id/metropolitan-district-council/leeds,Leeds City Council,30/11/2016,Childrens Services,Safeguarding Targeted & Specialist,Third Party Payments,Independent Fostering Agencies,509,10-Nov-2016,1611-00200,0.00,5163.67,R,Action For Children,No
Http://opendatacommunities.org/id/metropolitan-district-council/leeds,Leeds City Council,30/11/2016,Childrens Services,Safeguarding Targeted & Specialist,Third Party Payments,Independent Fostering Agencies,509,10-Nov-2016,1611-00201,0.00,4776.48,R,Action For Children,No
Http://opendatacommunities.org/id/metropolitan-district-council/leeds,Leeds City Council,30/11/2016,Childrens Services,Safeguarding Targeted & Specialist,Third Party Payments,Interagency Adoptions,559,15-Nov-2016,1611-00202,0.00,18000.00,R,Action For Children,No
Http://opendatacommunities.org/id/metropolitan-district-council/leeds,Leeds City Council,30/11/2016,Environment & Housing,Waste Management,Supplies and Services,Recycling & Reuse Charges,234,08-Nov-2016,1611-00203,0.00,6685.93,R,Acumen Waste Services Ltd,No
Http://opendatacommunities.org/id/metropolitan-district-council/leeds,Leeds City Council,30/11/2016,Environment & Housing,Waste Management,Supplies and Services,Recycling & Reuse Charges,234,08-Nov-2016,1611-00204,0.00,5729.17,R,Acumen Waste Services Ltd,No
Http://opendatacommunities.org/id/metropolitan-district-council/leeds,Leeds City Council,30/11/2016,Environment & Housing,Environmental Action (South),Premises,Removal Of Workplace Waste,126,09-Nov-2016,1611-00205,0.00,220.00,R,Acumen Waste Services Ltd,No
Http://opendatacommunities.org/id/metropolitan-district-council/leeds,Leeds City Council,30/11/2016,Environment & Housing,Environmental Action (South),Premises,Removal Of Workplace Waste,126,09-Nov-2016,1611-00206,0.00,220.00,R,Acumen Waste Services Ltd,No
Http://opendatacommunities.org/id/metropolitan-district-council/leeds,Leeds City Council,30/11/2016,Environment & Housing,Environmental Action (South),Premises,Removal Of Workplace Waste,126,09-Nov-2016,1611-00207,0.00,220.00,R,Acumen Waste Services Ltd,No
Http://opendatacommunities.org/id/metropolitan-district-council/leeds,Leeds City Council,30/11/2016,Environment & Housing,Environmental Action (South),Premises,Removal Of Workplace Waste,126,09-Nov-2016,1611-00208,0.00,110.00,R,Acumen Waste Services Ltd,No
Http://opendatacommunities.org/id/metropolitan-district-council/leeds,Leeds City Council,30/11/2016,Environment & Housing,Environmental Action (South),Premises,Removal Of Workplace Waste,126,09-Nov-2016,1611-00209,0.00,110.00,R,Acumen Waste Services Ltd,No
Http://opendatacommunities.org/id/metropolitan-district-council/leeds,Leeds City Council,30/11/2016,Environment & Housing,Environmental Action (South),Premises,Removal Of Workplace Waste,126,09-Nov-2016,1611-00210,0.00,220.00,R,Acumen Waste Services Ltd,No
Http://opendatacommunities.org/id/metropolitan-district-council/leeds,Leeds City Council,30/11/2016,Environment & Housing,Environmental Action (South),Premises,Removal Of Workplace Waste,126,09-Nov-2016,1611-00211,0.00,110.00,R,Acumen Waste Services Ltd,No
Http://opendatacommunities.org/id/metropolitan-district-council/leeds,Leeds City Council,30/11/2016,Environment & Housing,Environmental Action (South),Premises,Removal Of Workplace Waste,126,09-Nov-2016,1611-00212,0.00,440.00,R,Acumen Waste Services Ltd,No
Http://opendatacommunities.org/id/metropolitan-district-council/leeds,Leeds City Council,30/11/2016,Environment & Housing,Environmental Action (South),Premises,Removal Of Workplace Waste,126,09-Nov-2016,1611-00213,0.00,220.00,R,Acumen Waste Services Ltd,No
Http://opendatacommunities.org/id/metropolitan-district-council/leeds,Leeds City Council,30/11/2016,Environment & Housing,Environmental Action (South),Premises,Removal Of Workplace Waste,126,09-Nov-2016,1611-00214,0.00,220.00,R,Acumen Waste Services Ltd,No
Http://opendatacommunities.org/id/metropolitan-district-council/leeds,Leeds City Council,30/11/2016,Environment & Housing,Environmental Action (South),Premises,Removal Of Workplace Waste,126,11-Nov-2016,1611-00215,0.00,110.00,R,Acumen Waste Services Ltd,No
Http://opendatacommunities.org/id/metropolitan-district-council/leeds,Leeds City Council,30/11/2016,Environment & Housing,Environmental Action (South),Premises,Removal Of Workplace Waste,126,11-Nov-2016,1611-00216,0.00,220.00,R,Acumen Waste Services Ltd,No
Http://opendatacommunities.org/id/metropolitan-district-council/leeds,Leeds City Council,30/11/2016,Environment & Housing,Environmental Action (South),Premises,Removal Of Workplace Waste,126,21-Nov-2016,1611-00217,0.00,110.00,R,Acumen Waste Services Ltd,No
Http://opendatacommunities.org/id/metropolitan-district-council/leeds,Leeds City Council,30/11/2016,Environment & Housing,Environmental Action (South),Premises,Removal Of Workplace Waste,126,21-Nov-2016,1611-00218,0.00,110.00,R,Acumen Waste Services Ltd,No
Http://opendatacommunities.org/id/metropolitan-district-council/leeds,Leeds City Council,30/11/2016,Environment & Housing,Environmental Action (South),Premises,Removal Of Workplace Waste,126,21-Nov-2016,1611-00219,0.00,110.00,R,Acumen Waste Services Ltd,No
Http://opendatacommunities.org/id/metropolitan-district-council/leeds,Leeds City Council,30/11/2016,Environment & Housing,Waste Management,Supplies and Services,Recycling & Reuse Charges,234,29-Nov-2016,1611-00220,0.00,6697.99,R,Acumen Waste Services Ltd,No
Http://opendatacommunities.org/id/metropolitan-district-council/leeds,Leeds City Council,30/11/2016,Environment & Housing,Waste Management,Supplies and Services,Recycling & Reuse Charges,234,29-Nov-2016,1611-00221,0.00,248.57,R,Acumen Waste Services Ltd,No
Http://opendatacommunities.org/id/metropolitan-district-council/leeds,Leeds City Council,30/11/2016,Civic Enterprise Leeds,Business Support Centre,Supplies and Services,Operational Materials,205,09-Nov-2016,1611-00222,0.00,645.00,R,Ad3 Envelope Printers Limited,No
Http://opendatacommunities.org/id/metropolitan-district-council/leeds,Leeds City Council,30/11/2016,Civic Enterprise Leeds,Business Support Centre,Supplies and Services,Other Hired And Contracted Services,265,10-Nov-2016,1611-00223,0.00,96.44,R,Ad3 Envelope Printers Limited,No
Http://opendatacommunities.org/id/metropolitan-district-council/leeds,Leeds City Council,30/11/2016,Civic Enterprise Leeds,Business Support Centre,Supplies and Services,Operational Materials,205,10-Nov-2016,1611-00224,0.00,645.00,R,Ad3 Envelope Printers Limited,No
Http://opendatacommunities.org/id/metropolitan-district-council/leeds,Leeds City Council,30/11/2016,Civic Enterprise Leeds,Business Support Centre,Supplies and Services,Other Hired And Contracted Services,265,15-Nov-2016,1611-00225,0.00,155.70,R,Ad3 Envelope Printers Limited,No
Http://opendatacommunities.org/id/metropolitan-district-council/leeds,Leeds City Council,30/11/2016,Civic Enterprise Leeds,Business Support Centre,Supplies and Services,Other Hired And Contracted Services,265,18-Nov-2016,1611-00226,0.00,67.38,R,Ad3 Envelope Printers Limited,No
Http://opendatacommunities.org/id/metropolitan-district-council/leeds,Leeds City Council,30/11/2016,Adult Social Care,Social Services Support Services,Employees,Training Costs,71,23-Nov-2016,1611-00227,0.00,770.00,R,Adam Boyes,No
Http://opendatacommunities.org/id/metropolitan-district-council/leeds,Leeds City Council,30/11/2016,Insurance,Insurance,Supplies and Services,Insurance Claims,248,10-Nov-2016,1611-00228,0.00,2774.00,R,Adam Law Solicitors,No
Http://opendatacommunities.org/id/metropolitan-district-council/leeds,Leeds City Council,30/11/2016,Insurance,Insurance,Supplies and Services,Insurance Claims,248,18-Nov-2016,1611-00229,0.00,30.00,R,REDACTED PERSONAL DATA,No
Http://opendatacommunities.org/id/metropolitan-district-council/leeds,Leeds City Council,30/11/2016,City Development,Libraries  Arts & Heritage,Supplies and Services,Operational Furniture And Equipment,203,28-Nov-2016,1611-00230,0.00,730.00,R,Adams Agencies Ltd,No
Http://opendatacommunities.org/id/metropolitan-district-council/leeds,Leeds City Council,30/11/2016,Adult Social Care,Services For Older People - 65 And Over,Third Party Payments,Nursing Home,570,16-Nov-2016,1611-00231,0.00,2120.00,R,Adbolton Hall,No
Http://opendatacommunities.org/id/metropolitan-district-council/leeds,Leeds City Council,30/11/2016,Environment & Housing,Environmental Health,Capital,Other Costs,7,04-Nov-2016,1611-00232,0.00,627.00,C,Addleshaw Goddard Llp,No
Http://opendatacommunities.org/id/metropolitan-district-council/leeds,Leeds City Council,30/11/2016,Environment & Housing,Housing Leeds Service,Capital,Internal Fees,6,04-Nov-2016,1611-00233,0.00,2762.50,C,Addleshaw Goddard Llp,No
Http://opendatacommunities.org/id/metropolitan-district-council/leeds,Leeds City Council,30/11/2016,Environment & Housing,Parks and Countryside,Supplies and Services,Other Hired And Contracted Services,265,09-Nov-2016,1611-00234,0.00,6342.00,R,Addlestone & Partners,No
Http://opendatacommunities.org/id/metropolitan-district-council/leeds,Leeds City Council,30/11/2016,Public Health,Public Health,Third Party Payments,Public Health Commissioned Services,526,25-Nov-2016,1611-00235,0.00,3229.84,R,Addlestone & Partners,No
Http://opendatacommunities.org/id/metropolitan-district-council/leeds,Leeds City Council,30/11/2016,Central & Corporate,Technology  ,Employees,Agency Staff,8,21-Oct-2016,1611-00236,0.00,2780.00,R,Adecco Alfred Marks,Yes
Http://opendatacommunities.org/id/metropolitan-district-council/leeds,Leeds City Council,30/11/2016,Central & Corporate,Technology  ,Employees,Agency Staff,8,21-Oct-2016,1611-00237,0.00,2508.60,R,Adecco Alfred Marks,Yes
Http://opendatacommunities.org/id/metropolitan-district-council/leeds,Leeds City Council,30/11/2016,Central & Corporate,Technology  ,Employees,Agency Staff,8,21-Oct-2016,1611-00238,0.00,7820.00,R,Adecco Alfred Marks,Yes
Http://opendatacommunities.org/id/metropolitan-district-council/leeds,Leeds City Council,30/11/2016,Childrens Services,Safeguarding Targeted & Specialist,Supplies and Services,Food & Drink,231,01-Nov-2016,1611-00239,0.00,96.00,R,Adel Quaker Meeting,No
Http://opendatacommunities.org/id/metropolitan-district-council/leeds,Leeds City Council,30/11/2016,Adult Social Care,Services For Older People - 65 And Over,Third Party Payments,Residential,580,16-Nov-2016,1611-00240,0.00,1233.08,R,Adeline Lodge,No
Http://opendatacommunities.org/id/metropolitan-district-council/leeds,Leeds City Council,30/11/2016,Adult Social Care,Services For Older People - 65 And Over,Third Party Payments,Nursing Home,570,16-Nov-2016,1611-00241,0.00,1122.36,R,Aden House,No
Http://opendatacommunities.org/id/metropolitan-district-council/leeds,Leeds City Council,30/11/2016,Environment & Housing,Leeds Building Services,Supplies and Services,Operational Materials,205,15-Nov-2016,1611-00242,0.00,57.73,R,Adi Global,No
Http://opendatacommunities.org/id/metropolitan-district-council/leeds,Leeds City Council,30/11/2016,Environment & Housing,Leeds Building Services,Supplies and Services,Operational Materials,205,15-Nov-2016,1611-00243,0.00,57.73,R,Adi Global,No
Http://opendatacommunities.org/id/metropolitan-district-council/leeds,Leeds City Council,30/11/2016,Environment & Housing,Leeds Building Services,Supplies and Services,Operational Materials,205,15-Nov-2016,1611-00244,0.00,29.68,R,Adi Global,No
Http://opendatacommunities.org/id/metropolitan-district-council/leeds,Leeds City Council,30/11/2016,Environment & Housing,Leeds Building Services,Supplies and Services,Operational Materials,205,15-Nov-2016,1611-00245,0.00,29.68,R,Adi Global,No
Http://opendatacommunities.org/id/metropolitan-district-council/leeds,Leeds City Council,30/11/2016,Environment & Housing,Leeds Building Services,Supplies and Services,Operational Materials,205,15-Nov-2016,1611-00246,0.00,2587.14,R,Adi Global,No
Http://opendatacommunities.org/id/metropolitan-district-council/leeds,Leeds City Council,30/11/2016,Environment & Housing,Leeds Building Services,Supplies and Services,Operational Materials,205,21-Nov-2016,1611-00247,0.00,56.11,R,Adi Global,No
Http://opendatacommunities.org/id/metropolitan-district-council/leeds,Leeds City Council,30/11/2016,Environment & Housing,Leeds Building Services,Supplies and Services,Operational Materials,205,28-Nov-2016,1611-00248,0.00,17.55,R,Adi Global,No
Http://opendatacommunities.org/id/metropolitan-district-council/leeds,Leeds City Council,30/11/2016,Environment & Housing,Leeds Building Services,Supplies and Services,Operational Materials,205,28-Nov-2016,1611-00249,0.00,65.42,R,Adi Global,No
Http://opendatacommunities.org/id/metropolitan-district-council/leeds,Leeds City Council,30/11/2016,Environment & Housing,Leeds Building Services,Supplies and Services,Operational Materials,205,30-Nov-2016,1611-00250,0.00,5.88,R,Adi Global,No
Http://opendatacommunities.org/id/metropolitan-district-council/leeds,Leeds City Council,30/11/2016,Environment & Housing,Leeds Building Services,Supplies and Services,Operational Materials,205,30-Nov-2016,1611-00251,0.00,19.14,R,Adi Global,No
Http://opendatacommunities.org/id/metropolitan-district-council/leeds,Leeds City Council,30/11/2016,Environment & Housing,Community Safety  ,Supplies and Services,Other Hired And Contracted Services,265,12-Oct-2016,1611-00252,0.00,60.00,R,Adi-Gardiner Ltd,Yes
Http://opendatacommunities.org/id/metropolitan-district-council/leeds,Leeds City Council,30/11/2016,Environment & Housing,Community Safety  ,Supplies and Services,Other Hired And Contracted Services,265,12-Oct-2016,1611-00253,0.00,34.00,R,Adi-Gardiner Ltd,Yes
Http://opendatacommunities.org/id/metropolitan-district-council/leeds,Leeds City Council,30/11/2016,Environment & Housing,Community Safety  ,Supplies and Services,Other Hired And Contracted Services,265,19-Oct-2016,1611-00254,0.00,451.52,R,Adi-Gardiner Ltd,Yes
Http://opendatacommunities.org/id/metropolitan-district-council/leeds,Leeds City Council,30/11/2016,Childrens Services,Safeguarding Targeted & Specialist,Third Party Payments,Independent Fostering Agencies,509,04-Nov-2016,1611-00255,0.00,2850.00,R,Adolescent And Childrens Trust,No
Http://opendatacommunities.org/id/metropolitan-district-council/leeds,Leeds City Council,30/11/2016,Childrens Services,Safeguarding Targeted & Specialist,Third Party Payments,Independent Fostering Agencies,509,04-Nov-2016,1611-00256,0.00,2850.00,R,Adolescent And Childrens Trust,No
Http://opendatacommunities.org/id/metropolitan-district-council/leeds,Leeds City Council,30/11/2016,Childrens Services,Safeguarding Targeted & Specialist,Third Party Payments,Independent Fostering Agencies,509,04-Nov-2016,1611-00257,0.00,2860.00,R,Adolescent And Childrens Trust,No
Http://opendatacommunities.org/id/metropolitan-district-council/leeds,Leeds City Council,30/11/2016,Childrens Services,Safeguarding Targeted & Specialist,Third Party Payments,Independent Fostering Agencies,509,04-Nov-2016,1611-00258,0.00,3000.00,R,Adolescent And Childrens Trust,No
Http://opendatacommunities.org/id/metropolitan-district-council/leeds,Leeds City Council,30/11/2016,Childrens Services,Safeguarding Targeted & Specialist,Third Party Payments,Independent Fostering Agencies,509,09-Nov-2016,1611-00259,0.00,2549.00,R,Adolescent And Childrens Trust,No
Http://opendatacommunities.org/id/metropolitan-district-council/leeds,Leeds City Council as Accountable Body,30/11/2016,Social Services Pooled Budgets,Jcs For People With Learning Disabilitie,Third Party Payments,Residential,580,17-Nov-2016,1611-00260,0.00,2609.36,R,Adrian House,No
Http://opendatacommunities.org/id/metropolitan-district-council/leeds,Leeds City Council as Accountable Body,30/11/2016,Social Services Pooled Budgets,Jcs For People With Learning Disabilitie,Third Party Payments,Residential,580,17-Nov-2016,1611-00261,0.00,2609.36,R,Adrian House,No
Http://opendatacommunities.org/id/metropolitan-district-council/leeds,Leeds City Council,30/11/2016,Civic Enterprise Leeds,Corporate Property Management,Premises,Maintenance Of Buildings,101,04-Nov-2016,1611-00262,0.00,350.00,R,Adt Fire And Security Plc,No
Http://opendatacommunities.org/id/metropolitan-district-council/leeds,Leeds City Council,30/11/2016,Civic Enterprise Leeds,Corporate Property Management,Premises,Maintenance Of Buildings,101,10-Nov-2016,1611-00263,0.00,148.44,R,Adt Fire And Security Plc,No
Http://opendatacommunities.org/id/metropolitan-district-council/leeds,Leeds City Council,30/11/2016,Childrens Services,Learning Skills & Universal,Supplies and Services,Other Hired And Contracted Services,265,17-Nov-2016,1611-00264,0.00,244.87,R,Adt Fire And Security Plc,No
Http://opendatacommunities.org/id/metropolitan-district-council/leeds,Leeds City Council,30/11/2016,Childrens Services,Learning Skills & Universal,Supplies and Services,Other Hired And Contracted Services,265,17-Nov-2016,1611-00265,0.00,-191.35,R,Adt Fire And Security Plc,No
Http://opendatacommunities.org/id/metropolitan-district-council/leeds,Leeds City Council,30/11/2016,Strategic Landlord,Housing Management,Supplies and Services,Other Hired And Contracted Services,265,18-Nov-2016,1611-00266,0.00,246.00,R,Adt Fire And Security Plc,No
Http://opendatacommunities.org/id/metropolitan-district-council/leeds,Leeds City Council,30/11/2016,Strategic Landlord,Housing Management,Supplies and Services,Other Hired And Contracted Services,265,18-Nov-2016,1611-00267,0.00,565.07,R,Adt Fire And Security Plc,No
Http://opendatacommunities.org/id/metropolitan-district-council/leeds,Leeds City Council as Accountable Body,30/11/2016,Social Services Pooled Budgets,Jcs For People With Learning Disabilitie,Third Party Payments,Sheltered Accommodation,569,04-Nov-2016,1611-00268,0.00,1332.20,R,Adult Placement Services,No
Http://opendatacommunities.org/id/metropolitan-district-council/leeds,Leeds City Council as Accountable Body,30/11/2016,Social Services Pooled Budgets,Jcs For People With Learning Disabilitie,Third Party Payments,Sheltered Accommodation,569,18-Nov-2016,1611-00269,0.00,823.81,R,Adult Placement Services,No
Http://opendatacommunities.org/id/metropolitan-district-council/leeds,Leeds City Council,30/11/2016,Adult Social Care,Services For Adults Under 65 Mental/Dis,Third Party Payments,Nursing Home,570,16-Nov-2016,1611-00270,0.00,1541.96,R,Adult Supported Living Ltd,No
Http://opendatacommunities.org/id/metropolitan-district-council/leeds,Leeds City Council,30/11/2016,City Development,Libraries  Arts & Heritage,Supplies and Services,External Audit Fees,261,11-Nov-2016,1611-00271,0.00,85.00,R,Advance Stocks Ltd,No
Http://opendatacommunities.org/id/metropolitan-district-council/leeds,Leeds City Council,30/11/2016,City Development,Libraries  Arts & Heritage,Supplies and Services,External Audit Fees,261,25-Nov-2016,1611-00272,0.00,85.00,R,Advance Stocks Ltd,No
Http://opendatacommunities.org/id/metropolitan-district-council/leeds,Leeds City Council,30/11/2016,City Development,Libraries  Arts & Heritage,Supplies and Services,External Audit Fees,261,25-Nov-2016,1611-00273,0.00,85.00,R,Advance Stocks Ltd,No
Http://opendatacommunities.org/id/metropolitan-district-council/leeds,Leeds City Council,30/11/2016,City Development,Recreation,Supplies and Services,External Audit Fees,261,25-Nov-2016,1611-00274,0.00,235.00,R,Advance Stocks Ltd,No
Http://opendatacommunities.org/id/metropolitan-district-council/leeds,Leeds City Council,30/11/2016,City Development,Recreation,Supplies and Services,External Audit Fees,261,25-Nov-2016,1611-00275,0.00,85.00,R,Advance Stocks Ltd,No
Http://opendatacommunities.org/id/metropolitan-district-council/leeds,Leeds City Council,30/11/2016,Adult Social Care,Social Services Support Services,Employees,Training Costs,71,25-Nov-2016,1611-00276,0.00,2865.00,R,Advinia Healthcare Ltd,No
Http://opendatacommunities.org/id/metropolitan-district-council/leeds,Leeds City Council as Accountable Body,30/11/2016,Social Services Pooled Budgets,Jcs For People With Learning Disabilitie,Third Party Payments,Residential,580,16-Nov-2016,1611-00277,0.00,20213.48,R,Advitam Ltd,No
Http://opendatacommunities.org/id/metropolitan-district-council/leeds,Leeds City Council as Accountable Body,30/11/2016,Social Services Pooled Budgets,Jcs For People With Learning Disabilitie,Third Party Payments,Other Agency Services,561,04-Nov-2016,1611-00278,0.00,6567.66,R,Advonet,No
Http://opendatacommunities.org/id/metropolitan-district-council/leeds,Leeds City Council as Accountable Body,30/11/2016,Social Services Pooled Budgets,Jcs For People With Learning Disabilitie,Third Party Payments,Other Agency Services,561,04-Nov-2016,1611-00279,0.00,11372.30,R,Advonet,No
Http://opendatacommunities.org/id/metropolitan-district-council/leeds,Leeds City Council,30/11/2016,Adult Social Care,Services For Older People - 65 And Over,Third Party Payments,Payments To Voluntary Organisations,561,11-Nov-2016,1611-00280,0.00,83435.70,R,Advonet,No
Http://opendatacommunities.org/id/metropolitan-district-council/leeds,Leeds City Council,30/11/2016,Adult Social Care,Services For Adults Under 65 Mental/Dis,Third Party Payments,Payments To Voluntary Organisations,561,22-Nov-2016,1611-00281,0.00,7868.55,R,Advonet,No
Http://opendatacommunities.org/id/metropolitan-district-council/leeds,Leeds City Council,30/11/2016,Adult Social Care,Services For Adults Under 65 Mental/Dis,Third Party Payments,Payments To Voluntary Organisations,561,22-Nov-2016,1611-00282,0.00,2095.27,R,Advonet,No
Http://opendatacommunities.org/id/metropolitan-district-council/leeds,Leeds City Council,30/11/2016,Adult Social Care,Services For Adults Under 65 Mental/Dis,Third Party Payments,Payments To Voluntary Organisations,561,23-Nov-2016,1611-00283,0.00,44.91,R,Advonet,No
Http://opendatacommunities.org/id/metropolitan-district-council/leeds,Leeds City Council,30/11/2016,City Development,Economic Development,Capital,Other Costs,7,02-Nov-2016,1611-00284,0.00,10033.00,C,Aecom Limited,No
Http://opendatacommunities.org/id/metropolitan-district-council/leeds,Leeds City Council,30/11/2016,City Development,Economic Development,Capital,Other Costs,7,25-Nov-2016,1611-00285,0.00,13132.00,C,Aecom Limited,No
Http://opendatacommunities.org/id/metropolitan-district-council/leeds,Leeds City Council,30/11/2016,Insurance,Insurance,Supplies and Services,Insurance Claims,248,07-Nov-2016,1611-00286,0.00,720.00,R,Aequitas Legal Solicitors Limited,No
Http://opendatacommunities.org/id/metropolitan-district-council/leeds,Leeds City Council as Accountable Body,30/11/2016,Social Services Pooled Budgets,Jcs For People With Learning Disabilitie,Third Party Payments,Home Care,568,02-Nov-2016,1611-00287,0.00,360.00,R,Affinity Trust,No
Http://opendatacommunities.org/id/metropolitan-district-council/leeds,Leeds City Council as Accountable Body,30/11/2016,Social Services Pooled Budgets,Jcs For People With Learning Disabilitie,Third Party Payments,Home Care,568,02-Nov-2016,1611-00288,0.00,79.90,R,Affinity Trust,No
Http://opendatacommunities.org/id/metropolitan-district-council/leeds,Leeds City Council as Accountable Body,30/11/2016,Social Services Pooled Budgets,Jcs For People With Learning Disabilitie,Third Party Payments,Home Care,568,02-Nov-2016,1611-00289,0.00,2025.00,R,Affinity Trust,No
Http://opendatacommunities.org/id/metropolitan-district-council/leeds,Leeds City Council as Accountable Body,30/11/2016,Social Services Pooled Budgets,Jcs For People With Learning Disabilitie,Third Party Payments,Home Care,568,02-Nov-2016,1611-00290,0.00,926.84,R,Affinity Trust,No
Http://opendatacommunities.org/id/metropolitan-district-council/leeds,Leeds City Council as Accountable Body,30/11/2016,Social Services Pooled Budgets,Jcs For People With Learning Disabilitie,Third Party Payments,Home Care,568,02-Nov-2016,1611-00291,0.00,322.50,R,Affinity Trust,No
Http://opendatacommunities.org/id/metropolitan-district-council/leeds,Leeds City Council as Accountable Body,30/11/2016,Social Services Pooled Budgets,Jcs For People With Learning Disabilitie,Third Party Payments,Home Care,568,02-Nov-2016,1611-00292,0.00,1334.33,R,Affinity Trust,No
Http://opendatacommunities.org/id/metropolitan-district-council/leeds,Leeds City Council as Accountable Body,30/11/2016,Social Services Pooled Budgets,Jcs For People With Learning Disabilitie,Third Party Payments,Home Care,568,02-Nov-2016,1611-00293,0.00,335.58,R,Affinity Trust,No
Http://opendatacommunities.org/id/metropolitan-district-council/leeds,Leeds City Council as Accountable Body,30/11/2016,Social Services Pooled Budgets,Jcs For People With Learning Disabilitie,Third Party Payments,Home Care,568,02-Nov-2016,1611-00294,0.00,247.50,R,Affinity Trust,No
Http://opendatacommunities.org/id/metropolitan-district-council/leeds,Leeds City Council as Accountable Body,30/11/2016,Social Services Pooled Budgets,Jcs For People With Learning Disabilitie,Third Party Payments,Home Care,568,02-Nov-2016,1611-00295,0.00,3006.76,R,Affinity Trust,No
Http://opendatacommunities.org/id/metropolitan-district-council/leeds,Leeds City Council as Accountable Body,30/11/2016,Social Services Pooled Budgets,Jcs For People With Learning Disabilitie,Third Party Payments,Home Care,568,02-Nov-2016,1611-00296,0.00,612.00,R,Affinity Trust,No
Http://opendatacommunities.org/id/metropolitan-district-council/leeds,Leeds City Council as Accountable Body,30/11/2016,Social Services Pooled Budgets,Jcs For People With Learning Disabilitie,Third Party Payments,Home Care,568,02-Nov-2016,1611-00297,0.00,63.92,R,Affinity Trust,No
Http://opendatacommunities.org/id/metropolitan-district-council/leeds,Leeds City Council as Accountable Body,30/11/2016,Social Services Pooled Budgets,Jcs For People With Learning Disabilitie,Third Party Payments,Day Centre,564,02-Nov-2016,1611-00298,0.00,416.64,R,Affinity Trust,No
Http://opendatacommunities.org/id/metropolitan-district-council/leeds,Leeds City Council as Accountable Body,30/11/2016,Social Services Pooled Budgets,Jcs For People With Learning Disabilitie,Third Party Payments,Home Care,568,02-Nov-2016,1611-00299,0.00,767.04,R,Affinity Trust,No
Http://opendatacommunities.org/id/metropolitan-district-council/leeds,Leeds City Council as Accountable Body,30/11/2016,Social Services Pooled Budgets,Jcs For People With Learning Disabilitie,Third Party Payments,Home Care,568,02-Nov-2016,1611-00300,0.00,1518.00,R,Affinity Trust,No
Http://opendatacommunities.org/id/metropolitan-district-council/leeds,Leeds City Council as Accountable Body,30/11/2016,Social Services Pooled Budgets,Jcs For People With Learning Disabilitie,Third Party Payments,Home Care,568,02-Nov-2016,1611-00301,0.00,1211.04,R,Affinity Trust,No
Http://opendatacommunities.org/id/metropolitan-district-council/leeds,Leeds City Council as Accountable Body,30/11/2016,Social Services Pooled Budgets,Jcs For People With Learning Disabilitie,Third Party Payments,Home Care,568,02-Nov-2016,1611-00302,0.00,223.72,R,Affinity Trust,No
Http://opendatacommunities.org/id/metropolitan-district-council/leeds,Leeds City Council as Accountable Body,30/11/2016,Social Services Pooled Budgets,Jcs For People With Learning Disabilitie,Third Party Payments,Home Care,568,02-Nov-2016,1611-00303,0.00,535.33,R,Affinity Trust,No
Http://opendatacommunities.org/id/metropolitan-district-council/leeds,Leeds City Council as Accountable Body,30/11/2016,Social Services Pooled Budgets,Jcs For People With Learning Disabilitie,Third Party Payments,Home Care,568,02-Nov-2016,1611-00304,0.00,703.12,R,Affinity Trust,No
Http://opendatacommunities.org/id/metropolitan-district-council/leeds,Leeds City Council as Accountable Body,30/11/2016,Social Services Pooled Budgets,Jcs For People With Learning Disabilitie,Third Party Payments,Home Care,568,02-Nov-2016,1611-00305,0.00,431.46,R,Affinity Trust,No
Http://opendatacommunities.org/id/metropolitan-district-council/leeds,Leeds City Council as Accountable Body,30/11/2016,Social Services Pooled Budgets,Jcs For People With Learning Disabilitie,Third Party Payments,Home Care,568,02-Nov-2016,1611-00306,0.00,639.20,R,Affinity Trust,No
Http://opendatacommunities.org/id/metropolitan-district-council/leeds,Leeds City Council as Accountable Body,30/11/2016,Social Services Pooled Budgets,Jcs For People With Learning Disabilitie,Third Party Payments,Home Care,568,02-Nov-2016,1611-00307,0.00,408.00,R,Affinity Trust,No
Http://opendatacommunities.org/id/metropolitan-district-council/leeds,Leeds City Council as Accountable Body,30/11/2016,Social Services Pooled Budgets,Jcs For People With Learning Disabilitie,Third Party Payments,Home Care,568,02-Nov-2016,1611-00308,0.00,1150.56,R,Affinity Trust,No
Http://opendatacommunities.org/id/metropolitan-district-council/leeds,Leeds City Council as Accountable Body,30/11/2016,Social Services Pooled Budgets,Jcs For People With Learning Disabilitie,Third Party Payments,Home Care,568,02-Nov-2016,1611-00309,0.00,2452.93,R,Affinity Trust,No
Http://opendatacommunities.org/id/metropolitan-district-council/leeds,Leeds City Council as Accountable Body,30/11/2016,Social Services Pooled Budgets,Jcs For People With Learning Disabilitie,Third Party Payments,Home Care,568,02-Nov-2016,1611-00310,0.00,447.44,R,Affinity Trust,No
Http://opendatacommunities.org/id/metropolitan-district-council/leeds,Leeds City Council as Accountable Body,30/11/2016,Social Services Pooled Budgets,Jcs For People With Learning Disabilitie,Third Party Payments,Home Care,568,02-Nov-2016,1611-00311,0.00,127.84,R,Affinity Trust,No
Http://opendatacommunities.org/id/metropolitan-district-council/leeds,Leeds City Council as Accountable Body,30/11/2016,Social Services Pooled Budgets,Jcs For People With Learning Disabilitie,Third Party Payments,Home Care,568,02-Nov-2016,1611-00312,0.00,408.64,R,Affinity Trust,No
Http://opendatacommunities.org/id/metropolitan-district-council/leeds,Leeds City Council as Accountable Body,30/11/2016,Social Services Pooled Budgets,Jcs For People With Learning Disabilitie,Third Party Payments,Home Care,568,02-Nov-2016,1611-00313,0.00,367.54,R,Affinity Trust,No
Http://opendatacommunities.org/id/metropolitan-district-council/leeds,Leeds City Council as Accountable Body,30/11/2016,Social Services Pooled Budgets,Jcs For People With Learning Disabilitie,Third Party Payments,Home Care,568,02-Nov-2016,1611-00314,0.00,834.96,R,Affinity Trust,No
Http://opendatacommunities.org/id/metropolitan-district-council/leeds,Leeds City Council as Accountable Body,30/11/2016,Social Services Pooled Budgets,Jcs For People With Learning Disabilitie,Third Party Payments,Home Care,568,02-Nov-2016,1611-00315,0.00,2011.20,R,Affinity Trust,No
Http://opendatacommunities.org/id/metropolitan-district-council/leeds,Leeds City Council as Accountable Body,30/11/2016,Social Services Pooled Budgets,Jcs For People With Learning Disabilitie,Third Party Payments,Home Care,568,02-Nov-2016,1611-00316,0.00,1080.00,R,Affinity Trust,No
Http://opendatacommunities.org/id/metropolitan-district-council/leeds,Leeds City Council as Accountable Body,30/11/2016,Social Services Pooled Budgets,Jcs For People With Learning Disabilitie,Third Party Payments,Home Care,568,02-Nov-2016,1611-00317,0.00,3316.88,R,Affinity Trust,No
Http://opendatacommunities.org/id/metropolitan-district-council/leeds,Leeds City Council as Accountable Body,30/11/2016,Social Services Pooled Budgets,Jcs For People With Learning Disabilitie,Third Party Payments,Day Centre,564,02-Nov-2016,1611-00318,0.00,938.56,R,Affinity Trust,No
Http://opendatacommunities.org/id/metropolitan-district-council/leeds,Leeds City Council as Accountable Body,30/11/2016,Social Services Pooled Budgets,Jcs For People With Learning Disabilitie,Third Party Payments,Home Care,568,02-Nov-2016,1611-00319,0.00,525.72,R,Affinity Trust,No
Http://opendatacommunities.org/id/metropolitan-district-council/leeds,Leeds City Council as Accountable Body,30/11/2016,Social Services Pooled Budgets,Jcs For People With Learning Disabilitie,Third Party Payments,Day Centre,564,02-Nov-2016,1611-00320,0.00,3825.12,R,Affinity Trust,No
Http://opendatacommunities.org/id/metropolitan-district-council/leeds,Leeds City Council as Accountable Body,30/11/2016,Social Services Pooled Budgets,Jcs For People With Learning Disabilitie,Third Party Payments,Home Care,568,02-Nov-2016,1611-00321,0.00,1599.98,R,Affinity Trust,No
Http://opendatacommunities.org/id/metropolitan-district-council/leeds,Leeds City Council as Accountable Body,30/11/2016,Social Services Pooled Budgets,Jcs For People With Learning Disabilitie,Third Party Payments,Home Care,568,02-Nov-2016,1611-00322,0.00,804.48,R,Affinity Trust,No
Http://opendatacommunities.org/id/metropolitan-district-council/leeds,Leeds City Council as Accountable Body,30/11/2016,Social Services Pooled Budgets,Jcs For People With Learning Disabilitie,Third Party Payments,Home Care,568,02-Nov-2016,1611-00323,0.00,1504.72,R,Affinity Trust,No
Http://opendatacommunities.org/id/metropolitan-district-council/leeds,Leeds City Council as Accountable Body,30/11/2016,Social Services Pooled Budgets,Jcs For People With Learning Disabilitie,Third Party Payments,Home Care,568,02-Nov-2016,1611-00324,0.00,1800.00,R,Affinity Trust,No
Http://opendatacommunities.org/id/metropolitan-district-council/leeds,Leeds City Council as Accountable Body,30/11/2016,Social Services Pooled Budgets,Jcs For People With Learning Disabilitie,Third Party Payments,Home Care,568,02-Nov-2016,1611-00325,0.00,1005.60,R,Affinity Trust,No
Http://opendatacommunities.org/id/metropolitan-district-council/leeds,Leeds City Council as Accountable Body,30/11/2016,Social Services Pooled Budgets,Jcs For People With Learning Disabilitie,Third Party Payments,Home Care,568,02-Nov-2016,1611-00326,0.00,360.00,R,Affinity Trust,No
Http://opendatacommunities.org/id/metropolitan-district-council/leeds,Leeds City Council as Accountable Body,30/11/2016,Social Services Pooled Budgets,Jcs For People With Learning Disabilitie,Third Party Payments,Home Care,568,02-Nov-2016,1611-00327,0.00,291.83,R,Affinity Trust,No
Http://opendatacommunities.org/id/metropolitan-district-council/leeds,Leeds City Council as Accountable Body,30/11/2016,Social Services Pooled Budgets,Jcs For People With Learning Disabilitie,Third Party Payments,Home Care,568,02-Nov-2016,1611-00328,0.00,1206.72,R,Affinity Trust,No
Http://opendatacommunities.org/id/metropolitan-district-council/leeds,Leeds City Council as Accountable Body,30/11/2016,Social Services Pooled Budgets,Jcs For People With Learning Disabilitie,Third Party Payments,Day Centre,564,02-Nov-2016,1611-00329,0.00,714.78,R,Affinity Trust,No
Http://opendatacommunities.org/id/metropolitan-district-council/leeds,Leeds City Council as Accountable Body,30/11/2016,Social Services Pooled Budgets,Jcs For People With Learning Disabilitie,Third Party Payments,Day Centre,564,02-Nov-2016,1611-00330,0.00,2346.40,R,Affinity Trust,No
Http://opendatacommunities.org/id/metropolitan-district-council/leeds,Leeds City Council as Accountable Body,30/11/2016,Social Services Pooled Budgets,Jcs For People With Learning Disabilitie,Third Party Payments,Day Centre,564,02-Nov-2016,1611-00331,0.00,1440.00,R,Affinity Trust,No
Http://opendatacommunities.org/id/metropolitan-district-council/leeds,Leeds City Council,30/11/2016,Adult Social Care,Services For Older People - 65 And Over,Third Party Payments,Home Care,568,02-Nov-2016,1611-00332,0.00,1076.48,R,Affinity Trust,No
Http://opendatacommunities.org/id/metropolitan-district-council/leeds,Leeds City Council,30/11/2016,Adult Social Care,Services For Older People Under 65 P/Dis,Third Party Payments,Home Care,568,04-Nov-2016,1611-00333,0.00,386.86,R,Affinity Trust,No
Http://opendatacommunities.org/id/metropolitan-district-council/leeds,Leeds City Council,30/11/2016,Adult Social Care,Services For Older People Under 65 P/Dis,Third Party Payments,Home Care,568,04-Nov-2016,1611-00334,0.00,100.92,R,Affinity Trust,No
Http://opendatacommunities.org/id/metropolitan-district-council/leeds,Leeds City Council,30/11/2016,Adult Social Care,Services For Older People Under 65 P/Dis,Third Party Payments,Home Care,568,04-Nov-2016,1611-00335,0.00,403.68,R,Affinity Trust,No
Http://opendatacommunities.org/id/metropolitan-district-council/leeds,Leeds City Council as Accountable Body,30/11/2016,Social Services Pooled Budgets,Jcs For People With Learning Disabilitie,Third Party Payments,Home Care,568,07-Nov-2016,1611-00336,0.00,336.40,R,Affinity Trust,No
Http://opendatacommunities.org/id/metropolitan-district-council/leeds,Leeds City Council,30/11/2016,Childrens Services,Safeguarding Targeted & Specialist,Third Party Payments,Section 17,551,07-Nov-2016,1611-00337,0.00,1743.75,R,Affinity Trust,No
Http://opendatacommunities.org/id/metropolitan-district-council/leeds,Leeds City Council,30/11/2016,Adult Social Care,Services For Older People Under 65 P/Dis,Third Party Payments,Home Care,568,11-Nov-2016,1611-00338,0.00,703.12,R,Affinity Trust,No
Http://opendatacommunities.org/id/metropolitan-district-council/leeds,Leeds City Council,30/11/2016,Adult Social Care,Services For Older People Under 65 P/Dis,Third Party Payments,Home Care,568,11-Nov-2016,1611-00339,0.00,39.95,R,Affinity Trust,No
Http://opendatacommunities.org/id/metropolitan-district-council/leeds,Leeds City Council,30/11/2016,Adult Social Care,Services For Adults Under 65 Mental/Dis,Third Party Payments,Home Care,568,11-Nov-2016,1611-00340,0.00,319.60,R,Affinity Trust,No
Http://opendatacommunities.org/id/metropolitan-district-council/leeds,Leeds City Council,30/11/2016,Adult Social Care,Services For Older People Under 65 P/Dis,Third Party Payments,Home Care,568,11-Nov-2016,1611-00341,0.00,297.00,R,Affinity Trust,No
Http://opendatacommunities.org/id/metropolitan-district-council/leeds,Leeds City Council,30/11/2016,Childrens Services,Safeguarding Targeted & Specialist,Third Party Payments,Section 17,551,11-Nov-2016,1611-00342,0.00,1871.25,R,Affinity Trust,No
Http://opendatacommunities.org/id/metropolitan-district-council/leeds,Leeds City Council,30/11/2016,Adult Social Care,Services For Older People Under 65 P/Dis,Third Party Payments,Home Care,568,11-Nov-2016,1611-00343,0.00,703.12,R,Affinity Trust,No
Http://opendatacommunities.org/id/metropolitan-district-council/leeds,Leeds City Council,30/11/2016,Adult Social Care,Services For Adults Under 65 Mental/Dis,Third Party Payments,Home Care,568,11-Nov-2016,1611-00344,0.00,319.60,R,Affinity Trust,No
Http://opendatacommunities.org/id/metropolitan-district-council/leeds,Leeds City Council,30/11/2016,Adult Social Care,Services For Older People - 65 And Over,Third Party Payments,Home Care,568,11-Nov-2016,1611-00345,0.00,1076.48,R,Affinity Trust,No
Http://opendatacommunities.org/id/metropolitan-district-council/leeds,Leeds City Council as Accountable Body,30/11/2016,Social Services Pooled Budgets,Jcs For People With Learning Disabilitie,Third Party Payments,Home Care,568,15-Nov-2016,1611-00346,0.00,990.76,R,Affinity Trust,No
Http://opendatacommunities.org/id/metropolitan-district-council/leeds,Leeds City Council,30/11/2016,Adult Social Care,Services For Older People Under 65 P/Dis,Third Party Payments,Home Care,568,17-Nov-2016,1611-00347,0.00,526.68,R,Affinity Trust,No
Http://opendatacommunities.org/id/metropolitan-district-council/leeds,Leeds City Council,30/11/2016,Adult Social Care,Services For Adults Under 65 Mental/Dis,Third Party Payments,Home Care,568,18-Nov-2016,1611-00348,0.00,239.70,R,Affinity Trust,No
Http://opendatacommunities.org/id/metropolitan-district-council/leeds,Leeds City Council,30/11/2016,Adult Social Care,Services For Older People Under 65 P/Dis,Third Party Payments,Home Care,568,18-Nov-2016,1611-00349,0.00,2059.64,R,Affinity Trust,No
Http://opendatacommunities.org/id/metropolitan-district-council/leeds,Leeds City Council,30/11/2016,Adult Social Care,Services For Older People Under 65 P/Dis,Third Party Payments,Home Care,568,18-Nov-2016,1611-00350,0.00,2159.30,R,Affinity Trust,No
Http://opendatacommunities.org/id/metropolitan-district-council/leeds,Leeds City Council,30/11/2016,Adult Social Care,Services For Adults Under 65 Mental/Dis,Third Party Payments,Home Care,568,18-Nov-2016,1611-00351,0.00,319.60,R,Affinity Trust,No
Http://opendatacommunities.org/id/metropolitan-district-council/leeds,Leeds City Council,30/11/2016,Adult Social Care,Services For Older People Under 65 P/Dis,Third Party Payments,Home Care,568,18-Nov-2016,1611-00352,0.00,703.12,R,Affinity Trust,No
Http://opendatacommunities.org/id/metropolitan-district-council/leeds,Leeds City Council,30/11/2016,Adult Social Care,Services For Older People Under 65 P/Dis,Third Party Payments,Home Care,568,18-Nov-2016,1611-00353,0.00,539.83,R,Affinity Trust,No
Http://opendatacommunities.org/id/metropolitan-district-council/leeds,Leeds City Council,30/11/2016,Adult Social Care,Services For Adults Under 65 Mental/Dis,Third Party Payments,Home Care,568,18-Nov-2016,1611-00354,0.00,159.80,R,Affinity Trust,No
Http://opendatacommunities.org/id/metropolitan-district-council/leeds,Leeds City Council,30/11/2016,Adult Social Care,Services For Older People Under 65 P/Dis,Third Party Payments,Home Care,568,18-Nov-2016,1611-00355,0.00,319.60,R,Affinity Trust,No
Http://opendatacommunities.org/id/metropolitan-district-council/leeds,Leeds City Council,30/11/2016,Adult Social Care,Services For Older People - 65 And Over,Third Party Payments,Home Care,568,18-Nov-2016,1611-00356,0.00,1076.48,R,Affinity Trust,No
Http://opendatacommunities.org/id/metropolitan-district-council/leeds,Leeds City Council,30/11/2016,Adult Social Care,Services For Older People Under 65 P/Dis,Third Party Payments,Home Care,568,18-Nov-2016,1611-00357,0.00,67.28,R,Affinity Trust,No
Http://opendatacommunities.org/id/metropolitan-district-council/leeds,Leeds City Council,30/11/2016,Adult Social Care,Services For Older People Under 65 P/Dis,Third Party Payments,Home Care,568,18-Nov-2016,1611-00358,0.00,277.53,R,Affinity Trust,No
Http://opendatacommunities.org/id/metropolitan-district-council/leeds,Leeds City Council,30/11/2016,Adult Social Care,Services For Adults Under 65 Mental/Dis,Third Party Payments,Home Care,568,22-Nov-2016,1611-00359,0.00,79.00,R,Affinity Trust,No
Http://opendatacommunities.org/id/metropolitan-district-council/leeds,Leeds City Council as Accountable Body,30/11/2016,Social Services Pooled Budgets,Jcs For People With Learning Disabilitie,Third Party Payments,Home Care,568,23-Nov-2016,1611-00360,0.00,300.00,R,Affinity Trust,No
Http://opendatacommunities.org/id/metropolitan-district-council/leeds,Leeds City Council as Accountable Body,30/11/2016,Social Services Pooled Budgets,Jcs For People With Learning Disabilitie,Third Party Payments,Home Care,568,23-Nov-2016,1611-00361,0.00,1286.39,R,Affinity Trust,No
Http://opendatacommunities.org/id/metropolitan-district-council/leeds,Leeds City Council as Accountable Body,30/11/2016,Social Services Pooled Budgets,Jcs For People With Learning Disabilitie,Third Party Payments,Home Care,568,23-Nov-2016,1611-00362,0.00,287.64,R,Affinity Trust,No
Http://opendatacommunities.org/id/metropolitan-district-council/leeds,Leeds City Council as Accountable Body,30/11/2016,Social Services Pooled Budgets,Jcs For People With Learning Disabilitie,Third Party Payments,Home Care,568,23-Nov-2016,1611-00363,0.00,2930.19,R,Affinity Trust,No
Http://opendatacommunities.org/id/metropolitan-district-council/leeds,Leeds City Council as Accountable Body,30/11/2016,Social Services Pooled Budgets,Jcs For People With Learning Disabilitie,Third Party Payments,Home Care,568,23-Nov-2016,1611-00364,0.00,408.00,R,Affinity Trust,No
Http://opendatacommunities.org/id/metropolitan-district-council/leeds,Leeds City Council as Accountable Body,30/11/2016,Social Services Pooled Budgets,Jcs For People With Learning Disabilitie,Third Party Payments,Home Care,568,23-Nov-2016,1611-00365,0.00,383.52,R,Affinity Trust,No
Http://opendatacommunities.org/id/metropolitan-district-council/leeds,Leeds City Council as Accountable Body,30/11/2016,Social Services Pooled Budgets,Jcs For People With Learning Disabilitie,Third Party Payments,Home Care,568,23-Nov-2016,1611-00366,0.00,639.20,R,Affinity Trust,No
Http://opendatacommunities.org/id/metropolitan-district-council/leeds,Leeds City Council as Accountable Body,30/11/2016,Social Services Pooled Budgets,Jcs For People With Learning Disabilitie,Third Party Payments,Home Care,568,23-Nov-2016,1611-00367,0.00,306.00,R,Affinity Trust,No
Http://opendatacommunities.org/id/metropolitan-district-council/leeds,Leeds City Council as Accountable Body,30/11/2016,Social Services Pooled Budgets,Jcs For People With Learning Disabilitie,Third Party Payments,Home Care,568,23-Nov-2016,1611-00368,0.00,1150.56,R,Affinity Trust,No
Http://opendatacommunities.org/id/metropolitan-district-council/leeds,Leeds City Council as Accountable Body,30/11/2016,Social Services Pooled Budgets,Jcs For People With Learning Disabilitie,Third Party Payments,Home Care,568,23-Nov-2016,1611-00369,0.00,2141.32,R,Affinity Trust,No
Http://opendatacommunities.org/id/metropolitan-district-council/leeds,Leeds City Council as Accountable Body,30/11/2016,Social Services Pooled Budgets,Jcs For People With Learning Disabilitie,Third Party Payments,Home Care,568,23-Nov-2016,1611-00370,0.00,127.84,R,Affinity Trust,No
Http://opendatacommunities.org/id/metropolitan-district-council/leeds,Leeds City Council as Accountable Body,30/11/2016,Social Services Pooled Budgets,Jcs For People With Learning Disabilitie,Third Party Payments,Home Care,568,23-Nov-2016,1611-00371,0.00,408.64,R,Affinity Trust,No
Http://opendatacommunities.org/id/metropolitan-district-council/leeds,Leeds City Council,30/11/2016,Childrens Services,Safeguarding Targeted & Specialist,Third Party Payments,Section 17,551,23-Nov-2016,1611-00372,0.00,1222.50,R,Affinity Trust,No
Http://opendatacommunities.org/id/metropolitan-district-council/leeds,Leeds City Council as Accountable Body,30/11/2016,Social Services Pooled Budgets,Jcs For People With Learning Disabilitie,Third Party Payments,Home Care,568,25-Nov-2016,1611-00373,0.00,2377.80,R,Affinity Trust,No
Http://opendatacommunities.org/id/metropolitan-district-council/leeds,Leeds City Council as Accountable Body,30/11/2016,Social Services Pooled Budgets,Jcs For People With Learning Disabilitie,Third Party Payments,Day Centre,564,25-Nov-2016,1611-00374,0.00,1350.00,R,Affinity Trust,No
Http://opendatacommunities.org/id/metropolitan-district-council/leeds,Leeds City Council as Accountable Body,30/11/2016,Social Services Pooled Budgets,Jcs For People With Learning Disabilitie,Third Party Payments,Day Centre,564,25-Nov-2016,1611-00375,0.00,1080.00,R,Affinity Trust,No
Http://opendatacommunities.org/id/metropolitan-district-council/leeds,Leeds City Council as Accountable Body,30/11/2016,Social Services Pooled Budgets,Jcs For People With Learning Disabilitie,Third Party Payments,Home Care,568,25-Nov-2016,1611-00376,0.00,1050.00,R,Affinity Trust,No
Http://opendatacommunities.org/id/metropolitan-district-council/leeds,Leeds City Council as Accountable Body,30/11/2016,Social Services Pooled Budgets,Jcs For People With Learning Disabilitie,Third Party Payments,Home Care,568,25-Nov-2016,1611-00377,0.00,825.00,R,Affinity Trust,No
Http://opendatacommunities.org/id/metropolitan-district-council/leeds,Leeds City Council as Accountable Body,30/11/2016,Social Services Pooled Budgets,Jcs For People With Learning Disabilitie,Third Party Payments,Home Care,568,25-Nov-2016,1611-00378,0.00,1365.00,R,Affinity Trust,No
Http://opendatacommunities.org/id/metropolitan-district-council/leeds,Leeds City Council as Accountable Body,30/11/2016,Social Services Pooled Budgets,Jcs For People With Learning Disabilitie,Third Party Payments,Home Care,568,25-Nov-2016,1611-00379,0.00,1910.64,R,Affinity Trust,No
Http://opendatacommunities.org/id/metropolitan-district-council/leeds,Leeds City Council as Accountable Body,30/11/2016,Social Services Pooled Budgets,Jcs For People With Learning Disabilitie,Third Party Payments,Home Care,568,25-Nov-2016,1611-00380,0.00,247.50,R,Affinity Trust,No
Http://opendatacommunities.org/id/metropolitan-district-council/leeds,Leeds City Council as Accountable Body,30/11/2016,Social Services Pooled Budgets,Jcs For People With Learning Disabilitie,Third Party Payments,Home Care,568,25-Nov-2016,1611-00381,0.00,1214.48,R,Affinity Trust,No
Http://opendatacommunities.org/id/metropolitan-district-council/leeds,Leeds City Council as Accountable Body,30/11/2016,Social Services Pooled Budgets,Jcs For People With Learning Disabilitie,Third Party Payments,Home Care,568,25-Nov-2016,1611-00382,0.00,479.40,R,Affinity Trust,No
Http://opendatacommunities.org/id/metropolitan-district-council/leeds,Leeds City Council as Accountable Body,30/11/2016,Social Services Pooled Budgets,Jcs For People With Learning Disabilitie,Third Party Payments,Home Care,568,25-Nov-2016,1611-00383,0.00,1126.59,R,Affinity Trust,No
Http://opendatacommunities.org/id/metropolitan-district-council/leeds,Leeds City Council as Accountable Body,30/11/2016,Social Services Pooled Budgets,Jcs For People With Learning Disabilitie,Third Party Payments,Home Care,568,25-Nov-2016,1611-00384,0.00,934.83,R,Affinity Trust,No
Http://opendatacommunities.org/id/metropolitan-district-council/leeds,Leeds City Council as Accountable Body,30/11/2016,Social Services Pooled Budgets,Jcs For People With Learning Disabilitie,Third Party Payments,Home Care,568,25-Nov-2016,1611-00385,0.00,379.53,R,Affinity Trust,No
Http://opendatacommunities.org/id/metropolitan-district-council/leeds,Leeds City Council as Accountable Body,30/11/2016,Social Services Pooled Budgets,Jcs For People With Learning Disabilitie,Third Party Payments,Home Care,568,25-Nov-2016,1611-00386,0.00,300.00,R,Affinity Trust,No
Http://opendatacommunities.org/id/metropolitan-district-council/leeds,Leeds City Council as Accountable Body,30/11/2016,Social Services Pooled Budgets,Jcs For People With Learning Disabilitie,Third Party Payments,Home Care,568,25-Nov-2016,1611-00387,0.00,1302.37,R,Affinity Trust,No
Http://opendatacommunities.org/id/metropolitan-district-council/leeds,Leeds City Council as Accountable Body,30/11/2016,Social Services Pooled Budgets,Jcs For People With Learning Disabilitie,Third Party Payments,Home Care,568,25-Nov-2016,1611-00388,0.00,367.54,R,Affinity Trust,No
Http://opendatacommunities.org/id/metropolitan-district-council/leeds,Leeds City Council as Accountable Body,30/11/2016,Social Services Pooled Budgets,Jcs For People With Learning Disabilitie,Third Party Payments,Home Care,568,25-Nov-2016,1611-00389,0.00,225.00,R,Affinity Trust,No
Http://opendatacommunities.org/id/metropolitan-district-council/leeds,Leeds City Council as Accountable Body,30/11/2016,Social Services Pooled Budgets,Jcs For People With Learning Disabilitie,Third Party Payments,Home Care,568,25-Nov-2016,1611-00390,0.00,2659.10,R,Affinity Trust,No
Http://opendatacommunities.org/id/metropolitan-district-council/leeds,Leeds City Council as Accountable Body,30/11/2016,Social Services Pooled Budgets,Jcs For People With Learning Disabilitie,Third Party Payments,Home Care,568,25-Nov-2016,1611-00391,0.00,612.00,R,Affinity Trust,No
Http://opendatacommunities.org/id/metropolitan-district-council/leeds,Leeds City Council as Accountable Body,30/11/2016,Social Services Pooled Budgets,Jcs For People With Learning Disabilitie,Third Party Payments,Day Centre,564,25-Nov-2016,1611-00392,0.00,416.64,R,Affinity Trust,No
Http://opendatacommunities.org/id/metropolitan-district-council/leeds,Leeds City Council as Accountable Body,30/11/2016,Social Services Pooled Budgets,Jcs For People With Learning Disabilitie,Third Party Payments,Home Care,568,25-Nov-2016,1611-00393,0.00,671.60,R,Affinity Trust,No
Http://opendatacommunities.org/id/metropolitan-district-council/leeds,Leeds City Council as Accountable Body,30/11/2016,Social Services Pooled Budgets,Jcs For People With Learning Disabilitie,Third Party Payments,Home Care,568,25-Nov-2016,1611-00394,0.00,1518.00,R,Affinity Trust,No
Http://opendatacommunities.org/id/metropolitan-district-council/leeds,Leeds City Council as Accountable Body,30/11/2016,Social Services Pooled Budgets,Jcs For People With Learning Disabilitie,Third Party Payments,Home Care,568,25-Nov-2016,1611-00395,0.00,1211.04,R,Affinity Trust,No
Http://opendatacommunities.org/id/metropolitan-district-council/leeds,Leeds City Council as Accountable Body,30/11/2016,Social Services Pooled Budgets,Jcs For People With Learning Disabilitie,Third Party Payments,Home Care,568,25-Nov-2016,1611-00396,0.00,183.77,R,Affinity Trust,No
Http://opendatacommunities.org/id/metropolitan-district-council/leeds,Leeds City Council as Accountable Body,30/11/2016,Social Services Pooled Budgets,Jcs For People With Learning Disabilitie,Third Party Payments,Home Care,568,25-Nov-2016,1611-00397,0.00,615.23,R,Affinity Trust,No
Http://opendatacommunities.org/id/metropolitan-district-council/leeds,Leeds City Council as Accountable Body,30/11/2016,Social Services Pooled Budgets,Jcs For People With Learning Disabilitie,Third Party Payments,Home Care,568,25-Nov-2016,1611-00398,0.00,383.52,R,Affinity Trust,No
Http://opendatacommunities.org/id/metropolitan-district-council/leeds,Leeds City Council as Accountable Body,30/11/2016,Social Services Pooled Budgets,Jcs For People With Learning Disabilitie,Third Party Payments,Home Care,568,25-Nov-2016,1611-00399,0.00,639.20,R,Affinity Trust,No
Http://opendatacommunities.org/id/metropolitan-district-council/leeds,Leeds City Council as Accountable Body,30/11/2016,Social Services Pooled Budgets,Jcs For People With Learning Disabilitie,Third Party Payments,Home Care,568,25-Nov-2016,1611-00400,0.00,408.00,R,Affinity Trust,No
Http://opendatacommunities.org/id/metropolitan-district-council/leeds,Leeds City Council as Accountable Body,30/11/2016,Social Services Pooled Budgets,Jcs For People With Learning Disabilitie,Third Party Payments,Home Care,568,25-Nov-2016,1611-00401,0.00,1150.56,R,Affinity Trust,No
Http://opendatacommunities.org/id/metropolitan-district-council/leeds,Leeds City Council as Accountable Body,30/11/2016,Social Services Pooled Budgets,Jcs For People With Learning Disabilitie,Third Party Payments,Home Care,568,25-Nov-2016,1611-00402,0.00,2572.78,R,Affinity Trust,No
Http://opendatacommunities.org/id/metropolitan-district-council/leeds,Leeds City Council as Accountable Body,30/11/2016,Social Services Pooled Budgets,Jcs For People With Learning Disabilitie,Third Party Payments,Home Care,568,25-Nov-2016,1611-00403,0.00,511.36,R,Affinity Trust,No
Http://opendatacommunities.org/id/metropolitan-district-council/leeds,Leeds City Council as Accountable Body,30/11/2016,Social Services Pooled Budgets,Jcs For People With Learning Disabilitie,Third Party Payments,Home Care,568,25-Nov-2016,1611-00404,0.00,95.88,R,Affinity Trust,No
Http://opendatacommunities.org/id/metropolitan-district-council/leeds,Leeds City Council as Accountable Body,30/11/2016,Social Services Pooled Budgets,Jcs For People With Learning Disabilitie,Third Party Payments,Home Care,568,25-Nov-2016,1611-00405,0.00,102.16,R,Affinity Trust,No
Http://opendatacommunities.org/id/metropolitan-district-council/leeds,Leeds City Council as Accountable Body,30/11/2016,Social Services Pooled Budgets,Jcs For People With Learning Disabilitie,Third Party Payments,Home Care,568,25-Nov-2016,1611-00406,0.00,824.18,R,Affinity Trust,No
Http://opendatacommunities.org/id/metropolitan-district-council/leeds,Leeds City Council as Accountable Body,30/11/2016,Social Services Pooled Budgets,Jcs For People With Learning Disabilitie,Third Party Payments,Home Care,568,25-Nov-2016,1611-00407,0.00,482.03,R,Affinity Trust,No
Http://opendatacommunities.org/id/metropolitan-district-council/leeds,Leeds City Council as Accountable Body,30/11/2016,Social Services Pooled Budgets,Jcs For People With Learning Disabilitie,Third Party Payments,Day Centre,564,25-Nov-2016,1611-00408,0.00,1440.00,R,Affinity Trust,No
Http://opendatacommunities.org/id/metropolitan-district-council/leeds,Leeds City Council as Accountable Body,30/11/2016,Social Services Pooled Budgets,Jcs For People With Learning Disabilitie,Third Party Payments,Day Centre,564,25-Nov-2016,1611-00409,0.00,1080.00,R,Affinity Trust,No
Http://opendatacommunities.org/id/metropolitan-district-council/leeds,Leeds City Council as Accountable Body,30/11/2016,Social Services Pooled Budgets,Jcs For People With Learning Disabilitie,Third Party Payments,Home Care,568,25-Nov-2016,1611-00410,0.00,787.50,R,Affinity Trust,No
Http://opendatacommunities.org/id/metropolitan-district-council/leeds,Leeds City Council as Accountable Body,30/11/2016,Social Services Pooled Budgets,Jcs For People With Learning Disabilitie,Third Party Payments,Home Care,568,25-Nov-2016,1611-00411,0.00,675.00,R,Affinity Trust,No
Http://opendatacommunities.org/id/metropolitan-district-council/leeds,Leeds City Council as Accountable Body,30/11/2016,Social Services Pooled Budgets,Jcs For People With Learning Disabilitie,Third Party Payments,Home Care,568,25-Nov-2016,1611-00412,0.00,2572.80,R,Affinity Trust,No
Http://opendatacommunities.org/id/metropolitan-district-council/leeds,Leeds City Council as Accountable Body,30/11/2016,Social Services Pooled Budgets,Jcs For People With Learning Disabilitie,Third Party Payments,Day Centre,564,25-Nov-2016,1611-00413,0.00,938.56,R,Affinity Trust,No
Http://opendatacommunities.org/id/metropolitan-district-council/leeds,Leeds City Council as Accountable Body,30/11/2016,Social Services Pooled Budgets,Jcs For People With Learning Disabilitie,Third Party Payments,Home Care,568,25-Nov-2016,1611-00414,0.00,525.72,R,Affinity Trust,No
Http://opendatacommunities.org/id/metropolitan-district-council/leeds,Leeds City Council as Accountable Body,30/11/2016,Social Services Pooled Budgets,Jcs For People With Learning Disabilitie,Third Party Payments,Day Centre,564,25-Nov-2016,1611-00415,0.00,2878.34,R,Affinity Trust,No
Http://opendatacommunities.org/id/metropolitan-district-council/leeds,Leeds City Council as Accountable Body,30/11/2016,Social Services Pooled Budgets,Jcs For People With Learning Disabilitie,Third Party Payments,Home Care,568,25-Nov-2016,1611-00416,0.00,1599.98,R,Affinity Trust,No
Http://opendatacommunities.org/id/metropolitan-district-council/leeds,Leeds City Council as Accountable Body,30/11/2016,Social Services Pooled Budgets,Jcs For People With Learning Disabilitie,Third Party Payments,Home Care,568,25-Nov-2016,1611-00417,0.00,703.92,R,Affinity Trust,No
Http://opendatacommunities.org/id/metropolitan-district-council/leeds,Leeds City Council as Accountable Body,30/11/2016,Social Services Pooled Budgets,Jcs For People With Learning Disabilitie,Third Party Payments,Home Care,568,25-Nov-2016,1611-00418,0.00,1504.72,R,Affinity Trust,No
Http://opendatacommunities.org/id/metropolitan-district-council/leeds,Leeds City Council as Accountable Body,30/11/2016,Social Services Pooled Budgets,Jcs For People With Learning Disabilitie,Third Party Payments,Home Care,568,25-Nov-2016,1611-00419,0.00,1800.00,R,Affinity Trust,No
Http://opendatacommunities.org/id/metropolitan-district-council/leeds,Leeds City Council as Accountable Body,30/11/2016,Social Services Pooled Budgets,Jcs For People With Learning Disabilitie,Third Party Payments,Home Care,568,25-Nov-2016,1611-00420,0.00,1005.60,R,Affinity Trust,No
Http://opendatacommunities.org/id/metropolitan-district-council/leeds,Leeds City Council as Accountable Body,30/11/2016,Social Services Pooled Budgets,Jcs For People With Learning Disabilitie,Third Party Payments,Home Care,568,25-Nov-2016,1611-00421,0.00,360.00,R,Affinity Trust,No
Http://opendatacommunities.org/id/metropolitan-district-council/leeds,Leeds City Council as Accountable Body,30/11/2016,Social Services Pooled Budgets,Jcs For People With Learning Disabilitie,Third Party Payments,Day Centre,564,25-Nov-2016,1611-00422,0.00,714.78,R,Affinity Trust,No
Http://opendatacommunities.org/id/metropolitan-district-council/leeds,Leeds City Council as Accountable Body,30/11/2016,Social Services Pooled Budgets,Jcs For People With Learning Disabilitie,Third Party Payments,Day Centre,564,25-Nov-2016,1611-00423,0.00,2346.40,R,Affinity Trust,No
Http://opendatacommunities.org/id/metropolitan-district-council/leeds,Leeds City Council as Accountable Body,30/11/2016,Social Services Pooled Budgets,Jcs For People With Learning Disabilitie,Third Party Payments,Day Centre,564,25-Nov-2016,1611-00424,0.00,1440.00,R,Affinity Trust,No
Http://opendatacommunities.org/id/metropolitan-district-council/leeds,Leeds City Council as Accountable Body,30/11/2016,Social Services Pooled Budgets,Jcs For People With Learning Disabilitie,Third Party Payments,Home Care,568,30-Nov-2016,1611-00425,0.00,990.00,R,Affinity Trust,No
Http://opendatacommunities.org/id/metropolitan-district-council/leeds,Leeds City Council as Accountable Body,30/11/2016,Social Services Pooled Budgets,Jcs For People With Learning Disabilitie,Third Party Payments,Home Care,568,30-Nov-2016,1611-00426,0.00,3144.54,R,Affinity Trust,No
Http://opendatacommunities.org/id/metropolitan-district-council/leeds,Leeds City Council as Accountable Body,30/11/2016,Social Services Pooled Budgets,Jcs For People With Learning Disabilitie,Third Party Payments,Home Care,568,30-Nov-2016,1611-00427,0.00,255.68,R,Affinity Trust,No
Http://opendatacommunities.org/id/metropolitan-district-council/leeds,Leeds City Council as Accountable Body,30/11/2016,Social Services Pooled Budgets,Jcs For People With Learning Disabilitie,Third Party Payments,Day Centre,564,30-Nov-2016,1611-00428,0.00,364.56,R,Affinity Trust,No
Http://opendatacommunities.org/id/metropolitan-district-council/leeds,Leeds City Council as Accountable Body,30/11/2016,Social Services Pooled Budgets,Jcs For People With Learning Disabilitie,Third Party Payments,Day Centre,564,30-Nov-2016,1611-00429,0.00,1440.00,R,Affinity Trust,No
Http://opendatacommunities.org/id/metropolitan-district-council/leeds,Leeds City Council as Accountable Body,30/11/2016,Social Services Pooled Budgets,Jcs For People With Learning Disabilitie,Third Party Payments,Home Care,568,30-Nov-2016,1611-00430,0.00,1560.00,R,Affinity Trust,No
Http://opendatacommunities.org/id/metropolitan-district-council/leeds,Leeds City Council as Accountable Body,30/11/2016,Social Services Pooled Budgets,Jcs For People With Learning Disabilitie,Third Party Payments,Day Centre,564,30-Nov-2016,1611-00431,0.00,1440.00,R,Affinity Trust,No
Http://opendatacommunities.org/id/metropolitan-district-council/leeds,Leeds City Council as Accountable Body,30/11/2016,Social Services Pooled Budgets,Jcs For People With Learning Disabilitie,Third Party Payments,Home Care,568,30-Nov-2016,1611-00432,0.00,1560.00,R,Affinity Trust,No
Http://opendatacommunities.org/id/metropolitan-district-council/leeds,Leeds City Council as Accountable Body,30/11/2016,Social Services Pooled Budgets,Jcs For People With Learning Disabilitie,Third Party Payments,Home Care,568,30-Nov-2016,1611-00433,0.00,1080.00,R,Affinity Trust,No
Http://opendatacommunities.org/id/metropolitan-district-council/leeds,Leeds City Council as Accountable Body,30/11/2016,Social Services Pooled Budgets,Jcs For People With Learning Disabilitie,Third Party Payments,Home Care,568,30-Nov-2016,1611-00434,0.00,3316.88,R,Affinity Trust,No
Http://opendatacommunities.org/id/metropolitan-district-council/leeds,Leeds City Council as Accountable Body,30/11/2016,Social Services Pooled Budgets,Jcs For People With Learning Disabilitie,Third Party Payments,Day Centre,564,30-Nov-2016,1611-00435,0.00,1350.00,R,Affinity Trust,No
Http://opendatacommunities.org/id/metropolitan-district-council/leeds,Leeds City Council as Accountable Body,30/11/2016,Social Services Pooled Budgets,Jcs For People With Learning Disabilitie,Third Party Payments,Home Care,568,30-Nov-2016,1611-00436,0.00,1365.00,R,Affinity Trust,No
Http://opendatacommunities.org/id/metropolitan-district-council/leeds,Leeds City Council as Accountable Body,30/11/2016,Social Services Pooled Budgets,Jcs For People With Learning Disabilitie,Third Party Payments,Home Care,568,30-Nov-2016,1611-00437,0.00,990.00,R,Affinity Trust,No
Http://opendatacommunities.org/id/metropolitan-district-council/leeds,Leeds City Council as Accountable Body,30/11/2016,Social Services Pooled Budgets,Jcs For People With Learning Disabilitie,Third Party Payments,Home Care,568,30-Nov-2016,1611-00438,0.00,2877.82,R,Affinity Trust,No
Http://opendatacommunities.org/id/metropolitan-district-council/leeds,Leeds City Council as Accountable Body,30/11/2016,Social Services Pooled Budgets,Jcs For People With Learning Disabilitie,Third Party Payments,Home Care,568,30-Nov-2016,1611-00439,0.00,3108.01,R,Affinity Trust,No
Http://opendatacommunities.org/id/metropolitan-district-council/leeds,Leeds City Council as Accountable Body,30/11/2016,Social Services Pooled Budgets,Jcs For People With Learning Disabilitie,Third Party Payments,Home Care,568,30-Nov-2016,1611-00440,0.00,714.00,R,Affinity Trust,No
Http://opendatacommunities.org/id/metropolitan-district-council/leeds,Leeds City Council as Accountable Body,30/11/2016,Social Services Pooled Budgets,Jcs For People With Learning Disabilitie,Third Party Payments,Home Care,568,30-Nov-2016,1611-00441,0.00,47.94,R,Affinity Trust,No
Http://opendatacommunities.org/id/metropolitan-district-council/leeds,Leeds City Council as Accountable Body,30/11/2016,Social Services Pooled Budgets,Jcs For People With Learning Disabilitie,Third Party Payments,Day Centre,564,30-Nov-2016,1611-00442,0.00,416.64,R,Affinity Trust,No
Http://opendatacommunities.org/id/metropolitan-district-council/leeds,Leeds City Council as Accountable Body,30/11/2016,Social Services Pooled Budgets,Jcs For People With Learning Disabilitie,Third Party Payments,Home Care,568,30-Nov-2016,1611-00443,0.00,2465.43,R,Affinity Trust,No
Http://opendatacommunities.org/id/metropolitan-district-council/leeds,Leeds City Council as Accountable Body,30/11/2016,Social Services Pooled Budgets,Jcs For People With Learning Disabilitie,Third Party Payments,Home Care,568,30-Nov-2016,1611-00444,0.00,714.00,R,Affinity Trust,No
Http://opendatacommunities.org/id/metropolitan-district-council/leeds,Leeds City Council as Accountable Body,30/11/2016,Social Services Pooled Budgets,Jcs For People With Learning Disabilitie,Third Party Payments,Day Centre,564,30-Nov-2016,1611-00445,0.00,364.56,R,Affinity Trust,No
Http://opendatacommunities.org/id/metropolitan-district-council/leeds,Leeds City Council as Accountable Body,30/11/2016,Social Services Pooled Budgets,Jcs For People With Learning Disabilitie,Third Party Payments,Sheltered Accommodation,569,16-Nov-2016,1611-00446,0.00,106555.80,R,Affinity Trust North Divisional Office,No
Http://opendatacommunities.org/id/metropolitan-district-council/leeds,Leeds City Council,30/11/2016,Environment & Housing,Parks And Countryside  ,Transport,Hire Of Movable Plant & Machinery,315,20-Oct-2016,1611-00447,0.00,4500.00,R,Afi Uplift Ltd,Yes
Http://opendatacommunities.org/id/metropolitan-district-council/leeds,Leeds City Council,30/11/2016,Environment & Housing,Parks and Countryside,Employees,Training & Development,70,30-Nov-2016,1611-00448,0.00,306.00,R,Afi-Uplift Limited,No
Http://opendatacommunities.org/id/metropolitan-district-council/leeds,Leeds City Council,30/11/2016,Environment & Housing,Parks and Countryside,Employees,Training & Development,70,30-Nov-2016,1611-00449,0.00,100.00,R,Afi-Uplift Limited,No
Http://opendatacommunities.org/id/metropolitan-district-council/leeds,Leeds City Council,30/11/2016,Childrens Services,Learning Skills & Universal,Supplies and Services,College Contracts,276,18-Nov-2016,1611-00450,0.00,7200.00,R,Age Uk Leeds,No
Http://opendatacommunities.org/id/metropolitan-district-council/leeds,Leeds City Council,30/11/2016,Environment & Housing,SP Contracts & SECC,Third Party Payments,Supporting Ppl - Block Gross Chargeable,514,25-Nov-2016,1611-00451,0.00,3957.68,R,Age Uk Leeds,No
Http://opendatacommunities.org/id/metropolitan-district-council/leeds,Leeds City Council,30/11/2016,Adult Social Care,Services For Older People Under 65 P/Dis,Third Party Payments,Residential,580,16-Nov-2016,1611-00452,0.00,5598.40,R,Agricola House,No
Http://opendatacommunities.org/id/metropolitan-district-council/leeds,Leeds City Council,30/11/2016,Childrens Services,Learning Skills & Universal,Supplies and Services,Teaching Materials,202,25-Nov-2016,1611-00453,0.00,70.94,R,Aid Training & Operations Ltd,No
Http://opendatacommunities.org/id/metropolitan-district-council/leeds,Leeds City Council,30/11/2016,Childrens Services,Safeguarding Targeted & Specialist,Transfer Payments,16 Plus Top Up Allowance,625,03-Nov-2016,1611-00454,0.00,20.00,R,REDACTED PERSONAL DATA,No
Http://opendatacommunities.org/id/metropolitan-district-council/leeds,Leeds City Council,30/11/2016,Childrens Services,Safeguarding Targeted & Specialist,Transfer Payments,16 Plus Top Up Allowance,625,10-Nov-2016,1611-00455,0.00,20.00,R,REDACTED PERSONAL DATA,No
Http://opendatacommunities.org/id/metropolitan-district-council/leeds,Leeds City Council,30/11/2016,Childrens Services,Learning Skills & Universal,Supplies and Services,Training Allowances,257,18-Nov-2016,1611-00456,0.00,216.00,R,REDACTED PERSONAL DATA,No
Http://opendatacommunities.org/id/metropolitan-district-council/leeds,Leeds City Council,30/11/2016,Childrens Services,Safeguarding Targeted & Specialist,Transfer Payments,16 Plus Top Up Allowance,625,21-Nov-2016,1611-00457,0.00,20.00,R,REDACTED PERSONAL DATA,No
Http://opendatacommunities.org/id/metropolitan-district-council/leeds,Leeds City Council,30/11/2016,Childrens Services,Safeguarding Targeted & Specialist,Transfer Payments,16 Plus Top Up Allowance,625,25-Nov-2016,1611-00458,0.00,20.00,R,REDACTED PERSONAL DATA,No
Http://opendatacommunities.org/id/metropolitan-district-council/leeds,Leeds City Council,30/11/2016,Childrens Services,Learning Skills & Universal,Supplies and Services,Training Allowances,257,25-Nov-2016,1611-00459,0.00,216.00,R,REDACTED PERSONAL DATA,No
Http://opendatacommunities.org/id/metropolitan-district-council/leeds,Leeds City Council as Accountable Body,30/11/2016,Social Services Pooled Budgets,Leeds Community Equip Store Pooled Budgt,Supplies and Services,Other Equipment,203,01-Nov-2016,1611-00460,0.00,101.12,R,Aidapt Bathrooms Ltd,No
Http://opendatacommunities.org/id/metropolitan-district-council/leeds,Leeds City Council as Accountable Body,30/11/2016,Social Services Pooled Budgets,Leeds Community Equip Store Pooled Budgt,Supplies and Services,Other Equipment,203,04-Nov-2016,1611-00461,0.00,2505.34,R,Aidapt Bathrooms Ltd,No
Http://opendatacommunities.org/id/metropolitan-district-council/leeds,Leeds City Council as Accountable Body,30/11/2016,Social Services Pooled Budgets,Leeds Community Equip Store Pooled Budgt,Supplies and Services,Other Equipment,203,11-Nov-2016,1611-00462,0.00,196.55,R,Aidapt Bathrooms Ltd,No
Http://opendatacommunities.org/id/metropolitan-district-council/leeds,Leeds City Council as Accountable Body,30/11/2016,Social Services Pooled Budgets,Leeds Community Equip Store Pooled Budgt,Supplies and Services,Other Equipment,203,11-Nov-2016,1611-00463,0.00,1501.94,R,Aidapt Bathrooms Ltd,No
Http://opendatacommunities.org/id/metropolitan-district-council/leeds,Leeds City Council as Accountable Body,30/11/2016,Social Services Pooled Budgets,Leeds Community Equip Store Pooled Budgt,Supplies and Services,Other Equipment,203,18-Nov-2016,1611-00464,0.00,404.46,R,Aidapt Bathrooms Ltd,No
Http://opendatacommunities.org/id/metropolitan-district-council/leeds,Leeds City Council as Accountable Body,30/11/2016,Social Services Pooled Budgets,Leeds Community Equip Store Pooled Budgt,Supplies and Services,Other Equipment,203,18-Nov-2016,1611-00465,0.00,1583.00,R,Aidapt Bathrooms Ltd,No
Http://opendatacommunities.org/id/metropolitan-district-council/leeds,Leeds City Council as Accountable Body,30/11/2016,Social Services Pooled Budgets,Leeds Community Equip Store Pooled Budgt,Supplies and Services,Other Equipment,203,24-Nov-2016,1611-00466,0.00,44.94,R,Aidapt Bathrooms Ltd,No
Http://opendatacommunities.org/id/metropolitan-district-council/leeds,Leeds City Council as Accountable Body,30/11/2016,Social Services Pooled Budgets,Leeds Community Equip Store Pooled Budgt,Supplies and Services,Other Equipment,203,24-Nov-2016,1611-00467,0.00,645.00,R,Aidapt Bathrooms Ltd,No
Http://opendatacommunities.org/id/metropolitan-district-council/leeds,Leeds City Council as Accountable Body,30/11/2016,Social Services Pooled Budgets,Leeds Community Equip Store Pooled Budgt,Supplies and Services,Other Equipment,203,30-Nov-2016,1611-00468,0.00,225.50,R,Aidapt Bathrooms Ltd,No
Http://opendatacommunities.org/id/metropolitan-district-council/leeds,Leeds City Council as Accountable Body,30/11/2016,Social Services Pooled Budgets,Jcs For People With Learning Disabilitie,Supplies and Services,Other Equipment,203,04-Nov-2016,1611-00469,0.00,394.00,R,Aidservice Ltd,No
Http://opendatacommunities.org/id/metropolitan-district-council/leeds,Leeds City Council as Accountable Body,30/11/2016,Social Services Pooled Budgets,Leeds Community Equip Store Pooled Budgt,Supplies and Services,Other Equipment,203,16-Nov-2016,1611-00470,0.00,170.00,R,Aidservice Ltd,No
Http://opendatacommunities.org/id/metropolitan-district-council/leeds,Leeds City Council as Accountable Body,30/11/2016,Social Services Pooled Budgets,Jcs For People With Learning Disabilitie,Supplies and Services,Other Equipment,203,16-Nov-2016,1611-00471,0.00,1040.00,R,Aidservice Ltd,No
Http://opendatacommunities.org/id/metropolitan-district-council/leeds,Leeds City Council as Accountable Body,30/11/2016,Social Services Pooled Budgets,Jcs For People With Learning Disabilitie,Supplies and Services,Other Equipment,203,18-Nov-2016,1611-00472,0.00,205.00,R,Aidservice Ltd,No
Http://opendatacommunities.org/id/metropolitan-district-council/leeds,Leeds City Council,30/11/2016,Childrens Services,Learning Skills & Universal,Supplies and Services,Training Allowances,257,18-Nov-2016,1611-00473,0.00,216.00,R,REDACTED PERSONAL DATA,No
Http://opendatacommunities.org/id/metropolitan-district-council/leeds,Leeds City Council,30/11/2016,Childrens Services,Learning Skills & Universal,Supplies and Services,Training Allowances,257,25-Nov-2016,1611-00474,0.00,216.00,R,REDACTED PERSONAL DATA,No
Http://opendatacommunities.org/id/metropolitan-district-council/leeds,Leeds City Council,30/11/2016,Strategic Accounts,Miscellaneous,Transfer Payments,Land Drainage Levies,665,01-Nov-2016,1611-00475,0.00,3615.02,R,Ainsty (2008) Internal Drainage Board,No
Http://opendatacommunities.org/id/metropolitan-district-council/leeds,Leeds City Council,30/11/2016,Environment & Housing,Leeds Building Services,Supplies and Services,Operational Materials,205,07-Nov-2016,1611-00476,0.00,-164.44,R,Air Conditioning Accessories,No
Http://opendatacommunities.org/id/metropolitan-district-council/leeds,Leeds City Council,30/11/2016,Environment & Housing,Leeds Building Services,Supplies and Services,Operational Materials,205,07-Nov-2016,1611-00477,0.00,42.00,R,Air Conditioning Accessories,No
Http://opendatacommunities.org/id/metropolitan-district-council/leeds,Leeds City Council,30/11/2016,Environment & Housing,Leeds Building Services,Supplies and Services,Operational Materials,205,07-Nov-2016,1611-00478,0.00,94.50,R,Air Conditioning Accessories,No
Http://opendatacommunities.org/id/metropolitan-district-council/leeds,Leeds City Council,30/11/2016,Environment & Housing,Leeds Building Services,Supplies and Services,Operational Materials,205,07-Nov-2016,1611-00479,0.00,36.50,R,Air Conditioning Accessories,No
Http://opendatacommunities.org/id/metropolitan-district-council/leeds,Leeds City Council,30/11/2016,Environment & Housing,Leeds Building Services,Supplies and Services,Operational Materials,205,15-Nov-2016,1611-00480,0.00,271.97,R,Air Conditioning Accessories,No
Http://opendatacommunities.org/id/metropolitan-district-council/leeds,Leeds City Council,30/11/2016,Environment & Housing,Leeds Building Services,Supplies and Services,Operational Materials,205,15-Nov-2016,1611-00481,0.00,24.24,R,Air Conditioning Accessories,No
Http://opendatacommunities.org/id/metropolitan-district-council/leeds,Leeds City Council,30/11/2016,Environment & Housing,Leeds Building Services,Supplies and Services,Operational Materials,205,15-Nov-2016,1611-00482,0.00,158.40,R,Air Conditioning Accessories,No
Http://opendatacommunities.org/id/metropolitan-district-council/leeds,Leeds City Council,30/11/2016,Environment & Housing,Leeds Building Services,Supplies and Services,Operational Materials,205,15-Nov-2016,1611-00483,0.00,105.39,R,Air Conditioning Accessories,No
Http://opendatacommunities.org/id/metropolitan-district-council/leeds,Leeds City Council,30/11/2016,Environment & Housing,Leeds Building Services,Supplies and Services,Operational Materials,205,15-Nov-2016,1611-00484,0.00,22.37,R,Air Conditioning Accessories,No
Http://opendatacommunities.org/id/metropolitan-district-council/leeds,Leeds City Council,30/11/2016,Environment & Housing,Leeds Building Services,Supplies and Services,Operational Materials,205,28-Nov-2016,1611-00485,0.00,15.09,R,Air Conditioning Accessories,No
Http://opendatacommunities.org/id/metropolitan-district-council/leeds,Leeds City Council,30/11/2016,Environment & Housing,Leeds Building Services,Supplies and Services,Operational Materials,205,28-Nov-2016,1611-00486,0.00,71.50,R,Air Conditioning Accessories,No
Http://opendatacommunities.org/id/metropolitan-district-council/leeds,Leeds City Council,30/11/2016,Civic Enterprise Leeds,Commercial Services  ,Supplies and Services,Operational Materials,205,17-Oct-2016,1611-00487,0.00,29.74,R,Air Force Pneumati,Yes
Http://opendatacommunities.org/id/metropolitan-district-council/leeds,Leeds City Council,30/11/2016,Environment & Housing,Environmental Health,Supplies and Services,Other Hired And Contracted Services,265,04-Nov-2016,1611-00488,0.00,8.94,R,Air Liquide Uk,No
Http://opendatacommunities.org/id/metropolitan-district-council/leeds,Leeds City Council,30/11/2016,Environment & Housing,Environmental Health,Supplies and Services,Other Hired And Contracted Services,265,04-Nov-2016,1611-00489,0.00,13.63,R,Air Liquide Uk,No
Http://opendatacommunities.org/id/metropolitan-district-council/leeds,Leeds City Council,30/11/2016,Environment & Housing,Environmental Health,Supplies and Services,Other Hired And Contracted Services,265,04-Nov-2016,1611-00490,0.00,71.52,R,Air Liquide Uk,No
Http://opendatacommunities.org/id/metropolitan-district-council/leeds,Leeds City Council,30/11/2016,Environment & Housing,Environmental Health,Supplies and Services,Operational Furniture And Equipment,203,04-Nov-2016,1611-00491,0.00,649.91,R,Air Liquide Uk,No
Http://opendatacommunities.org/id/metropolitan-district-council/leeds,Leeds City Council,30/11/2016,Environment & Housing,Leeds Building Services,Supplies and Services,Operational Materials,205,08-Nov-2016,1611-00492,0.00,152.40,R,Air Liquide Uk,No
Http://opendatacommunities.org/id/metropolitan-district-council/leeds,Leeds City Council,30/11/2016,Environment & Housing,Leeds Building Services,Supplies and Services,Other Hired And Contracted Services,265,28-Nov-2016,1611-00493,0.00,42.00,R,Air Liquide Uk,No
Http://opendatacommunities.org/id/metropolitan-district-council/leeds,Leeds City Council,30/11/2016,Environment & Housing,Leeds Building Services,Supplies and Services,Operational Materials,205,28-Nov-2016,1611-00494,0.00,144.53,R,Air Liquide Uk,No
Http://opendatacommunities.org/id/metropolitan-district-council/leeds,Leeds City Council,30/11/2016,Adult Social Care,Services For Adults Under 65 Mental/Dis,Third Party Payments,Residential,580,16-Nov-2016,1611-00495,0.00,6028.00,R,Aire House,No
Http://opendatacommunities.org/id/metropolitan-district-council/leeds,Leeds City Council as Accountable Body,30/11/2016,Social Services Pooled Budgets,Jcs For People With Learning Disabilitie,Third Party Payments,Residential,580,16-Nov-2016,1611-00496,0.00,3059.84,R,Aire House,No
Http://opendatacommunities.org/id/metropolitan-district-council/leeds,Leeds City Council,30/11/2016,City Development,Libraries  Arts & Heritage,Supplies and Services,Operational Furniture And Equipment,203,29-Nov-2016,1611-00497,0.00,129.52,R,Aire Valley Gas Ltd,No
Http://opendatacommunities.org/id/metropolitan-district-council/leeds,Leeds City Council,30/11/2016,City Development,Economic Development,Capital,Other Costs,7,07-Nov-2016,1611-00498,0.00,90956.81,C,Aire Valley Land Llp,No
Http://opendatacommunities.org/id/metropolitan-district-council/leeds,Leeds City Council,30/11/2016,Environment & Housing,Environmental Health,Capital,Construction,3,24-Nov-2016,1611-00499,0.00,8134.80,C,Aire Valley Landscaping Services Ltd,No
Http://opendatacommunities.org/id/metropolitan-district-council/leeds,Leeds City Council,30/11/2016,Environment & Housing,Parks and Countryside,Supplies and Services,Other Hired And Contracted Services,265,04-Nov-2016,1611-00500,0.00,2875.00,R,Aire Valley Tree Services Ltd,No
Http://opendatacommunities.org/id/metropolitan-district-council/leeds,Leeds City Council,30/11/2016,Adult Social Care,Services For Older People - 65 And Over,Third Party Payments,Residential Care Dementia,571,16-Nov-2016,1611-00501,0.00,54605.11,R,Aire View Residential Home,No
Http://opendatacommunities.org/id/metropolitan-district-council/leeds,Leeds City Council,30/11/2016,Adult Social Care,Services For Older People - 65 And Over,Third Party Payments,Residential,580,16-Nov-2016,1611-00502,0.00,13033.42,R,Aire View Residential Home,No
Http://opendatacommunities.org/id/metropolitan-district-council/leeds,Leeds City Council,30/11/2016,Public Health,Public Health,Third Party Payments,Public Health Commissioned Services,526,25-Nov-2016,1611-00503,0.00,1854.45,R,Aireborough Family Practice,No
Http://opendatacommunities.org/id/metropolitan-district-council/leeds,Leeds City Council,30/11/2016,Adult Social Care,Services For Older People - 65 And Over,Third Party Payments,Residential Care Dementia,571,16-Nov-2016,1611-00504,0.00,2175.36,R,Airedale (Goldsborough),No
Http://opendatacommunities.org/id/metropolitan-district-council/leeds,Leeds City Council,30/11/2016,Adult Social Care,Services For Older People - 65 And Over,Third Party Payments,Residential,580,16-Nov-2016,1611-00505,0.00,14810.67,R,Airedale (Goldsborough),No
Http://opendatacommunities.org/id/metropolitan-district-council/leeds,Leeds City Council,30/11/2016,Adult Social Care,Services For Older People Under 65 P/Dis,Third Party Payments,Residential,580,16-Nov-2016,1611-00506,0.00,1999.68,R,Airedale (Goldsborough),No
Http://opendatacommunities.org/id/metropolitan-district-council/leeds,Leeds City Council,30/11/2016,Civic Enterprise Leeds,Commercial Services,Supplies and Services,Operational Materials,205,21-Nov-2016,1611-00507,0.00,756.00,R,Airedale Catering Equipment Ltd,No
Http://opendatacommunities.org/id/metropolitan-district-council/leeds,Leeds City Council,30/11/2016,Childrens Services,Capital Maintenance,Capital,Other Costs,7,21-Nov-2016,1611-00508,0.00,8174.00,C,Airedale Catering Equipment Ltd,No
Http://opendatacommunities.org/id/metropolitan-district-council/leeds,Leeds City Council,30/11/2016,Environment & Housing,Leeds Building Services,Supplies and Services,Operational Materials,205,30-Nov-2016,1611-00509,0.00,1200.00,R,Airedale Catering Equipment Ltd,No
Http://opendatacommunities.org/id/metropolitan-district-council/leeds,Leeds City Council,30/11/2016,Adult Social Care,Assessment And Care Management,Employees,Training Costs,71,08-Nov-2016,1611-00510,0.00,150.00,R,Airedale Community Trading (Act) Ltd,No
Http://opendatacommunities.org/id/metropolitan-district-council/leeds,Leeds City Council,30/11/2016,Environment & Housing,Community Safety,Supplies and Services,Bought In Professional Services,277,09-Nov-2016,1611-00511,0.00,787.56,R,Airwave Solutions Ltd,No
Http://opendatacommunities.org/id/metropolitan-district-council/leeds,Leeds City Council,30/11/2016,Civic Enterprise Leeds,Commercial Services,Supplies and Services,Other Hired And Contracted Services,265,14-Nov-2016,1611-00512,0.00,405.00,R,Air-Weigh Europe Limited,No
Http://opendatacommunities.org/id/metropolitan-district-council/leeds,Leeds City Council,30/11/2016,Civic Enterprise Leeds,Commercial Services,Supplies and Services,Other Hired And Contracted Services,265,17-Nov-2016,1611-00513,0.00,315.00,R,Air-Weigh Europe Limited,No
Http://opendatacommunities.org/id/metropolitan-district-council/leeds,Leeds City Council,30/11/2016,Civic Enterprise Leeds,Commercial Services,Supplies and Services,Other Hired And Contracted Services,265,25-Nov-2016,1611-00514,0.00,247.50,R,Air-Weigh Europe Limited,No
Http://opendatacommunities.org/id/metropolitan-district-council/leeds,Leeds City Council,30/11/2016,Childrens Services,Safeguarding Targeted & Specialist,Transfer Payments,16 Plus Top Up Allowance,625,04-Nov-2016,1611-00515,0.00,180.00,R,REDACTED PERSONAL DATA,No
Http://opendatacommunities.org/id/metropolitan-district-council/leeds,Leeds City Council,30/11/2016,Adult Social Care,Services For Adults Under 65 Mental/Dis,Third Party Payments,Fees - Level 4,520,04-Nov-2016,1611-00516,0.00,261.00,R,Ait Mitra,No
Http://opendatacommunities.org/id/metropolitan-district-council/leeds,Leeds City Council,30/11/2016,Adult Social Care,Services For Adults Under 65 Mental/Dis,Third Party Payments,Fees - Level 4,520,04-Nov-2016,1611-00517,0.00,175.00,R,Ait Mitra,No
Http://opendatacommunities.org/id/metropolitan-district-council/leeds,Leeds City Council as Accountable Body,30/11/2016,Social Services Pooled Budgets,Jcs For People With Learning Disabilitie,Third Party Payments,Residential,580,16-Nov-2016,1611-00518,0.00,6173.24,R,Aitch Care Homes,No
Http://opendatacommunities.org/id/metropolitan-district-council/leeds,Leeds City Council,30/11/2016,Adult Social Care,Services For Older People - 65 And Over,Third Party Payments,Home Care,568,11-Nov-2016,1611-00519,0.00,4241.41,R,Aj Social Care,No
Http://opendatacommunities.org/id/metropolitan-district-council/leeds,Leeds City Council,30/11/2016,Adult Social Care,Services For Older People Under 65 P/Dis,Third Party Payments,Home Care,568,11-Nov-2016,1611-00520,0.00,3315.85,R,Aj Social Care,No
Http://opendatacommunities.org/id/metropolitan-district-council/leeds,Leeds City Council,30/11/2016,Adult Social Care,Services For Older People - 65 And Over,Third Party Payments,Home Care,568,11-Nov-2016,1611-00521,0.00,17218.94,R,Aj Social Care,No
Http://opendatacommunities.org/id/metropolitan-district-council/leeds,Leeds City Council,30/11/2016,Adult Social Care,Services For Older People Under 65 P/Dis,Third Party Payments,Home Care,568,11-Nov-2016,1611-00522,0.00,4373.44,R,Aj Social Care,No
Http://opendatacommunities.org/id/metropolitan-district-council/leeds,Leeds City Council,30/11/2016,Environment & Housing,Leeds Building Services,Capital,Stores - Central And Other Depots,005,01-Nov-2016,1611-00523,0.00,119.16,R,Ajm Fixings & Power Tools Ltd,No
Http://opendatacommunities.org/id/metropolitan-district-council/leeds,Leeds City Council,30/11/2016,Environment & Housing,Leeds Building Services,Supplies and Services,Operational Furniture And Equipment,203,08-Nov-2016,1611-00524,0.00,48.50,R,Ajm Fixings & Power Tools Ltd,No
Http://opendatacommunities.org/id/metropolitan-district-council/leeds,Leeds City Council,30/11/2016,Environment & Housing,Leeds Building Services,Capital,Stores - Central And Other Depots,005,08-Nov-2016,1611-00525,0.00,447.52,R,Ajm Fixings & Power Tools Ltd,No
Http://opendatacommunities.org/id/metropolitan-district-council/leeds,Leeds City Council,30/11/2016,Environment & Housing,Leeds Building Services,Supplies and Services,Operational Furniture And Equipment,203,17-Nov-2016,1611-00526,0.00,471.65,R,Ajm Fixings & Power Tools Ltd,No
Http://opendatacommunities.org/id/metropolitan-district-council/leeds,Leeds City Council,30/11/2016,Environment & Housing,Leeds Building Services,Supplies and Services,Operational Furniture And Equipment,203,18-Nov-2016,1611-00527,0.00,95.00,R,Ajm Fixings & Power Tools Ltd,No
Http://opendatacommunities.org/id/metropolitan-district-council/leeds,Leeds City Council,30/11/2016,Environment & Housing,Leeds Building Services,Supplies and Services,Operational Furniture And Equipment,203,18-Nov-2016,1611-00528,0.00,49.41,R,Ajm Fixings & Power Tools Ltd,No
Http://opendatacommunities.org/id/metropolitan-district-council/leeds,Leeds City Council,30/11/2016,Environment & Housing,Leeds Building Services,Capital,Stores - Central And Other Depots,005,28-Nov-2016,1611-00529,0.00,503.80,R,Ajm Fixings & Power Tools Ltd,No
Http://opendatacommunities.org/id/metropolitan-district-council/leeds,Leeds City Council,30/11/2016,Environment & Housing,Leeds Building Services,Supplies and Services,Operational Furniture And Equipment,203,28-Nov-2016,1611-00530,0.00,325.00,R,Ajm Fixings & Power Tools Ltd,No
Http://opendatacommunities.org/id/metropolitan-district-council/leeds,Leeds City Council,30/11/2016,Environment & Housing,Leeds Building Services,Supplies and Services,Operational Materials,205,28-Nov-2016,1611-00531,0.00,90.65,R,Ajm Fixings & Power Tools Ltd,No
Http://opendatacommunities.org/id/metropolitan-district-council/leeds,Leeds City Council,30/11/2016,Environment & Housing,Leeds Building Services,Capital,Stores - Central And Other Depots,005,28-Nov-2016,1611-00532,0.00,119.70,R,Ajm Fixings & Power Tools Ltd,No
Http://opendatacommunities.org/id/metropolitan-district-council/leeds,Leeds City Council,30/11/2016,Environment & Housing,Leeds Building Services,Supplies and Services,Operational Furniture And Equipment,203,28-Nov-2016,1611-00533,0.00,75.16,R,Ajm Fixings & Power Tools Ltd,No
Http://opendatacommunities.org/id/metropolitan-district-council/leeds,Leeds City Council,30/11/2016,Central & Corporate,Human Resources,Employees,Training & Development,70,04-Nov-2016,1611-00534,0.00,450.00,R,Ajp Technologies Ltd,No
Http://opendatacommunities.org/id/metropolitan-district-council/leeds,Leeds City Council,30/11/2016,Adult Social Care,Services For Older People - 65 And Over,Third Party Payments,Nursing Home,570,16-Nov-2016,1611-00535,0.00,1261.04,R,Akari Care Ltd,No
Http://opendatacommunities.org/id/metropolitan-district-council/leeds,Leeds City Council,30/11/2016,Civic Enterprise Leeds,Commercial Services,Premises,Plant and Machinery,102,08-Nov-2016,1611-00536,0.00,296.91,R,Akua Uk Ltd,No
Http://opendatacommunities.org/id/metropolitan-district-council/leeds,Leeds City Council,30/11/2016,Civic Enterprise Leeds,Commercial Services,Premises,Plant and Machinery,102,08-Nov-2016,1611-00537,0.00,129.50,R,Akua Uk Ltd,No
Http://opendatacommunities.org/id/metropolitan-district-council/leeds,Leeds City Council,30/11/2016,Public Health,Public Health,Third Party Payments,Public Health Commissioned Services,526,25-Nov-2016,1611-00538,0.00,5158.95,R,Al Shafa Pharmacy,No
Http://opendatacommunities.org/id/metropolitan-district-council/leeds,Leeds City Council,30/11/2016,City Development,Economic Development,Supplies and Services,Publication And Promotion,267,11-Nov-2016,1611-00539,0.00,41.67,R,Alan Brown Flowers,No
Http://opendatacommunities.org/id/metropolitan-district-council/leeds,Leeds City Council,30/11/2016,City Development,Planning & Sustainable Development,Support Services,Legal Disbursements,411,10-Nov-2016,1611-00540,0.00,6000.00,R,Alan Evans,No
Http://opendatacommunities.org/id/metropolitan-district-council/leeds,Leeds City Council,30/11/2016,City Development,Planning & Sustainable Development,Support Services,Legal Disbursements,411,11-Nov-2016,1611-00541,0.00,1000.00,R,Alan Evans,No
Http://opendatacommunities.org/id/metropolitan-district-council/leeds,Leeds City Council,30/11/2016,Civic Enterprise Leeds,Commercial Services,Supplies and Services,Other Hired And Contracted Services,265,25-Nov-2016,1611-00542,0.00,186.43,R,Albert Farnell Ltd,No
Http://opendatacommunities.org/id/metropolitan-district-council/leeds,Leeds City Council,30/11/2016,Civic Enterprise Leeds,Commercial Services,Transport,Vehicle Spares,345,30-Nov-2016,1611-00543,0.00,53.12,R,Albert Jagger Limited,No
Http://opendatacommunities.org/id/metropolitan-district-council/leeds,Leeds City Council,30/11/2016,Environment & Housing,Environmental Health,Supplies and Services,Other Hired And Contracted Services,265,18-Nov-2016,1611-00544,0.00,322.48,R,Alcontrol Uk Ltd,No
Http://opendatacommunities.org/id/metropolitan-district-council/leeds,Leeds City Council,30/11/2016,Environment & Housing,Waste Management,Supplies and Services,Other Hired And Contracted Services,265,24-Nov-2016,1611-00545,0.00,100.00,R,Alcontrol Uk Ltd,No
Http://opendatacommunities.org/id/metropolitan-district-council/leeds,Leeds City Council,30/11/2016,Childrens Services,Safeguarding Targeted & Specialist  ,Supplies and Services,Food & Drink,231,30-Sep-2016,1611-00546,0.00,11.98,R,Aldi,Yes
Http://opendatacommunities.org/id/metropolitan-district-council/leeds,Leeds City Council,30/11/2016,Childrens Services,Safeguarding Targeted & Specialist  ,Supplies and Services,Food & Drink,231,30-Sep-2016,1611-00547,0.00,14.57,R,Aldi,Yes
Http://opendatacommunities.org/id/metropolitan-district-council/leeds,Leeds City Council,30/11/2016,City Development,Libraries  Arts & Heritage  ,Supplies and Services,Corporate Initatives & Savings Targets,250,04-Oct-2016,1611-00548,0.00,54.87,R,Aldi,Yes
Http://opendatacommunities.org/id/metropolitan-district-council/leeds,Leeds City Council,30/11/2016,City Development,Libraries  Arts & Heritage  ,Supplies and Services,Food & Drink,231,04-Oct-2016,1611-00549,0.00,25.06,R,Aldi,Yes
Http://opendatacommunities.org/id/metropolitan-district-council/leeds,Leeds City Council,30/11/2016,Childrens Services,Safeguarding Targeted & Specialist  ,Transfer Payments,Leaving Care Allowances,634,05-Oct-2016,1611-00550,0.00,21.27,R,Aldi,Yes
Http://opendatacommunities.org/id/metropolitan-district-council/leeds,Leeds City Council,30/11/2016,Childrens Services,Safeguarding Targeted & Specialist,Support Services,Legal Disbursements,411,15-Nov-2016,1611-00551,0.00,36.00,R,Alere Toxicology Plc,No
Http://opendatacommunities.org/id/metropolitan-district-council/leeds,Leeds City Council,30/11/2016,Childrens Services,Safeguarding Targeted & Specialist,Support Services,Legal Disbursements,411,15-Nov-2016,1611-00552,0.00,54.00,R,Alere Toxicology Plc,No
Http://opendatacommunities.org/id/metropolitan-district-council/leeds,Leeds City Council,30/11/2016,Childrens Services,Safeguarding Targeted & Specialist,Support Services,Legal Disbursements,411,15-Nov-2016,1611-00553,0.00,81.00,R,Alere Toxicology Plc,No
Http://opendatacommunities.org/id/metropolitan-district-council/leeds,Leeds City Council,30/11/2016,Childrens Services,Safeguarding Targeted & Specialist,Support Services,Legal Disbursements,411,15-Nov-2016,1611-00554,0.00,81.00,R,Alere Toxicology Plc,No
Http://opendatacommunities.org/id/metropolitan-district-council/leeds,Leeds City Council,30/11/2016,Childrens Services,Safeguarding Targeted & Specialist,Support Services,Legal Disbursements,411,15-Nov-2016,1611-00555,0.00,19.00,R,Alere Toxicology Plc,No
Http://opendatacommunities.org/id/metropolitan-district-council/leeds,Leeds City Council,30/11/2016,Childrens Services,Safeguarding Targeted & Specialist,Support Services,Legal Disbursements,411,15-Nov-2016,1611-00556,0.00,133.40,R,Alere Toxicology Plc,No
Http://opendatacommunities.org/id/metropolitan-district-council/leeds,Leeds City Council,30/11/2016,Childrens Services,Safeguarding Targeted & Specialist,Support Services,Legal Disbursements,411,17-Nov-2016,1611-00557,0.00,68.97,R,Alere Toxicology Plc,No
Http://opendatacommunities.org/id/metropolitan-district-council/leeds,Leeds City Council,30/11/2016,Childrens Services,Safeguarding Targeted & Specialist,Support Services,Legal Disbursements,411,24-Nov-2016,1611-00558,0.00,103.66,R,Alere Toxicology Plc,No
Http://opendatacommunities.org/id/metropolitan-district-council/leeds,Leeds City Council,30/11/2016,Childrens Services,Safeguarding Targeted & Specialist,Support Services,Legal Disbursements,411,24-Nov-2016,1611-00559,0.00,543.20,R,Alere Toxicology Plc,No
Http://opendatacommunities.org/id/metropolitan-district-council/leeds,Leeds City Council,30/11/2016,Childrens Services,Safeguarding Targeted & Specialist,Support Services,Legal Disbursements,411,25-Nov-2016,1611-00560,0.00,189.60,R,Alere Toxicology Plc,No
Http://opendatacommunities.org/id/metropolitan-district-council/leeds,Leeds City Council,30/11/2016,Childrens Services,Safeguarding Targeted & Specialist,Support Services,Legal Disbursements,411,25-Nov-2016,1611-00561,0.00,189.60,R,Alere Toxicology Plc,No
Http://opendatacommunities.org/id/metropolitan-district-council/leeds,Leeds City Council,30/11/2016,Childrens Services,Learning Skills & Universal,Supplies and Services,Training Allowances,257,04-Nov-2016,1611-00562,0.00,264.84,R,REDACTED PERSONAL DATA,No
Http://opendatacommunities.org/id/metropolitan-district-council/leeds,Leeds City Council,30/11/2016,Childrens Services,Learning Skills & Universal,Supplies and Services,Training Allowances,257,11-Nov-2016,1611-00563,0.00,264.84,R,REDACTED PERSONAL DATA,No
Http://opendatacommunities.org/id/metropolitan-district-council/leeds,Leeds City Council,30/11/2016,Childrens Services,Learning Skills & Universal,Supplies and Services,Training Allowances,257,18-Nov-2016,1611-00564,0.00,264.84,R,REDACTED PERSONAL DATA,No
Http://opendatacommunities.org/id/metropolitan-district-council/leeds,Leeds City Council,30/11/2016,Childrens Services,Learning Skills & Universal,Supplies and Services,Training Allowances,257,25-Nov-2016,1611-00565,0.00,264.84,R,REDACTED PERSONAL DATA,No
Http://opendatacommunities.org/id/metropolitan-district-council/leeds,Leeds City Council,30/11/2016,Childrens Services,Safeguarding Targeted & Specialist,Support Services,Legal Disbursements,411,18-Nov-2016,1611-00566,0.00,469.00,R,Alex Taylor,No
Http://opendatacommunities.org/id/metropolitan-district-council/leeds,Leeds City Council,30/11/2016,Adult Social Care,Services For Older People - 65 And Over,Third Party Payments,Residential Care Dementia,571,16-Nov-2016,1611-00567,0.00,56493.86,R,Alexander Residential Home,No
Http://opendatacommunities.org/id/metropolitan-district-council/leeds,Leeds City Council,30/11/2016,Adult Social Care,Services For Older People - 65 And Over,Third Party Payments,Residential,580,16-Nov-2016,1611-00568,0.00,16222.38,R,Alexander Residential Home,No
Http://opendatacommunities.org/id/metropolitan-district-council/leeds,Leeds City Council,30/11/2016,Citizens and Communities,Customer Access,Supplies and Services,Other Hired And Contracted Services,265,01-Nov-2016,1611-00569,0.00,513.50,R,Alexandra Costenco,No
Http://opendatacommunities.org/id/metropolitan-district-council/leeds,Leeds City Council,30/11/2016,Adult Social Care,Services For Older People - 65 And Over,Third Party Payments,Residential Care Dementia,571,16-Nov-2016,1611-00570,0.00,1511.28,R,Alexandra Court,No
Http://opendatacommunities.org/id/metropolitan-district-council/leeds,Leeds City Council,30/11/2016,Adult Social Care,Services For Older People - 65 And Over,Third Party Payments,Residential,580,16-Nov-2016,1611-00571,0.00,11586.80,R,Alexandra Court,No
Http://opendatacommunities.org/id/metropolitan-district-council/leeds,Leeds City Council,30/11/2016,Citizens and Communities,Customer Access,Supplies and Services,Other Hired And Contracted Services,265,01-Nov-2016,1611-00572,0.00,753.25,R,Alexandra Hirst,No
Http://opendatacommunities.org/id/metropolitan-district-council/leeds,Leeds City Council,30/11/2016,Citizens and Communities,Customer Access,Supplies and Services,Other Hired And Contracted Services,265,01-Nov-2016,1611-00573,0.00,227.40,R,Alexia Blohm-Pain,No
Http://opendatacommunities.org/id/metropolitan-district-council/leeds,Leeds City Council,30/11/2016,Childrens Services,Learning Skills & Universal,Supplies and Services,Training Allowances,257,18-Nov-2016,1611-00574,0.00,216.00,R,REDACTED PERSONAL DATA,No
Http://opendatacommunities.org/id/metropolitan-district-council/leeds,Leeds City Council,30/11/2016,Childrens Services,Learning Skills & Universal,Supplies and Services,Training Allowances,257,25-Nov-2016,1611-00575,0.00,216.00,R,REDACTED PERSONAL DATA,No
Http://opendatacommunities.org/id/metropolitan-district-council/leeds,Leeds City Council,30/11/2016,Environment & Housing,Leeds Building Services,Supplies and Services,Other Hired And Contracted Services,265,01-Nov-2016,1611-00576,0.00,590.00,R,Alfred Bagnall & Sons (Leeds) Ltd,No
Http://opendatacommunities.org/id/metropolitan-district-council/leeds,Leeds City Council,30/11/2016,Environment & Housing,Leeds Building Services,Supplies and Services,Other Hired And Contracted Services,265,01-Nov-2016,1611-00577,0.00,3610.00,R,Alfred Bagnall & Sons (Leeds) Ltd,No
Http://opendatacommunities.org/id/metropolitan-district-council/leeds,Leeds City Council,30/11/2016,City Development,Recreation,Supplies and Services,Operational Furniture And Equipment,203,04-Nov-2016,1611-00578,0.00,528.00,R,Alfred Bagnall & Sons (Leeds) Ltd,No
Http://opendatacommunities.org/id/metropolitan-district-council/leeds,Leeds City Council,30/11/2016,City Development,Recreation,Supplies and Services,Operational Materials,205,04-Nov-2016,1611-00579,0.00,1650.00,R,Alfred Bagnall & Sons (Leeds) Ltd,No
Http://opendatacommunities.org/id/metropolitan-district-council/leeds,Leeds City Council,30/11/2016,Environment & Housing,Leeds Building Services,Supplies and Services,Other Hired And Contracted Services,265,04-Nov-2016,1611-00580,0.00,656.68,R,Alfred Bagnall & Sons (Leeds) Ltd,No
Http://opendatacommunities.org/id/metropolitan-district-council/leeds,Leeds City Council,30/11/2016,Environment & Housing,Leeds Building Services,Supplies and Services,Other Hired And Contracted Services,265,08-Nov-2016,1611-00581,0.00,940.00,R,Alfred Bagnall & Sons (Leeds) Ltd,No
Http://opendatacommunities.org/id/metropolitan-district-council/leeds,Leeds City Council,30/11/2016,Environment & Housing,Leeds Building Services,Supplies and Services,Other Hired And Contracted Services,265,08-Nov-2016,1611-00582,0.00,3300.00,R,Alfred Bagnall & Sons (Leeds) Ltd,No
Http://opendatacommunities.org/id/metropolitan-district-council/leeds,Leeds City Council,30/11/2016,City Development,Libraries  Arts & Heritage,Premises,General Maintenance,104,11-Nov-2016,1611-00583,0.00,1500.00,R,Alfred Bagnall & Sons (Leeds) Ltd,No
Http://opendatacommunities.org/id/metropolitan-district-council/leeds,Leeds City Council,30/11/2016,Environment & Housing,Leeds Building Services,Supplies and Services,Other Hired And Contracted Services,265,11-Nov-2016,1611-00584,0.00,3800.00,R,Alfred Bagnall & Sons (Leeds) Ltd,No
Http://opendatacommunities.org/id/metropolitan-district-council/leeds,Leeds City Council,30/11/2016,City Development,Recreation,Supplies and Services,Other Hired And Contracted Services,265,11-Nov-2016,1611-00585,0.00,290.00,R,Alfred Bagnall & Sons (Leeds) Ltd,No
Http://opendatacommunities.org/id/metropolitan-district-council/leeds,Leeds City Council,30/11/2016,City Development,Recreation,Supplies and Services,Other Hired And Contracted Services,265,11-Nov-2016,1611-00586,0.00,600.00,R,Alfred Bagnall & Sons (Leeds) Ltd,No
Http://opendatacommunities.org/id/metropolitan-district-council/leeds,Leeds City Council,30/11/2016,Environment & Housing,Leeds Building Services,Supplies and Services,Other Hired And Contracted Services,265,14-Nov-2016,1611-00587,0.00,2000.00,R,Alfred Bagnall & Sons (Leeds) Ltd,No
Http://opendatacommunities.org/id/metropolitan-district-council/leeds,Leeds City Council,30/11/2016,Environment & Housing,Leeds Building Services,Supplies and Services,Other Hired And Contracted Services,265,14-Nov-2016,1611-00588,0.00,1624.00,R,Alfred Bagnall & Sons (Leeds) Ltd,No
Http://opendatacommunities.org/id/metropolitan-district-council/leeds,Leeds City Council,30/11/2016,Environment & Housing,Leeds Building Services,Supplies and Services,Other Hired And Contracted Services,265,14-Nov-2016,1611-00589,0.00,5050.00,R,Alfred Bagnall & Sons (Leeds) Ltd,No
Http://opendatacommunities.org/id/metropolitan-district-council/leeds,Leeds City Council,30/11/2016,Environment & Housing,Leeds Building Services,Supplies and Services,Other Hired And Contracted Services,265,14-Nov-2016,1611-00590,0.00,460.00,R,Alfred Bagnall & Sons (Leeds) Ltd,No
Http://opendatacommunities.org/id/metropolitan-district-council/leeds,Leeds City Council,30/11/2016,Environment & Housing,Leeds Building Services,Supplies and Services,Other Hired And Contracted Services,265,14-Nov-2016,1611-00591,0.00,1500.00,R,Alfred Bagnall & Sons (Leeds) Ltd,No
Http://opendatacommunities.org/id/metropolitan-district-council/leeds,Leeds City Council,30/11/2016,Environment & Housing,Leeds Building Services,Supplies and Services,Other Hired And Contracted Services,265,14-Nov-2016,1611-00592,0.00,3200.00,R,Alfred Bagnall & Sons (Leeds) Ltd,No
Http://opendatacommunities.org/id/metropolitan-district-council/leeds,Leeds City Council,30/11/2016,Environment & Housing,Leeds Building Services,Supplies and Services,Other Hired And Contracted Services,265,14-Nov-2016,1611-00593,0.00,1833.33,R,Alfred Bagnall & Sons (Leeds) Ltd,No
Http://opendatacommunities.org/id/metropolitan-district-council/leeds,Leeds City Council,30/11/2016,Environment & Housing,Leeds Building Services,Supplies and Services,Other Hired And Contracted Services,265,14-Nov-2016,1611-00594,0.00,2233.00,R,Alfred Bagnall & Sons (Leeds) Ltd,No
Http://opendatacommunities.org/id/metropolitan-district-council/leeds,Leeds City Council,30/11/2016,Environment & Housing,Leeds Building Services,Supplies and Services,Other Hired And Contracted Services,265,14-Nov-2016,1611-00595,0.00,983.00,R,Alfred Bagnall & Sons (Leeds) Ltd,No
Http://opendatacommunities.org/id/metropolitan-district-council/leeds,Leeds City Council,30/11/2016,Environment & Housing,Leeds Building Services,Supplies and Services,Other Hired And Contracted Services,265,18-Nov-2016,1611-00596,0.00,85.96,R,Alfred Bagnall & Sons (Leeds) Ltd,No
Http://opendatacommunities.org/id/metropolitan-district-council/leeds,Leeds City Council,30/11/2016,Childrens Services,Safeguarding Targeted & Specialist,Transfer Payments,Leaving Care Allowances,634,03-Nov-2016,1611-00597,0.00,60.00,R,REDACTED PERSONAL DATA,No
Http://opendatacommunities.org/id/metropolitan-district-council/leeds,Leeds City Council,30/11/2016,Childrens Services,Safeguarding Targeted & Specialist,Transfer Payments,Leaving Care Allowances,634,10-Nov-2016,1611-00598,0.00,60.00,R,REDACTED PERSONAL DATA,No
Http://opendatacommunities.org/id/metropolitan-district-council/leeds,Leeds City Council,30/11/2016,Childrens Services,Safeguarding Targeted & Specialist,Transfer Payments,Leaving Care Allowances,634,21-Nov-2016,1611-00599,0.00,60.00,R,REDACTED PERSONAL DATA,No
Http://opendatacommunities.org/id/metropolitan-district-council/leeds,Leeds City Council,30/11/2016,Childrens Services,Safeguarding Targeted & Specialist,Transfer Payments,Leaving Care Allowances,634,25-Nov-2016,1611-00600,0.00,60.00,R,REDACTED PERSONAL DATA,No
Http://opendatacommunities.org/id/metropolitan-district-council/leeds,Leeds City Council,30/11/2016,Childrens Services,Safeguarding Targeted & Specialist,Support Services,Legal Disbursements,411,17-Nov-2016,1611-00601,0.00,216.00,R,Alice Duncan,No
Http://opendatacommunities.org/id/metropolitan-district-council/leeds,Leeds City Council,30/11/2016,Childrens Services,Safeguarding Targeted & Specialist,Third Party Payments,Section 17,551,04-Nov-2016,1611-00602,0.00,56.90,R,REDACTED PERSONAL DATA,No
Http://opendatacommunities.org/id/metropolitan-district-council/leeds,Leeds City Council,30/11/2016,Childrens Services,Safeguarding Targeted & Specialist,Third Party Payments,Section 17,551,11-Nov-2016,1611-00603,0.00,56.90,R,REDACTED PERSONAL DATA,No
Http://opendatacommunities.org/id/metropolitan-district-council/leeds,Leeds City Council,30/11/2016,Childrens Services,Safeguarding Targeted & Specialist,Third Party Payments,Section 17,551,18-Nov-2016,1611-00604,0.00,56.90,R,REDACTED PERSONAL DATA,No
Http://opendatacommunities.org/id/metropolitan-district-council/leeds,Leeds City Council,30/11/2016,Childrens Services,Safeguarding Targeted & Specialist,Third Party Payments,Section 17,551,25-Nov-2016,1611-00605,0.00,56.90,R,REDACTED PERSONAL DATA,No
Http://opendatacommunities.org/id/metropolitan-district-council/leeds,Leeds City Council,30/11/2016,City Development,Recreation,Income,Swimming Bath Charges,923,30-Nov-2016,1611-00606,0.00,88.20,R,REDACTED PERSONAL DATA,No
Http://opendatacommunities.org/id/metropolitan-district-council/leeds,Leeds City Council,30/11/2016,City Development,Libraries  Arts & Heritage  ,Supplies and Services,Computer Software & Equipment,214,25-Oct-2016,1611-00607,0.00,15.69,R,Aliexpress,Yes
Http://opendatacommunities.org/id/metropolitan-district-council/leeds,Leeds City Council,30/11/2016,City Development,Libraries  Arts & Heritage,Supplies and Services,Other Hired And Contracted Services,265,04-Nov-2016,1611-00608,0.00,400.00,R,Alison Rhind,No
Http://opendatacommunities.org/id/metropolitan-district-council/leeds,Leeds City Council,30/11/2016,City Development,Libraries  Arts & Heritage,Supplies and Services,Other Hired And Contracted Services,265,01-Nov-2016,1611-00609,0.00,250.00,R,Alison Smith,No
Http://opendatacommunities.org/id/metropolitan-district-council/leeds,Leeds City Council,30/11/2016,Childrens Services,Safeguarding Targeted & Specialist,Transfer Payments,Leaving Care Allowances,634,02-Nov-2016,1611-00610,0.00,60.00,R,All Abode,No
Http://opendatacommunities.org/id/metropolitan-district-council/leeds,Leeds City Council,30/11/2016,Childrens Services,Safeguarding Targeted & Specialist,Transfer Payments,Leaving Care Allowances,634,29-Nov-2016,1611-00611,0.00,30.00,R,All Abode,No
Http://opendatacommunities.org/id/metropolitan-district-council/leeds,Leeds City Council,30/11/2016,Environment & Housing,Leeds Building Services,Supplies and Services,Other Hired And Contracted Services,265,28-Nov-2016,1611-00612,0.00,250.00,R,All Clear Solutions Ltd,No
Http://opendatacommunities.org/id/metropolitan-district-council/leeds,Leeds City Council,30/11/2016,Childrens Services,Safeguarding Targeted & Specialist,Supplies and Services,Conference Meetings,253,24-Nov-2016,1611-00613,0.00,45.00,R,All Saints Parish Church,No
Http://opendatacommunities.org/id/metropolitan-district-council/leeds,Leeds City Council as Accountable Body,30/11/2016,Social Services Pooled Budgets,Jcs For People With Learning Disabilitie,Third Party Payments,Sheltered Accommodation,569,16-Nov-2016,1611-00614,0.00,12777.88,R,Allerton Avenue,No
Http://opendatacommunities.org/id/metropolitan-district-council/leeds,Leeds City Council,30/11/2016,Strategic Accounts,Miscellaneous,Supplies and Services,Non-Recurring Grants,227,28-Nov-2016,1611-00615,0.00,371.00,R,Allerton Bywater Cricket Club,No
Http://opendatacommunities.org/id/metropolitan-district-council/leeds,Leeds City Council,30/11/2016,Public Health,Public Health,Third Party Payments,Public Health Commissioned Services,526,25-Nov-2016,1611-00616,0.00,2185.16,R,Allerton Medical Centre,No
Http://opendatacommunities.org/id/metropolitan-district-council/leeds,Leeds City Council,30/11/2016,Central & Corporate,Finance,Supplies and Services,Bank Charges,263,01-Nov-2016,1611-00617,0.00,-66.70,R,Alliance & Leicester Commercial Bank,No
Http://opendatacommunities.org/id/metropolitan-district-council/leeds,Leeds City Council,30/11/2016,Strategic Landlord,Housing Management,Supplies and Services,Other Hired And Contracted Services,265,04-Nov-2016,1611-00618,0.00,268.04,R,Alliance & Leicester Commercial Bank,No
Http://opendatacommunities.org/id/metropolitan-district-council/leeds,Leeds City Council,30/11/2016,Central & Corporate,Finance,Supplies and Services,Bank Charges,263,04-Nov-2016,1611-00619,0.00,2.02,R,Alliance & Leicester Commercial Bank,No
Http://opendatacommunities.org/id/metropolitan-district-council/leeds,Leeds City Council,30/11/2016,Central & Corporate,Finance,Supplies and Services,Bank Charges,263,04-Nov-2016,1611-00620,0.00,281.21,R,Alliance & Leicester Commercial Bank,No
Http://opendatacommunities.org/id/metropolitan-district-council/leeds,Leeds City Council,30/11/2016,Central & Corporate,Finance,Supplies and Services,Bank Charges,263,04-Nov-2016,1611-00621,0.00,1010.92,R,Alliance & Leicester Commercial Bank,No
Http://opendatacommunities.org/id/metropolitan-district-council/leeds,Leeds City Council,30/11/2016,Central & Corporate,Finance,Supplies and Services,Bank Charges,263,04-Nov-2016,1611-00622,0.00,100.14,R,Alliance & Leicester Commercial Bank,No
Http://opendatacommunities.org/id/metropolitan-district-council/leeds,Leeds City Council,30/11/2016,City Development,Highways,Supplies and Services,Other Hired And Contracted Services,265,07-Nov-2016,1611-00623,0.00,1976.00,R,Allied Exploration & Geotechnics Ltd,No
Http://opendatacommunities.org/id/metropolitan-district-council/leeds,Leeds City Council,30/11/2016,City Development,Highways,Capital,Other Costs,7,15-Nov-2016,1611-00624,0.00,13623.75,C,Allied Exploration & Geotechnics Ltd,No
Http://opendatacommunities.org/id/metropolitan-district-council/leeds,Leeds City Council,30/11/2016,City Development,Highways,Capital,Other Costs,7,15-Nov-2016,1611-00625,0.00,236.00,C,Allied Exploration & Geotechnics Ltd,No
Http://opendatacommunities.org/id/metropolitan-district-council/leeds,Leeds City Council,30/11/2016,City Development,Highways,Supplies and Services,Other Hired And Contracted Services,265,22-Nov-2016,1611-00626,0.00,3500.00,R,Allied Exploration & Geotechnics Ltd,No
Http://opendatacommunities.org/id/metropolitan-district-council/leeds,Leeds City Council,30/11/2016,City Development,Highways,Supplies and Services,Other Hired And Contracted Services,265,22-Nov-2016,1611-00627,0.00,985.00,R,Allied Exploration & Geotechnics Ltd,No
Http://opendatacommunities.org/id/metropolitan-district-council/leeds,Leeds City Council,30/11/2016,City Development,Highways,Supplies and Services,Other Hired And Contracted Services,265,22-Nov-2016,1611-00628,0.00,3441.50,R,Allied Exploration & Geotechnics Ltd,No
Http://opendatacommunities.org/id/metropolitan-district-council/leeds,Leeds City Council,30/11/2016,City Development,Highways,Supplies and Services,Other Hired And Contracted Services,265,22-Nov-2016,1611-00629,0.00,7708.40,R,Allied Exploration & Geotechnics Ltd,No
Http://opendatacommunities.org/id/metropolitan-district-council/leeds,Leeds City Council,30/11/2016,City Development,Highways,Supplies and Services,Other Hired And Contracted Services,265,29-Nov-2016,1611-00630,0.00,1228.80,R,Allied Exploration & Geotechnics Ltd,No
Http://opendatacommunities.org/id/metropolitan-district-council/leeds,Leeds City Council,30/11/2016,City Development,Highways,Supplies and Services,Other Hired And Contracted Services,265,29-Nov-2016,1611-00631,0.00,6600.70,R,Allied Exploration & Geotechnics Ltd,No
Http://opendatacommunities.org/id/metropolitan-district-council/leeds,Leeds City Council as Accountable Body,30/11/2016,Social Services Pooled Budgets,Jcs For People With Learning Disabilitie,Third Party Payments,Home Care,568,02-Nov-2016,1611-00632,0.00,155.68,R,Allied Healthcare,No
Http://opendatacommunities.org/id/metropolitan-district-council/leeds,Leeds City Council as Accountable Body,30/11/2016,Social Services Pooled Budgets,Jcs For People With Learning Disabilitie,Third Party Payments,Home Care,568,02-Nov-2016,1611-00633,0.00,787.92,R,Allied Healthcare,No
Http://opendatacommunities.org/id/metropolitan-district-council/leeds,Leeds City Council as Accountable Body,30/11/2016,Social Services Pooled Budgets,Jcs For People With Learning Disabilitie,Third Party Payments,Home Care,568,02-Nov-2016,1611-00634,0.00,807.10,R,Allied Healthcare,No
Http://opendatacommunities.org/id/metropolitan-district-council/leeds,Leeds City Council as Accountable Body,30/11/2016,Social Services Pooled Budgets,Jcs For People With Learning Disabilitie,Third Party Payments,Home Care,568,02-Nov-2016,1611-00635,0.00,62.75,R,Allied Healthcare,No
Http://opendatacommunities.org/id/metropolitan-district-council/leeds,Leeds City Council as Accountable Body,30/11/2016,Social Services Pooled Budgets,Jcs For People With Learning Disabilitie,Third Party Payments,Home Care,568,02-Nov-2016,1611-00636,0.00,62.75,R,Allied Healthcare,No
Http://opendatacommunities.org/id/metropolitan-district-council/leeds,Leeds City Council as Accountable Body,30/11/2016,Social Services Pooled Budgets,Jcs For People With Learning Disabilitie,Third Party Payments,Home Care,568,02-Nov-2016,1611-00637,0.00,401.60,R,Allied Healthcare,No
Http://opendatacommunities.org/id/metropolitan-district-council/leeds,Leeds City Council as Accountable Body,30/11/2016,Social Services Pooled Budgets,Jcs For People With Learning Disabilitie,Third Party Payments,Home Care,568,04-Nov-2016,1611-00638,0.00,80.80,R,Allied Healthcare,No
Http://opendatacommunities.org/id/metropolitan-district-council/leeds,Leeds City Council,30/11/2016,Childrens Services,Safeguarding Targeted & Specialist,Third Party Payments,Services Rendered By Voluntary Sector,505,04-Nov-2016,1611-00639,0.00,865.69,R,Allied Healthcare,No
Http://opendatacommunities.org/id/metropolitan-district-council/leeds,Leeds City Council,30/11/2016,Childrens Services,Safeguarding Targeted & Specialist,Third Party Payments,Services Rendered By Voluntary Sector,505,04-Nov-2016,1611-00640,0.00,1048.45,R,Allied Healthcare,No
Http://opendatacommunities.org/id/metropolitan-district-council/leeds,Leeds City Council,30/11/2016,Childrens Services,Safeguarding Targeted & Specialist,Third Party Payments,Services Rendered By Voluntary Sector,505,04-Nov-2016,1611-00641,0.00,119.55,R,Allied Healthcare,No
Http://opendatacommunities.org/id/metropolitan-district-council/leeds,Leeds City Council,30/11/2016,Childrens Services,Safeguarding Targeted & Specialist,Third Party Payments,Services Rendered By Voluntary Sector,505,04-Nov-2016,1611-00642,0.00,630.85,R,Allied Healthcare,No
Http://opendatacommunities.org/id/metropolitan-district-council/leeds,Leeds City Council,30/11/2016,Childrens Services,Safeguarding Targeted & Specialist,Third Party Payments,Services Rendered By Voluntary Sector,505,04-Nov-2016,1611-00643,0.00,868.05,R,Allied Healthcare,No
Http://opendatacommunities.org/id/metropolitan-district-council/leeds,Leeds City Council as Accountable Body,30/11/2016,Social Services Pooled Budgets,Jcs For People With Learning Disabilitie,Third Party Payments,Home Care,568,09-Nov-2016,1611-00644,0.00,1180.70,R,Allied Healthcare,No
Http://opendatacommunities.org/id/metropolitan-district-council/leeds,Leeds City Council as Accountable Body,30/11/2016,Social Services Pooled Budgets,Jcs For People With Learning Disabilitie,Third Party Payments,Home Care,568,09-Nov-2016,1611-00645,0.00,15305.54,R,Allied Healthcare,No
Http://opendatacommunities.org/id/metropolitan-district-council/leeds,Leeds City Council,30/11/2016,Adult Social Care,Services For Older People - 65 And Over,Third Party Payments,Home Care,568,09-Nov-2016,1611-00646,0.00,3013.67,R,Allied Healthcare,No
Http://opendatacommunities.org/id/metropolitan-district-council/leeds,Leeds City Council,30/11/2016,Adult Social Care,Services For Older People - 65 And Over,Third Party Payments,Home Care,568,09-Nov-2016,1611-00647,0.00,1955.59,R,Allied Healthcare,No
Http://opendatacommunities.org/id/metropolitan-district-council/leeds,Leeds City Council,30/11/2016,Adult Social Care,Services For Older People Under 65 P/Dis,Third Party Payments,Home Care,568,09-Nov-2016,1611-00648,0.00,341.46,R,Allied Healthcare,No
Http://opendatacommunities.org/id/metropolitan-district-council/leeds,Leeds City Council,30/11/2016,Adult Social Care,Services For Older People - 65 And Over,Third Party Payments,Home Care,568,09-Nov-2016,1611-00649,0.00,511.36,R,Allied Healthcare,No
Http://opendatacommunities.org/id/metropolitan-district-council/leeds,Leeds City Council,30/11/2016,Adult Social Care,Services For Older People - 65 And Over,Third Party Payments,Home Care,568,09-Nov-2016,1611-00650,0.00,9349.93,R,Allied Healthcare,No
Http://opendatacommunities.org/id/metropolitan-district-council/leeds,Leeds City Council,30/11/2016,Adult Social Care,Services For Older People Under 65 P/Dis,Third Party Payments,Home Care,568,09-Nov-2016,1611-00651,0.00,3796.03,R,Allied Healthcare,No
Http://opendatacommunities.org/id/metropolitan-district-council/leeds,Leeds City Council,30/11/2016,Adult Social Care,Services For Older People - 65 And Over,Third Party Payments,Home Care,568,09-Nov-2016,1611-00652,0.00,14512.46,R,Allied Healthcare,No
Http://opendatacommunities.org/id/metropolitan-district-council/leeds,Leeds City Council,30/11/2016,Adult Social Care,Services For Older People Under 65 P/Dis,Third Party Payments,Home Care,568,09-Nov-2016,1611-00653,0.00,3699.77,R,Allied Healthcare,No
Http://opendatacommunities.org/id/metropolitan-district-council/leeds,Leeds City Council,30/11/2016,Adult Social Care,Services For Older People - 65 And Over,Third Party Payments,Home Care,568,09-Nov-2016,1611-00654,0.00,15997.55,R,Allied Healthcare,No
Http://opendatacommunities.org/id/metropolitan-district-council/leeds,Leeds City Council,30/11/2016,Adult Social Care,Services For Older People Under 65 P/Dis,Third Party Payments,Home Care,568,09-Nov-2016,1611-00655,0.00,11984.36,R,Allied Healthcare,No
Http://opendatacommunities.org/id/metropolitan-district-council/leeds,Leeds City Council as Accountable Body,30/11/2016,Social Services Pooled Budgets,Jcs For People With Learning Disabilitie,Third Party Payments,Home Care,568,10-Nov-2016,1611-00656,0.00,502.00,R,Allied Healthcare,No
Http://opendatacommunities.org/id/metropolitan-district-council/leeds,Leeds City Council as Accountable Body,30/11/2016,Social Services Pooled Budgets,Jcs For People With Learning Disabilitie,Third Party Payments,Home Care,568,10-Nov-2016,1611-00657,0.00,131.76,R,Allied Healthcare,No
Http://opendatacommunities.org/id/metropolitan-district-council/leeds,Leeds City Council as Accountable Body,30/11/2016,Social Services Pooled Budgets,Jcs For People With Learning Disabilitie,Third Party Payments,Home Care,568,10-Nov-2016,1611-00658,0.00,15654.41,R,Allied Healthcare,No
Http://opendatacommunities.org/id/metropolitan-district-council/leeds,Leeds City Council,30/11/2016,Childrens Services,Safeguarding Targeted & Specialist,Third Party Payments,Services Rendered By Voluntary Sector,505,11-Nov-2016,1611-00659,0.00,598.50,R,Allied Healthcare,No
Http://opendatacommunities.org/id/metropolitan-district-council/leeds,Leeds City Council as Accountable Body,30/11/2016,Social Services Pooled Budgets,Jcs For People With Learning Disabilitie,Third Party Payments,Home Care,568,16-Nov-2016,1611-00660,0.00,552.21,R,Allied Healthcare,No
Http://opendatacommunities.org/id/metropolitan-district-council/leeds,Leeds City Council,30/11/2016,Adult Social Care,Other Generic Services,Third Party Payments,Home Care,568,17-Nov-2016,1611-00661,0.00,16387.14,R,Allied Healthcare,No
Http://opendatacommunities.org/id/metropolitan-district-council/leeds,Leeds City Council,30/11/2016,Adult Social Care,Other Generic Services,Third Party Payments,Home Care,568,17-Nov-2016,1611-00662,0.00,7568.11,R,Allied Healthcare,No
Http://opendatacommunities.org/id/metropolitan-district-council/leeds,Leeds City Council,30/11/2016,Childrens Services,Safeguarding Targeted & Specialist,Third Party Payments,Services Rendered By Voluntary Sector,505,17-Nov-2016,1611-00663,0.00,797.60,R,Allied Healthcare,No
Http://opendatacommunities.org/id/metropolitan-district-council/leeds,Leeds City Council,30/11/2016,Childrens Services,Safeguarding Targeted & Specialist,Third Party Payments,Services Rendered By Voluntary Sector,505,17-Nov-2016,1611-00664,0.00,797.60,R,Allied Healthcare,No
Http://opendatacommunities.org/id/metropolitan-district-council/leeds,Leeds City Council,30/11/2016,Childrens Services,Safeguarding Targeted & Specialist,Third Party Payments,Services Rendered By Voluntary Sector,505,17-Nov-2016,1611-00665,0.00,797.60,R,Allied Healthcare,No
Http://opendatacommunities.org/id/metropolitan-district-council/leeds,Leeds City Council as Accountable Body,30/11/2016,Social Services Pooled Budgets,Jcs For People With Learning Disabilitie,Third Party Payments,Home Care,568,18-Nov-2016,1611-00666,0.00,137.72,R,Allied Healthcare,No
Http://opendatacommunities.org/id/metropolitan-district-council/leeds,Leeds City Council as Accountable Body,30/11/2016,Social Services Pooled Budgets,Jcs For People With Learning Disabilitie,Third Party Payments,Home Care,568,18-Nov-2016,1611-00667,0.00,15178.43,R,Allied Healthcare,No
Http://opendatacommunities.org/id/metropolitan-district-council/leeds,Leeds City Council as Accountable Body,30/11/2016,Social Services Pooled Budgets,Jcs For People With Learning Disabilitie,Third Party Payments,Home Care,568,18-Nov-2016,1611-00668,0.00,212.37,R,Allied Healthcare,No
Http://opendatacommunities.org/id/metropolitan-district-council/leeds,Leeds City Council,30/11/2016,Adult Social Care,Other Generic Services,Third Party Payments,Home Care,568,23-Nov-2016,1611-00669,0.00,25.30,R,Allied Healthcare,No
Http://opendatacommunities.org/id/metropolitan-district-council/leeds,Leeds City Council as Accountable Body,30/11/2016,Social Services Pooled Budgets,Jcs For People With Learning Disabilitie,Third Party Payments,Home Care,568,23-Nov-2016,1611-00670,0.00,539.66,R,Allied Healthcare,No
Http://opendatacommunities.org/id/metropolitan-district-council/leeds,Leeds City Council,30/11/2016,Childrens Services,Safeguarding Targeted & Specialist,Third Party Payments,Services Rendered By Voluntary Sector,505,25-Nov-2016,1611-00671,0.00,797.60,R,Allied Healthcare,No
Http://opendatacommunities.org/id/metropolitan-district-council/leeds,Leeds City Council,30/11/2016,Public Health,Public Health,Third Party Payments,Public Health Commissioned Services,526,01-Nov-2016,1611-00672,0.00,92.83,R,Allied Pharmacy Ltd,No
Http://opendatacommunities.org/id/metropolitan-district-council/leeds,Leeds City Council,30/11/2016,Strategic Landlord,Housing Management,Supplies and Services,Other Hired And Contracted Services,265,16-Nov-2016,1611-00673,0.00,0.25,R,Allpay Limted,No
Http://opendatacommunities.org/id/metropolitan-district-council/leeds,Leeds City Council,30/11/2016,Central & Corporate,Democratic Services,Transport,Fuel (Non LCC Supplies),321,07-Nov-2016,1611-00674,0.00,193.65,R,Allstar Business Solutions Ltd,No
Http://opendatacommunities.org/id/metropolitan-district-council/leeds,Leeds City Council,30/11/2016,Childrens Services,Learning Skills & Universal,Transport,Fuel (Non LCC Supplies),321,07-Nov-2016,1611-00675,0.00,1127.40,R,Allstar Business Solutions Ltd,No
Http://opendatacommunities.org/id/metropolitan-district-council/leeds,Leeds City Council,30/11/2016,Environment & Housing,Parks and Countryside,Transport,Fuel (Non LCC Supplies),321,07-Nov-2016,1611-00676,0.00,80.34,R,Allstar Business Solutions Ltd,No
Http://opendatacommunities.org/id/metropolitan-district-council/leeds,Leeds City Council,30/11/2016,City Development,Highways,Transport,Fuel (Non LCC Supplies),321,07-Nov-2016,1611-00677,0.00,277.04,R,Allstar Business Solutions Ltd,No
Http://opendatacommunities.org/id/metropolitan-district-council/leeds,Leeds City Council,30/11/2016,Environment & Housing,Waste Management,Transport,Fuel (Non LCC Supplies),321,07-Nov-2016,1611-00678,0.00,1.20,R,Allstar Business Solutions Ltd,No
Http://opendatacommunities.org/id/metropolitan-district-council/leeds,Leeds City Council,30/11/2016,City Development,Libraries  Arts & Heritage,Supplies and Services,Other Hired And Contracted Services,265,23-Nov-2016,1611-00679,0.00,125.00,R,Almaz Mana,No
Http://opendatacommunities.org/id/metropolitan-district-council/leeds,Leeds City Council,30/11/2016,Childrens Services,Safeguarding Targeted & Specialist,Support Services,Legal Disbursements,411,04-Nov-2016,1611-00680,0.00,675.00,R,Alphabiolabs,No
Http://opendatacommunities.org/id/metropolitan-district-council/leeds,Leeds City Council,30/11/2016,Childrens Services,Safeguarding Targeted & Specialist,Support Services,Legal Disbursements,411,04-Nov-2016,1611-00681,0.00,78.75,R,Alphabiolabs,No
Http://opendatacommunities.org/id/metropolitan-district-council/leeds,Leeds City Council,30/11/2016,Childrens Services,Safeguarding Targeted & Specialist,Support Services,Legal Disbursements,411,04-Nov-2016,1611-00682,0.00,76.25,R,Alphabiolabs,No
Http://opendatacommunities.org/id/metropolitan-district-council/leeds,Leeds City Council,30/11/2016,Childrens Services,Safeguarding Targeted & Specialist,Support Services,Legal Disbursements,411,09-Nov-2016,1611-00683,0.00,495.00,R,Alphabiolabs,No
Http://opendatacommunities.org/id/metropolitan-district-council/leeds,Leeds City Council,30/11/2016,Childrens Services,Safeguarding Targeted & Specialist,Support Services,Legal Disbursements,411,10-Nov-2016,1611-00684,0.00,390.00,R,Alphabiolabs,No
Http://opendatacommunities.org/id/metropolitan-district-council/leeds,Leeds City Council,30/11/2016,Childrens Services,Safeguarding Targeted & Specialist,Support Services,Legal Disbursements,411,30-Nov-2016,1611-00685,0.00,196.00,R,Alphabiolabs,No
Http://opendatacommunities.org/id/metropolitan-district-council/leeds,Leeds City Council,30/11/2016,Childrens Services,Safeguarding Targeted & Specialist,Support Services,Legal Disbursements,411,30-Nov-2016,1611-00686,0.00,165.01,R,Alphabiolabs,No
Http://opendatacommunities.org/id/metropolitan-district-council/leeds,Leeds City Council,30/11/2016,Childrens Services,Safeguarding Targeted & Specialist,Support Services,Legal Disbursements,411,30-Nov-2016,1611-00687,0.00,165.00,R,Alphabiolabs,No
Http://opendatacommunities.org/id/metropolitan-district-council/leeds,Leeds City Council,30/11/2016,Childrens Services,Safeguarding Targeted & Specialist,Support Services,Legal Disbursements,411,30-Nov-2016,1611-00688,0.00,485.00,R,Alphabiolabs,No
Http://opendatacommunities.org/id/metropolitan-district-council/leeds,Leeds City Council,30/11/2016,Childrens Services,Safeguarding Targeted & Specialist,Support Services,Legal Disbursements,411,30-Nov-2016,1611-00689,0.00,136.25,R,Alphabiolabs,No
Http://opendatacommunities.org/id/metropolitan-district-council/leeds,Leeds City Council,30/11/2016,Childrens Services,Safeguarding Targeted & Specialist,Support Services,Legal Disbursements,411,30-Nov-2016,1611-00690,0.00,-142.50,R,Alphabiolabs,No
Http://opendatacommunities.org/id/metropolitan-district-council/leeds,Leeds City Council,30/11/2016,Childrens Services,Partnership Development & Leadership,Supplies and Services,Memberships,226,02-Nov-2016,1611-00691,0.00,14219.62,R,Alps (Alkemygold Ltd),No
Http://opendatacommunities.org/id/metropolitan-district-council/leeds,Leeds City Council,30/11/2016,Civic Enterprise Leeds,Corporate Property Management,Premises,Maintenance Of Buildings,101,25-Nov-2016,1611-00692,0.00,206.00,R,Alternative Drainage Company Ltd,No
Http://opendatacommunities.org/id/metropolitan-district-council/leeds,Leeds City Council,30/11/2016,City Development,Planning & Sustainable Development,Support Services,Professional Legal Services Charges,410,25-Nov-2016,1611-00693,0.00,2250.00,R,Alun Alesbury,No
Http://opendatacommunities.org/id/metropolitan-district-council/leeds,Leeds City Council,30/11/2016,Strategic Accounts,Miscellaneous,Supplies and Services,Non-Recurring Grants,227,21-Nov-2016,1611-00694,0.00,200.00,R,Alwoodley Allotments Association Ltd,No
Http://opendatacommunities.org/id/metropolitan-district-council/leeds,Leeds City Council,30/11/2016,Citizens and Communities,Communities,Supplies and Services,Well Being Small Grants Projects,228,16-Nov-2016,1611-00695,0.00,500.00,R,Alwoodley Park Methodist Luncheon Club,No
Http://opendatacommunities.org/id/metropolitan-district-council/leeds,Leeds City Council,30/11/2016,Adult Social Care,Services For Older People - 65 And Over,Third Party Payments,Payments To Voluntary Organisations,561,25-Nov-2016,1611-00696,0.00,73125.00,R,Alzheimers Society,No
Http://opendatacommunities.org/id/metropolitan-district-council/leeds,Leeds City Council,30/11/2016,Adult Social Care,Services For Older People - 65 And Over,Third Party Payments,Payments To Voluntary Organisations,561,25-Nov-2016,1611-00697,0.00,73125.00,R,Alzheimers Society,No
Http://opendatacommunities.org/id/metropolitan-district-council/leeds,Leeds City Council,30/11/2016,Adult Social Care,Services For Older People - 65 And Over,Third Party Payments,Payments To Voluntary Organisations,561,25-Nov-2016,1611-00698,0.00,73125.00,R,Alzheimers Society,No
Http://opendatacommunities.org/id/metropolitan-district-council/leeds,Leeds City Council,30/11/2016,Childrens Services,Partnership Development & Leadership,Employees,Training & Development,70,28-Nov-2016,1611-00699,0.00,1322.20,R,REDACTED PERSONAL DATA,No
Http://opendatacommunities.org/id/metropolitan-district-council/leeds,Leeds City Council,30/11/2016,Strategic Accounts,Miscellaneous,Supplies and Services,Non-Recurring Grants,227,07-Nov-2016,1611-00700,0.00,200.00,R,Amaranth Football Club,No
Http://opendatacommunities.org/id/metropolitan-district-council/leeds,Leeds City Council,30/11/2016,Childrens Services,Safeguarding Targeted & Specialist  ,Premises,Maintenance Of Buildings,101,24-Oct-2016,1611-00701,0.00,241.92,R,Amari Plastics Plc,Yes
Http://opendatacommunities.org/id/metropolitan-district-council/leeds,Leeds City Council,30/11/2016,Childrens Services,Safeguarding Targeted & Specialist  ,Premises,Maintenance Of Buildings,101,24-Oct-2016,1611-00702,0.00,388.13,R,Amari Plastics Plc,Yes
Http://opendatacommunities.org/id/metropolitan-district-council/leeds,Leeds City Council,30/11/2016,Environment & Housing,Leeds Building Services,Supplies and Services,Operational Materials,205,08-Nov-2016,1611-00703,0.00,725.68,R,Amari Plastics Plc,No
Http://opendatacommunities.org/id/metropolitan-district-council/leeds,Leeds City Council,30/11/2016,Environment & Housing,Leeds Building Services,Supplies and Services,Operational Materials,205,15-Nov-2016,1611-00704,0.00,370.92,R,Amari Plastics Plc,No
Http://opendatacommunities.org/id/metropolitan-district-council/leeds,Leeds City Council,30/11/2016,Environment & Housing,Leeds Building Services,Supplies and Services,Operational Materials,205,28-Nov-2016,1611-00705,0.00,865.04,R,Amari Plastics Plc,No
Http://opendatacommunities.org/id/metropolitan-district-council/leeds,Leeds City Council,30/11/2016,Environment & Housing,Leeds Building Services,Supplies and Services,Operational Materials,205,28-Nov-2016,1611-00706,0.00,74.00,R,Amari Plastics Plc,No
Http://opendatacommunities.org/id/metropolitan-district-council/leeds,Leeds City Council,30/11/2016,Civic Enterprise Leeds,Business Support Centre,Supplies and Services,Operational Materials,205,30-Nov-2016,1611-00707,0.00,106.58,R,Amari Plastics Plc,No
Http://opendatacommunities.org/id/metropolitan-district-council/leeds,Leeds City Council,30/11/2016,Civic Enterprise Leeds,Business Support Centre,Supplies and Services,Operational Materials,205,30-Nov-2016,1611-00708,0.00,26.40,R,Amari Plastics Plc,No
Http://opendatacommunities.org/id/metropolitan-district-council/leeds,Leeds City Council,30/11/2016,City Development,Recreation  ,Supplies and Services,Memberships,226,10-Oct-2016,1611-00709,0.00,70.00,R,Amateur Rowing Ass,Yes
Http://opendatacommunities.org/id/metropolitan-district-council/leeds,Leeds City Council,30/11/2016,City Development,Recreation,Supplies and Services,Operational Furniture And Equipment,203,03-Nov-2016,1611-00710,0.00,390.70,R,Amazon Leisure Uk Ltd,No
Http://opendatacommunities.org/id/metropolitan-district-council/leeds,Leeds City Council,30/11/2016,City Development,Recreation,Supplies and Services,Operational Furniture And Equipment,203,03-Nov-2016,1611-00711,0.00,212.59,R,Amazon Leisure Uk Ltd,No
Http://opendatacommunities.org/id/metropolitan-district-council/leeds,Leeds City Council,30/11/2016,City Development,Recreation,Supplies and Services,Operational Furniture And Equipment,203,04-Nov-2016,1611-00712,0.00,39.93,R,Amazon Leisure Uk Ltd,No
Http://opendatacommunities.org/id/metropolitan-district-council/leeds,Leeds City Council,30/11/2016,City Development,Recreation,Supplies and Services,Operational Furniture And Equipment,203,09-Nov-2016,1611-00713,0.00,237.64,R,Amazon Leisure Uk Ltd,No
Http://opendatacommunities.org/id/metropolitan-district-council/leeds,Leeds City Council,30/11/2016,City Development,Recreation,Supplies and Services,Operational Furniture And Equipment,203,11-Nov-2016,1611-00714,0.00,207.58,R,Amazon Leisure Uk Ltd,No
Http://opendatacommunities.org/id/metropolitan-district-council/leeds,Leeds City Council,30/11/2016,City Development,Recreation,Supplies and Services,Operational Furniture And Equipment,203,11-Nov-2016,1611-00715,0.00,201.41,R,Amazon Leisure Uk Ltd,No
Http://opendatacommunities.org/id/metropolitan-district-council/leeds,Leeds City Council,30/11/2016,City Development,Recreation,Supplies and Services,Operational Furniture And Equipment,203,23-Nov-2016,1611-00716,0.00,116.25,R,Amazon Leisure Uk Ltd,No
Http://opendatacommunities.org/id/metropolitan-district-council/leeds,Leeds City Council,30/11/2016,City Development,Recreation,Supplies and Services,Operational Furniture And Equipment,203,23-Nov-2016,1611-00717,0.00,192.04,R,Amazon Leisure Uk Ltd,No
Http://opendatacommunities.org/id/metropolitan-district-council/leeds,Leeds City Council,30/11/2016,City Development,Recreation,Supplies and Services,Operational Furniture And Equipment,203,23-Nov-2016,1611-00718,0.00,336.15,R,Amazon Leisure Uk Ltd,No
Http://opendatacommunities.org/id/metropolitan-district-council/leeds,Leeds City Council,30/11/2016,City Development,Recreation,Supplies and Services,Operational Furniture And Equipment,203,23-Nov-2016,1611-00719,0.00,112.65,R,Amazon Leisure Uk Ltd,No
Http://opendatacommunities.org/id/metropolitan-district-council/leeds,Leeds City Council,30/11/2016,Civic Enterprise Leeds,Business Support Centre  ,Supplies and Services,Office Consumables,210,06-Oct-2016,1611-00720,0.00,-79.00,R,Amazon Prime,Yes
Http://opendatacommunities.org/id/metropolitan-district-council/leeds,Leeds City Council,30/11/2016,Environment & Housing,Parks And Countryside  ,Supplies and Services,Operational Materials,205,12-Oct-2016,1611-00721,0.00,13.90,R,Amazon Svcs Europe sar,Yes
Http://opendatacommunities.org/id/metropolitan-district-council/leeds,Leeds City Council,30/11/2016,Childrens Services,Safeguarding Targeted & Specialist  ,Third Party Payments,Interagency Adoptions,559,01-Oct-2016,1611-00722,0.00,23.08,R,Amazon UK Marketplace,Yes
Http://opendatacommunities.org/id/metropolitan-district-council/leeds,Leeds City Council,30/11/2016,City Development,Economic Development  ,Supplies and Services,Books & Audio-Visual Materials,206,03-Oct-2016,1611-00723,0.00,45.00,R,Amazon UK Marketplace,Yes
Http://opendatacommunities.org/id/metropolitan-district-council/leeds,Leeds City Council,30/11/2016,City Development,Libraries  Arts & Heritage  ,Supplies and Services,Operational Materials,205,03-Oct-2016,1611-00724,0.00,9.97,R,Amazon UK Marketplace,Yes
Http://opendatacommunities.org/id/metropolitan-district-council/leeds,Leeds City Council,30/11/2016,Childrens Services,Partnership Development & Leadership  ,Supplies and Services,Office Consumables,210,03-Oct-2016,1611-00725,0.00,24.70,R,Amazon UK Marketplace,Yes
Http://opendatacommunities.org/id/metropolitan-district-council/leeds,Leeds City Council,30/11/2016,City Development,Economic Development  ,Supplies and Services,Books & Audio-Visual Materials,206,03-Oct-2016,1611-00726,0.00,48.59,R,Amazon UK Marketplace,Yes
Http://opendatacommunities.org/id/metropolitan-district-council/leeds,Leeds City Council,30/11/2016,City Development,Libraries  Arts & Heritage  ,Supplies and Services,Computer Software & Equipment,214,04-Oct-2016,1611-00727,0.00,60.34,R,Amazon UK Marketplace,Yes
Http://opendatacommunities.org/id/metropolitan-district-council/leeds,Leeds City Council,30/11/2016,Childrens Services,Safeguarding Targeted & Specialist  ,Transfer Payments,Leaving Care Grants,635,04-Oct-2016,1611-00728,0.00,350.00,R,Amazon UK Marketplace,Yes
Http://opendatacommunities.org/id/metropolitan-district-council/leeds,Leeds City Council,30/11/2016,City Development,Libraries  Arts & Heritage  ,Supplies and Services,Operational Materials,205,04-Oct-2016,1611-00729,0.00,7.14,R,Amazon UK Marketplace,Yes
Http://opendatacommunities.org/id/metropolitan-district-council/leeds,Leeds City Council,30/11/2016,City Development,Libraries  Arts & Heritage  ,Supplies and Services,Teaching Materials,202,04-Oct-2016,1611-00730,0.00,22.46,R,Amazon UK Marketplace,Yes
Http://opendatacommunities.org/id/metropolitan-district-council/leeds,Leeds City Council,30/11/2016,Strategic Landlord,Housing Management  ,Supplies and Services,Office Furniture & Equipment,201,04-Oct-2016,1611-00731,0.00,10.48,R,Amazon UK Marketplace,Yes
Http://opendatacommunities.org/id/metropolitan-district-council/leeds,Leeds City Council,30/11/2016,City Development,Economic Development  ,Supplies and Services,Books & Audio-Visual Materials,206,04-Oct-2016,1611-00732,0.00,11.24,R,Amazon UK Marketplace,Yes
Http://opendatacommunities.org/id/metropolitan-district-council/leeds,Leeds City Council,30/11/2016,Central & Corporate,Human Resources  ,Supplies and Services,Books & Audio-Visual Materials,206,04-Oct-2016,1611-00733,0.00,27.99,R,Amazon UK Marketplace,Yes
Http://opendatacommunities.org/id/metropolitan-district-council/leeds,Leeds City Council,30/11/2016,City Development,Libraries  Arts & Heritage  ,Supplies and Services,Books & Audio-Visual Materials,206,05-Oct-2016,1611-00734,0.00,35.42,R,Amazon UK Marketplace,Yes
Http://opendatacommunities.org/id/metropolitan-district-council/leeds,Leeds City Council,30/11/2016,City Development,Libraries  Arts & Heritage  ,Supplies and Services,Books & Audio-Visual Materials,206,05-Oct-2016,1611-00735,0.00,61.92,R,Amazon UK Marketplace,Yes
Http://opendatacommunities.org/id/metropolitan-district-council/leeds,Leeds City Council,30/11/2016,City Development,Libraries  Arts & Heritage  ,Supplies and Services,Operational Materials,205,05-Oct-2016,1611-00736,0.00,3.63,R,Amazon UK Marketplace,Yes
Http://opendatacommunities.org/id/metropolitan-district-council/leeds,Leeds City Council,30/11/2016,City Development,Libraries  Arts & Heritage  ,Supplies and Services,Books & Audio-Visual Materials,206,05-Oct-2016,1611-00737,0.00,45.83,R,Amazon UK Marketplace,Yes
Http://opendatacommunities.org/id/metropolitan-district-council/leeds,Leeds City Council,30/11/2016,Childrens Services,Learning Skills & Universal  ,Supplies and Services,Books & Audio-Visual Materials,206,05-Oct-2016,1611-00738,0.00,13.09,R,Amazon UK Marketplace,Yes
Http://opendatacommunities.org/id/metropolitan-district-council/leeds,Leeds City Council,30/11/2016,City Development,Libraries  Arts & Heritage  ,Supplies and Services,Teaching Materials,202,05-Oct-2016,1611-00739,0.00,39.96,R,Amazon UK Marketplace,Yes
Http://opendatacommunities.org/id/metropolitan-district-council/leeds,Leeds City Council,30/11/2016,City Development,Highways  ,Supplies and Services,Operational Materials,205,05-Oct-2016,1611-00740,0.00,93.96,R,Amazon UK Marketplace,Yes
Http://opendatacommunities.org/id/metropolitan-district-council/leeds,Leeds City Council,30/11/2016,Childrens Services,Safeguarding Targeted & Specialist  ,Supplies and Services,General Amenity For Clients/Residents,285,05-Oct-2016,1611-00741,0.00,27.02,R,Amazon UK Marketplace,Yes
Http://opendatacommunities.org/id/metropolitan-district-council/leeds,Leeds City Council,30/11/2016,Adult Social Care,Services For Adults Under 65 Learn/Dis  ,Supplies and Services,Books & Audio-Visual Materials,206,05-Oct-2016,1611-00742,0.00,185.98,R,Amazon UK Marketplace,Yes
Http://opendatacommunities.org/id/metropolitan-district-council/leeds,Leeds City Council,30/11/2016,Childrens Services,Learning Skills & Universal  ,Supplies and Services,Books & Audio-Visual Materials,206,05-Oct-2016,1611-00743,0.00,6.57,R,Amazon UK Marketplace,Yes
Http://opendatacommunities.org/id/metropolitan-district-council/leeds,Leeds City Council,30/11/2016,Childrens Services,Learning Skills & Universal  ,Supplies and Services,Operational Furniture And Equipment,203,05-Oct-2016,1611-00744,0.00,18.74,R,Amazon UK Marketplace,Yes
Http://opendatacommunities.org/id/metropolitan-district-council/leeds,Leeds City Council,30/11/2016,Environment & Housing,Parks And Countryside  ,Supplies and Services,Books & Audio-Visual Materials,206,05-Oct-2016,1611-00745,0.00,12.99,R,Amazon UK Marketplace,Yes
Http://opendatacommunities.org/id/metropolitan-district-council/leeds,Leeds City Council,30/11/2016,Strategic Landlord,Housing Management  ,Employees,Best Value Training,70,05-Oct-2016,1611-00746,0.00,11.48,R,Amazon UK Marketplace,Yes
Http://opendatacommunities.org/id/metropolitan-district-council/leeds,Leeds City Council,30/11/2016,City Development,Recreation  ,Supplies and Services,Resaleable Materials,204,05-Oct-2016,1611-00747,0.00,69.98,R,Amazon UK Marketplace,Yes
Http://opendatacommunities.org/id/metropolitan-district-council/leeds,Leeds City Council,30/11/2016,Childrens Services,Learning Skills & Universal  ,Supplies and Services,Books & Audio-Visual Materials,206,05-Oct-2016,1611-00748,0.00,37.17,R,Amazon UK Marketplace,Yes
Http://opendatacommunities.org/id/metropolitan-district-council/leeds,Leeds City Council,30/11/2016,Citizens And Communities,Benefits  Wlefare And Poverty  ,Supplies and Services,Computer Software & Equipment,214,05-Oct-2016,1611-00749,0.00,10.46,R,Amazon UK Marketplace,Yes
Http://opendatacommunities.org/id/metropolitan-district-council/leeds,Leeds City Council,30/11/2016,City Development,Libraries  Arts & Heritage  ,Supplies and Services,Books & Audio-Visual Materials,206,05-Oct-2016,1611-00750,0.00,18.13,R,Amazon UK Marketplace,Yes
Http://opendatacommunities.org/id/metropolitan-district-council/leeds,Leeds City Council,30/11/2016,Adult Social Care,Services For Adults Under 65 Learn/Dis  ,Supplies and Services,Office Furniture & Equipment,201,05-Oct-2016,1611-00751,0.00,25.99,R,Amazon UK Marketplace,Yes
Http://opendatacommunities.org/id/metropolitan-district-council/leeds,Leeds City Council,30/11/2016,Childrens Services,Learning Skills & Universal  ,Supplies and Services,Operational Materials,205,05-Oct-2016,1611-00752,0.00,11.22,R,Amazon UK Marketplace,Yes
